Workbook

Sheet FIDEVAL
B2: Cotizador honorarios Fideicomiso de Garantía
B4: Detalle de gastos | C4: Valor | F4: Estado Civil cliente | G4: CU | H4: IVA | I4: Q FIRMAS | J4: EJEMPLARES | K4: CVT | L4: IVA TOTAL | M4: BIOMET | N4: COPIAS CERTIFICADAS | O4: TOTAL
B5: # comparecientes | C5: Soltero/a | F5: Soltero/a | G5: 14.1 | H5: 2.115 | I5: 2 | J5: 4 | K5: 28.2 | L5: 4.23 | M5: 0.6 | N5: =(20*1.79)*1.15 -> 41.17 | O5: =K5+L5+M5+N5 -> 74.2
B6: Notarías * | C6: =VLOOKUP(COTIZADOR!F32,F5:O9,10,0) -> 90.715 | F6: Viudo/a | G6: 14.1 | H6: 2.115 | I6: 2 | J6: 4 | K6: 28.2 | L6: 4.23 | M6: 0.6 | N6: =(20*1.79)*1.15 -> 41.17 | O6: =K6+L6+M6+N6 -> 74.2
B7: Honorarios Fiduciaria (incluye IVA)** | C7: =IF(COTIZADOR!F40<=20000,FIDEVAL!C15,IF(AND(COTIZADOR!F40>20000,COTIZADOR!F40<=30000),FIDEVAL!C16,FIDEVAL!C17)) -> 437 | F7: Divorciado/a | G7: 14.1 | H7: 2.115 | I7: 2 | J7: 4 | K7: 28.2 | L7: 4.23 | M7: 0.6 | N7: =(20*1.79)*1.15 -> 41.17 | O7: 74.2
B8: Total a cancelar cliente | C8: =C6+C7 -> 527.715 | F8: Casado | G8: 14.1 | H8: 2.115 | I8: 3 | J8: 4 | K8: 42.3 | L8: 6.345 | M8: 0.9 | N8: =(20*1.79)*1.15 -> 41.17 | O8: 90.715
F9: Unión de hecho | G9: 14.1 | H9: 2.115 | I9: 3 | J9: 4 | K9: 42.3 | L9: 6.345 | M9: 0.9 | N9: =(20*1.79)*1.15 -> 41.17 | O9: 90.715
B10: * El costo varía dependiendo del número de firmas | F10: Personas jurídicas | G10: 14.1 | H10: 2.115 | I10: 2 | J10: 4 | K10: 28.2 | L10: 4.23 | M10: 0.6 | N10: =(30*1.79)*1.15 -> 61.755 | O10: 94.785
B11: ** El costo de honorario variable en función al valor del vehículo
B13: HONORARIOS POR ADHESIÓN
B14: VALOR DEL VEHÍCULO | C14: VALOR HONORARIO CON IVA
B15: USD $ 0 - USD $ 20.000,00 | C15: =300*1.15 -> 345
B16: USD $ 20.000,01 - USD $ 30.000,00 | C16: =330*1.15 -> 379.5
B17: USD $ 30.000,01 - USD $ en adelante | C17: =380*1.15 -> 437

Sheet CERT (hidden)
A2: CERTIFICADO PROVISIONAL DE SEGURO
A4: VEHÍCULOS | D4: PÓLIZA MAESTRA | G4: 73896 / 71140 / 50393
A6: Contratante: | C6: BANCO DINERS CLUB DEL ECUADOR S.A.
A7: Asegurado: | C7: =FORM!Q38 -> PRIMER NOMBRE SEGUNDO NOMBRE PRIMER APELLIDO SEGUNDO APELLIDO | G7: C.I o R.U.C: | H7: =+FORM!$F$40 -> XXXXXXXXXX
A8: Dirección: | C8: =+FORM!$F$46 -> CARCELEN | G8: Teléfono 1: | H8: =+FORM!$F$38 -> CELULAR
A9: Ciudad: | C9: =+FORM!$F$48 -> GUAYAQUIL | G9: Teléfono 2: | H9: =+FORM!$L$38 -> CONVENCIONAL
A11: A.I.G. METROPOLITANA COMPAÑÍA DE SEGUROS Y REASEGUROS S.A. hace constar por este medio que la Póliza de Seguro de Vehículos anteriormente mencionada, asegura a la siguiente propiedad:
A14: Conductor: | C14: =+DAT!$AG$2 -> PRIMER APELLIDO SEGUNDO APELLIDO PRIMER NOMBRE SEGUNDO NOMBRE | G14: Valor Asegurado US $: | I14: =+FORM!$F$101 -> 10000
A15: Licencia: | C15: =+DAT!$H$2 -> XXXXXXXXXX | G15: Prima US $: | I15: =IF(COTIZADOR!$F$46="PESADO HASTA 7.5 TN",COTIZADOR!$X$87,VLOOKUP(COTIZADOR!$F$34,COTIZADOR!$T$88:$AC$90,5,TRUE)) -> 29.17
A16: Marca: | C16: =+FORM!$F$78 -> HYUNDAI | G16: Súper de Bancos: | I16: =IF(COTIZADOR!$F$46="PESADO HASTA 7.5 TN",COTIZADOR!$Y$87,VLOOKUP(COTIZADOR!$F$34,COTIZADOR!$T$88:$AC$90,6,TRUE)) -> 1.02
A17: Modelo: | C17: =+FORM!$F$80 -> ACCENT | G17: S.S. Campesino | I17: =IF(COTIZADOR!$F$46="PESADO HASTA 7.5 TN",COTIZADOR!$Z$87,VLOOKUP(COTIZADOR!$F$34,COTIZADOR!$T$88:$AC$90,7,TRUE)) -> 0.14585
A18: Tipo: | C18: =+FORM!$F$85 -> SEDAN | G18: I.V.A.: | I18: =IF(COTIZADOR!$F$46="PESADO HASTA 7.5 TN",COTIZADOR!$AA$87,VLOOKUP(COTIZADOR!$F$34,COTIZADOR!$T$88:$AC$90,8,TRUE)) -> 3.640302
A19: Año: | C19: =+FORM!$F$87 -> 2022 | G19: D / Emisión US $: | I19: =IF(COTIZADOR!$F$46="PESADO HASTA 7.5 TN",COTIZADOR!$AB$87,VLOOKUP(COTIZADOR!$F$34,COTIZADOR!$T$88:$AC$90,9,TRUE)) -> 0.04
A20: Color: | C20: =+FORM!$F$89 -> ROJO | G20: Prima Total: | I20: =IF(COTIZADOR!$F$46="PESADO HASTA 7.5 TN",COTIZADOR!$AC$87,VLOOKUP(COTIZADOR!$F$34,COTIZADOR!$T$88:$AC$90,10,TRUE)) -> 34.016152
A21: Placa: | C21: S / P | G21: Fecha Inicio: | I21: =+FORM!$F$9 -> 2025-02-07
A22: Número Motor: | C22: =+FORM!$F$91 -> BU456792826RE7 | G22: Fecha de Aniversario: | I22: =+SOLIC!$C$44 -> 2027-02-09
A23: Número Chasis: | C23: =+FORM!$F$93 -> CG5342892U | G23: Vigencia del Certificado: | I23: MENSUAL
A25: AMPAROS BÁSICOS | I25: LIMITES
A26: 1. Responsabilidad Civil Extracontractual | I26: =IF(FORM!$F$101>=25000,30000,IF(FORM!$F$101<25000," ")) -> 
A27: 1.1. Lesiones Corporales | I27: =IF(FORM!$F$101>=25000," ",IF(FORM!$F$101<25000,15000)) -> 15000
A28: 1.2. Daños a la Propiedad Ajena | I28: =IF(FORM!$F$101>=25000," ",IF(FORM!$F$101<25000,15000)) -> 15000
A29: 2. Perdida Total del Vehículo por Daños | I29: =+I14 -> 10000
A30: 3. Pérdida Parcial del Vehículo por Daños | I30: =+I14 -> 10000
A31: 4. Pérdida Total del vehículo por Robo | I31: =+I14 -> 10000
A32: 5. Pérdida Parcial del vehículo por Robo | I32: =+I14 -> 10000
A33: 6. Lesiones a Ocupantes del vehículo
A34: 6.1. Gastos Médicos por ocupante | I34: =IF(FORM!$F$101>=25000,3000,IF(FORM!$F$101<25000,2000)) -> 2000
A35: 6.2. Accidentes Personales por ocupante | I35: =IF(FORM!$F$101>=25000,5000,IF(FORM!$F$101<25000,4000)) -> 4000
A36: 7. Gastos de Grúa, Transporte y Protección del vehículos | I36: 200
A38: AMPAROS ADICIONALES | I38: LIMITES
A39: Perdida o robo de la llave del vehiculo máximo 1 evento al año | I39: 150
A40: Perdida o robo de documentos (Soat, Licencia, Matricula, Cédula de identidad) 1 evento al año | I40: 100
A41: Gastos de Transporte para el Asegurado / US$ 10,oo diarios | I41: 600
A42: Amparo jurídico en proceso penal | I42: 1000
A43: Cobertura para Conductores menores de 25 años | I43: =+I14 -> 10000
A44: Deducible:
A45: 10% del valor del siniestro, mínimo 1% del valor asegurado, no inferior a US$ | G45: =IF(I14>=25000,350,200) -> 200 | H45: por evento
A46: EL PRESENTE CERTIFICADO TIENE VIGENCIA MENSUAL Y PERMANECERÁ VIGENTE MIENTRAS EL CREDITO DEL CLIENTE CON DINERS CLUB ESTE CON VIGENCIA
A55: EL ASEGURADO | G55: LA COMPAÑÍA
A56: FECHA DE EMISIÓN: | C56: =+SOLIC!A44 -> 2025-02-07
A57: Quito: Av. Brasil 293 y Antonio Granda Centeno 5to piso Telef. (593-2) 395-5000 / 1800-AIG-AIG / fax: 2924-424 Guayaquil: Av. Rodrigo Chávez Gonzalez. Parque empresarial Colón, Edf. Corporativo II, 2do piso of. 203 - Telf. (593-4) 390-4177 / 390-4179 / 390-4180 Cuenca: Av. Ordoñez Lazo 5-42 y Laureles (Frente a Produbanco) - PBX: (593-7) 407-5814 / 407-5818
A66: En caso que necesite información adicional puede comunicarse con nuestras oficinas, nos será muy grato el poderle atender o directamente a: Banco Diners Club del Ecuador S.A.
A70: CONDICIONES GENERALES
A128: El presente certificado es un resumen de las Condiciones Generales de la Póliza, en caso de existir una diferencia entre el presente certificado y las Condiciones Generales, regirán las existentes en la Póliza

Sheet COB (hidden)
A6: =FORM!F26 -> GUAYAQUIL | C6: =+CERT!C56 -> 2025-02-07
A8: Señor (a).- | B8: =FORM!Q38 -> PRIMER NOMBRE SEGUNDO NOMBRE PRIMER APELLIDO SEGUNDO APELLIDO
A10: Presente.
A13: GRACIAS POR DEPOSITAR SU CONFIANZA EN NOSOTROS!
A16: Estimado Cliente
A19: Porque sabemos lo importante que es para usted su seguridad, AIG Metropolitana se complace en entregarle su certificado provisional de seguro, el mismo que le servirá como respaldo en una eventualidad. Desde este momento usted se encuentra respaldado con la protección que AIG Metropolitana ha diseñado exclusivamente para usted, las 24 horas del día, los 365 días del año dentro del Pacto Andino, la cobertura que usted tiene ampara a su vehículo tanto por robo total, robo parcial, choque o pérdida total por choque además de lesiones a los ocupantes de su vehículo. En caso de accidente o daño de su vehículo por favor comuníquese a nuestra central de reclamos 2-990-711, estaremos gustosos de poder servirle y solventar cualquier inquietud. Si el valor del vehículo es igual o mayor a US$ 20.000, se deberá mantener instalado y en funcionamiento el dispositivo de seguridad requerido, para contar con la cobertura de PERDIDA TOTAL POR ROBO.
A20: Las coberturas de su seguro tiene validez durante el período de vigencia del crédito contratado y será extendido automáticamente de manera indefinida hasta que usted manifieste su voluntad de no seguir con el mismo o no esté al día en sus pagos.
A21: Confiamos que la tranquilidad y el respaldo que este seguro brindará a su familia y a su patrimonio, será de su completo agrado.
A23: Una vez más agradecemos su preferencia y lo invitamos a seguir disfrutando de sus beneficios como cliente de AIG Metropolitana; oportunamente le haremos llegar el certificado de seguro definitivo.
A25: ATENTAMENTE
A30: FRANKLIN VALDIVIESO
A31: GERENTE DE VEHICULOS
A34: Quito: Av. Brasil 293 y Antonio Granda Centeno 5to piso Telef. (593-2) 395-5000 / 1800-AIG-AIG / fax: 2924-424 Guayaquil: Av. Rodrigo Chávez Gonzalez. Parque empresarial Colón, Edf. Corporativo II, 2do piso of. 203 - Telf. (593-4) 390-4177 / 390-4179 / 390-4180 Cuenca: Av. Ordoñez Lazo 5-42 y Laureles (Frente a Produbanco) - PBX: (593-7) 407-5814 / 407-5818

Sheet SOLIC (hidden)
K5: POLIZA MAESTRA: | M5: =+CERT!G4 -> 73896 / 71140 / 50393
A9: SOLICITUD DE SEGURO DE VEHÍCULOS FINANCIADOS
A11: ASEGURADO: | B11: =FORM!Q38 -> PRIMER NOMBRE SEGUNDO NOMBRE PRIMER APELLIDO SEGUNDO APELLIDO | K11: C.I / R.U.C.: | M11: =FORM!$F$40 -> XXXXXXXXXX
A13: DIRECCIÓN: | B13: =FORM!$F$46 -> CARCELEN | K13: TELÉFONO: | M13: =+FORM!$F$38 -> CELULAR
A15: CIUDAD: | B15: =FORM!$F$48 -> GUAYAQUIL | K15: TELFONO ADICIONAL: | M15: =+FORM!$L$38 -> CONVENCIONAL
A17: TIPO LICENCIA: | K17: FAX:
A19: No. LICENCIA: | B19: =+FORM!$F$40 -> XXXXXXXXXX | K19: CADUCA. LIC.:
A21: DATOS DEL USUARIO (INCLUIR SOLICITANTE Y CUALQUIER DEPENDIENTE MAYOR DE 18 AÑOS DE EDAD)
A23: NOMBRE | B23: FECHA NACMTO | E23: SEXO (M/F) | I23: ESTADO CIVIL | J23: PARENTESCO | L23: AÑOS VIGENCIA LICENCIA | N23: % DE USO
A25: =IF(FORM!C123=0," ",FORM!C123) ->  | B25: =IF(FORM!F123=0," ",FORM!F123) ->  | E25: =IF(FORM!I123=0," ",FORM!I123) ->  | I25: =IF(FORM!L123=0," ",FORM!L123) ->  | N25: =IF(FORM!O123=0," ",FORM!O123) -> 
A26: =IF(FORM!C124=0," ",FORM!C124) ->  | B26: =IF(FORM!F124=0," ",FORM!F124) ->  | E26: =IF(FORM!I124=0," ",FORM!I124) ->  | I26: =IF(FORM!L124=0," ",FORM!L124) ->  | N26: =IF(FORM!O124=0," ",FORM!O124) -> 
A27: =IF(FORM!C125=0," ",FORM!C125) ->  | B27: =IF(FORM!F125=0," ",FORM!F125) ->  | E27: =IF(FORM!I125=0," ",FORM!I125) ->  | I27: =IF(FORM!L125=0," ",FORM!L125) ->  | N27: =IF(FORM!O125=0," ",FORM!O125) -> 
A28: =IF(FORM!C126=0," ",FORM!C126) ->  | B28: =IF(FORM!F126=0," ",FORM!F126) ->  | E28: =IF(FORM!I126=0," ",FORM!I126) ->  | I28: =IF(FORM!L126=0," ",FORM!L126) ->  | N28: =IF(FORM!O126=0," ",FORM!O126) -> 
A29: =IF(FORM!C127=0," ",FORM!C127) ->  | B29: =IF(FORM!F127=0," ",FORM!F127) ->  | E29: =IF(FORM!I127=0," ",FORM!I127) ->  | I29: =IF(FORM!L127=0," ",FORM!L127) ->  | N29: =IF(FORM!O127=0," ",FORM!O127) -> 
A31: LUGAR DE TRAB. DEL USUARIO PRINCIPAL | G31: USO PRINCIPAL DEL VEHIC. | K31: KILOMETRAJE VEHÍCULO
A33: LUGAR TRABAJO: | B33: =FORM!$F$52 -> QUITO | G33: OF / TRAB: | K33: KM. IDA Y VUELTA:
A35: CARGO: | B35: =+FORM!$F$58 -> INGENIERO | G35: PLACER: | K35: KM. ANUAL:
A37: TIEMPO FCTO (AÑOS): | B37: =+FORM!$F$105/12 -> 2 | G37: OTRO: | K37: KM. ANUAL:
A40: VIGENCIA | G40: DESCRIPCIÓN DEL VEHÍCULO
A42: DESDE | C42: HASTA | G42: MARCA: | I42: =+CONCATENATE(FORM!$F$78,"-",FORM!$F$80,"-",FORM!$F$85) -> HYUNDAI-ACCENT-SEDAN | M42: VALOR: | N42: =FORM!$F$101 -> 10000
A44: =+FORM!F9 -> 2025-02-07 | C44: =IF(FORM!F105/12=1,'TABLA AMORT.'!B32)+IF(FORM!F105/12=2,'TABLA AMORT.'!B44)+IF(FORM!F105/12=3,'TABLA AMORT.'!B56)+IF(FORM!F105/12=4,'TABLA AMORT.'!B68)+IF(FORM!F105/12=5,'TABLA AMORT.'!B80) -> 2027-02-09 | G44: AÑO FAB.: | I44: =FORM!$F$87 -> 2022 | M44: TASA: | N44: =IF(COTIZADOR!$F$46="PESADO HASTA 7.5 TN",COTIZADOR!$V$87,VLOOKUP(COTIZADOR!$F$34,COTIZADOR!$T$88:$AC$90,3,TRUE))% -> 0.035
A46: USO / DESTINO: | G46: # MOTOR: | I46: =FORM!$F$91 -> BU456792826RE7 | M46: COLOR: | N46: =FORM!$F$89 -> ROJO
A48: SEGURIDADES: | G48: # CHASIS: | I48: =FORM!$F$93 -> CG5342892U | M48: Prima Mensual | N48: =+CERT!I20 -> 34.016152
A50: BENEFICIARIO ACREEDOR A FAVOR DE: | G50: BANCO DINERS CLUB DEL ECUADOR S.A. | K50: CONCESIONARIO: | M50: =FORM!$F$14 -> CONCESIONARIO
K52: VENDEDOR | M52: =COTIZADOR!F14 -> NOMBRE Y APELLIDO
K54: CI. VENDEDOR | M54: =FORM!F30 -> XXXXXXXXXX
G56: NUMERO DE TARJETA: | K56: =FORM!F147 -> XXXXXXXXXX1234
G57: FECHA DE EXPIRACIÓN | K57: =+FORM!F153 -> 2023-07-01
A60: Declaro Conocer y Aceptar que El Seguro del Vehículo Permanece Vigente durante el Tiempo de Crédito y que el vehículo aquí detallado y asegurado sea endosado a favor de Banco Diners Club S.A. mientras esté vigente el crédito.
A61: Todo vehículo tipo camioneta y todo vehículo cuyo valor sea igual o superior a US $20.000,00, deberá mantener instalado y en funcionamiento el dispositivo de seguridad, para contar con la cobertura de robo total.
A62: Adicionalmente La Compañía de Seguros acepta los vehículos que vengan instalados de fábrica,los dispositivos Chevystar Silver,Gold o Platinum y Maresa Satelital.
A63: Autorizo a AIG Metropolitana Renovar Automaticamente el Seguro de mi Vehículo cuando Finalice el Crédito.
A65: Debo y pagaré incondicionalmente y sin protesto al Emisor el total de esta Orden de Cargo más los intereses impuestos legales así como los intereses y cargos por servicio, en el lugar y fecha que se convenga .
A66: En caso de mora pagaré la tasa máxima autorizada por el Emisor. Desde ya renuncio a cualquier reclamación y a iniciar cualquier acción legal en contral del emisor, el mismo que no requerirá de otro instrumento o documento para procesar en mi tarjeta de crédito, los valores generados, los mismos que desde ya los acepto y reconozco como obligación.
A67: De igual manera autorizo que en caso de pérdida, hurto, robo o cualquier circunstancia por el que fuera cambiado el número de la tarjeta de crédito antes singularizada, se cuenta con el nuevo número que se me asigne para efectuar todos los pagos de manera incondicional dentro del período correspondiente, de tal manera que el cambio del número indicado no sea causa para no cancelar los valores que adeude.
G71: FIRMA
A73: FECHA | F73: CIUDAD
A75: =+FORM!F9 -> 2025-02-07 | F75: =+FORM!F26 -> GUAYAQUIL
A81: ESTA SOLICITUD ES PARTE INTEGRANTE DE LA PÓLIZA
A82: Quito: Av. Brasil 293 y Antonio Granda Centeno 5to piso Telef. (593-2) 395-5000 / 1800-AIG-AIG / fax: 2924-424 Guayaquil: Av. Rodrigo Chávez Gonzalez. Parque empresarial Colón, Edf. Corporativo II, 2do piso of. 203 - Telf. (593-4) 390-4177 / 390-4179 / 390-4180 Cuenca: Av. Ordoñez Lazo 5-42 y Laureles (Frente a Produbanco) - PBX: (593-7) 407-5814 / 407-5818

Sheet COTIZADOR (2) (hidden)
D3: FINANCIAMIENTO VEHICULAR
D5: COTIZADOR
C10: FECHA DE COTIZACION | F10: =TODAY() -> 2025-02-07 | H10: AAAA/MM/DD
C14: NOMBRES Y APELLIDOS DEL VENDEDOR: | F14: DENISSE SIERRA
C16: DATOS INFORMATIVOS DEL CLIENTE
C18: APELLIDOS: | F18: ANDRADE | L18: VARGAS
C20: NOMBRES: | F20: HANS | L20: FABIAN | Q20: =CONCATENATE(F20," ",L20) -> HANS FABIAN
C22: TELEFONOS: | F22: 0979060369 | L22: 2899532
C24: DATOS DEL VEHICULO
C26: MARCA | F26: MAZDA
C28: MODELO: | F28: CX3
C30: AÑO: | F30: 2019
C32: ESTADO CIVIL: | F32: Soltero/a
C34: VALOR DE FINANCIAMIENTO DEL VEHICULO (INCLUIDO IVA): | F34: 20000 | Q34: Se ingresa | BZ34: A | CA34: 25000 | CB34: S | CC34: 30000
T35: =+F40/F34 -> 0 | CB35: S
C36: VALIDACION % DE ENTRADA: | F36: =IF(F40/F34>=25%,F40/F34,"ENTRADA MENOR AL 25%") -> ENTRADA MENOR AL 25% | Q36: Calculado, no uede ser inferior al 25% | CA36: 35000 | CB36: C | CC36: =+CC34*25% -> 7500
C38: VALOR MINIMO DE ENTRADA: | Q38: Se ingresa | CC38: =+CA36-CC36 -> 27500
C40: VALOR DE ENTRADA DEL CLIENTE:
C42: PLAZO MESES FINANCIAMIENTO: | F42: 12 | Q42: Ingresa en meses o años
C44: TIPO DE CLIENTE: | F44: PERSONAL | Q44: Selecciona
C46: TIPO DEL VEHICULO: | F46: LIVIANO | Q46: Selecciona
C48: TASA MAXIMA DE INTERES VIGENTE DINERS: | F48: =VLOOKUP(F44,AQ87:AR90,2,FALSE) -> 0.156 | Q48: Recupera del parametro
C51: DISPOSITIVO: | F51: Sin Dispositivo | Q51: No se muestra, para efectos del simulador aplicar un valor promedio de 40 USD
C53: PLAZO GASTOS LEGALES: | F53: CORRIENTE | Q53: Seleccion
C55: CUOTA MENSUAL SEGURO VEHICULAR PRIMER AÑO: | F55: ='AIG- Cotizador Seguro'!$I$6 -> 125.5838333 | Q55: Calculo
C57: CUOTA GASTOS LEGALES: | F57: =IF($F$53="3 MESES SIN INTERESES",FORM!$F$133/3,FORM!$F$133) -> 527.715 | Q57: Calculo
C59: CUOTA MENSUAL RASTREO SATELITAL: | F59: =+FORM!F139 -> 0 | Q59: Calculo
C61: CUOTA MENSUAL SEGURO DESGRAVAMEN | F61: 0,099% MENSUAL SOBRE EL SALDO DE LA TARJETA DE CREDITO
C63: CUOTA MENSUAL VEHICULO: | F63: =+FORM!F143 -> 488.7237536 | Q63: Calculo
C65: VALOR A PAGAR MENSUALMENTE SIN G. LEGALES: | F65: =F55+F59+F63 -> 614.307587 | Q65: Calculo
C67: CONTRIBUCION SOLCA (0.5%): | F67: =IF(F53="3 MESES SIN INTERESES",$D$167*((0.5%/12)*3)+(0.5%*F71),(0.5%*F71)) -> 100 | Q67: Calculo
Q70: Calculado
C71: VALOR DE FINANCIAMIENTO: | F71: =+F34-F40 -> 20000
C73: INTERESES: | F73: =+PAGARE!D5-'COTIZADOR (2)'!F71 -> -8270.629913 | Q73: Calculado
C86: DISPOSITIVOS | G86: AÑO | I86: VALOR LEGALES | K86: CIUDAD | N86: MES | Q86: COLOR | S86: CÓDIGO COLOR | T86: Min | U86: Max | V86: TASA | W86: TASA | X86: PRIMA US $ | Y86: SÚPER BANCOS | Z86: S.S. Campesino | AA86: IVA | AB86: DERECHOS EMISIÓN | AC86: PRIMA TOTAL | AD86: MARCA SISE | AE86: CÓDIGO MARCA SISE | AF86: MARCA | AG86: CÓDIGO MARCA SISE | AH86: MODELO | AI86: CÓDIGO MODELO SISE | AJ86: TIPO | AK86: GENERO | AL86: DIA | AM86: ESTADO CIVIL | AN86: % USO | AO86: MESES | AP86: GASTOS LEGALES | AR86: tasa por producto | AS86: PAÍS DE ORIGEN | AU86: % ENTRADA | AV86: % RESTANTE | AW86: VALOR RESTANTE | AX86: CALCULO DÍAS | AZ86: BIN | BA86: FECHA PAGO | BB86: EXTRAER1 | BC86: EXTRAER 2
C87: TRACKLINK INTERACTIVO 12 | D87: 46.57333333 | E87: 469.28 | G87: 2018 | I87: 37.184 | K87: QUITO | N87: ENERO | Q87: AMARILLO | S87: 1 | T87: 0 | U87: 0 | V87: 4.3 | W87: =+(V87/12)/100 -> 0.003583333333 | X87: =ROUND((FORM!$F$101*$W$87),2) -> 35.83 | Y87: =ROUND(($X$87*3.5%),2) -> 1.25 | Z87: =+X87*0.5% -> 0.17915 | AA87: =SUM(X87:Z87)*12% -> 4.471098 | AB87: 0.04 | AC87: =SUM(X87:AB87) -> 41.770248 | AD87: ALFA ROMEO | AE87: 24 | AF87: ALFA ROMEO | AG87: 24 | AH87: 146 | AI87: 1 | AJ87: SEDAN | AK87: MASCULINO | AL87: 1 | AM87: SOLTERO | AN87: 5 | AO87: 12 | AP87: CORRIENTE | AQ87: PERSONAL | AR87: 0.156 | AS87: ALEMANIA | AU87: =+F40/F34 -> 0 | AV87: =100%-AU87 -> 1 | AW87: =+F34-F40 -> 20000 | AX87: =+F42/12/12 -> 0.08333333333 | AZ87: 360041 | BA87: 16 | BB87: =MID(F64,1,6) ->  | BC87: =MID(F64,7,8) -> 
C88: TRACKLINK INTERACTIVO 24 | D88: 33.55333333 | E88: 592.48 | G88: 2019 | I88: 17.92 | K88: GUAYAQUIL | N88: FEBRERO | Q88: AZUL | S88: 2 | T88: 0 | U88: 24999 | V88: 3.5 | W88: =+(V88/12)/100 -> 0.002916666667 | X88: =ROUND((FORM!$F$101*$W$88),2) -> 29.17 | Y88: =ROUND(($X$88*3.5%),2) -> 1.02 | Z88: =+X88*0.5% -> 0.14585 | AA88: =SUM(X88:Z88)*12% -> 3.640302 | AB88: 0.04 | AC88: =SUM(X88:AB88) -> 34.016152 | AD88: AUDI | AE88: 1 | AF88: ALFA ROMEO | AG88: 24 | AH88: 155 | AI88: 2 | AJ88: SEDAN | AK88: FEMENINO | AL88: 2 | AM88: CASADO | AN88: 10 | AO88: =AO87+12 -> 24 | AP88: 3 MESES SIN INTERESES | AQ88: CORPORATIVO | AR88: 0.1151 | AS88: ARGENTINA | AZ88: 361329 | BA88: 16
C89: TRACKLINK INTERACTIVO 36 | D89: 29.21333333 | E89: 715.68 | G89: 2020 | I89: 1.2 | K89: CUENCA | N89: MARZO | Q89: BEIGE | S89: 3 | T89: =+U88+0.01 -> 24999.01 | U89: 39999 | V89: 3 | W89: =+(V89/12)/100 -> 0.0025 | X89: =ROUND((FORM!$F$101*$W$89),2) -> 25 | Y89: =ROUND(($X$89*3.5%),2) -> 0.88 | Z89: =+X89*0.5% -> 0.125 | AA89: =SUM(X89:Z89)*12% -> 3.1206 | AB89: 0.04 | AC89: =SUM(X89:AB89) -> 29.1656 | AD89: AUSTIN | AE89: 26 | AF89: ALFA ROMEO | AG89: 24 | AH89: 156 | AI89: 3 | AJ89: SEDAN | AL89: 3 | AM89: VIUDO | AN89: 15 | AO89: =AO88+12 -> 36 | AQ89: EMPRESARIAL | AR89: 0.1222 | AS89: BRASIL | AZ89: 361349 | BA89: 1
C90: TRACKLINK INTERACTIVO 48 | D90: 27.04333333 | E90: 962.08 | G90: 2021 | I90: 1000 | K90: AMBATO | N90: ABRIL | Q90: BLANCO | S90: 4 | T90: =+U89+0.01 -> 39999.01 | U90: 200000 | V90: 2.5 | W90: =+(V90/12)/100 -> 0.002083333333 | X90: =ROUND((FORM!$F$101*$W$90),2) -> 20.83 | Y90: =ROUND(($X$90*3.5%),2) -> 0.73 | Z90: =+X90*0.5% -> 0.10415 | AA90: =SUM(X90:Z90)*12% -> 2.599698 | AB90: 0.04 | AC90: =SUM(X90:AB90) -> 24.303848 | AD90: BMW | AE90: 2 | AF90: ALFA ROMEO | AG90: 24 | AH90: 165 | AI90: 4 | AJ90: SEDAN | AL90: 4 | AM90: DIVORCIADO | AN90: 20 | AO90: =AO89+12 -> 48 | AQ90: PYME | AR90: 0.1149 | AS90: CANADÁ | AZ90: 362062 | BA90: 1
C91: TRACKLINK INTERACTIVO 60 | D91: 25.74133333 | E91: 1208.48 | G91: 2022 | I91: 1.12 | K91: IBARRA | N91: MAYO | Q91: CAFÉ | S91: 5 | AD91: BUICK | AE91: 81 | AF91: ALFA ROMEO | AG91: 24 | AH91: 166 | AI91: 5 | AJ91: SEDAN | AL91: 5 | AM91: UNIÓN LIBRE | AN91: 25 | AO91: =AO90+12 -> 60 | AS91: CHINA | AZ91: 362620 | BA91: 1
C92: TRACKLINK CONTROL 12 | D92: 54.04 | E92: 388.64 | F92: 419 | I92: 44.8 | K92: MANTA | N92: JUNIO | Q92: CELESTE | S92: 6 | AD92: CHANGAN | AE92: 83 | AF92: ALFA ROMEO | AG92: 24 | AH92: SPIDER | AI92: 6 | AJ92: SEDAN | AL92: 6 | AN92: 30 | AR92: tipo de cliente | AS92: CHILE | AZ92: 362621 | BA92: 1
C93: TRACKLINK CONTROL 24 | D93: 39.62 | E93: 511.84 | I93: =IF(F11>4000,F11-4000,44.8) -> 44.8 | K93: PORTOVIEJO | N93: JULIO | Q93: CREMA | S93: 7 | AD93: CHEVROLET | AE93: 3 | AF93: ALFA ROMEO | AG93: 24 | AH93: 33 | AI93: 7 | AJ93: SEDAN | AL93: 7 | AN93: 35 | AR93: PERSONAL | AS93: COLOMBIA | AZ93: 362622 | BA93: 16
C94: TRACKLINK CONTROL 36 | D94: 34.81333333 | E94: 635.04 | I94: 22.4 | K94: MACHALA | N94: AGOSTO | Q94: FUCSIA | S94: 8 | AD94: CHRYSLER | AE94: 4 | AF94: ALFA ROMEO | AG94: 24 | AH94: GIO | AI94: 8 | AJ94: SEDAN | AL94: 8 | AN94: 40 | AR94: CORPORATIVO | AS94: ECUADOR | AZ94: 363999 | BA94: 16
C95: TRACKLINK CONTROL 48 | D95: 32.41 | E95: 881.44 | I95: 56 | K95: LOJA | N95: SEPTIEMBRE | Q95: GRIS | S95: 9 | T95: TIPO DE VEHÍCLO | AD95: CITROEN | AE95: 28 | AF95: ALFA ROMEO | AG95: 24 | AH95: 164 | AI95: 9 | AJ95: SEDAN | AL95: 9 | AN95: 45 | AR95: EMPRESARIAL | AS95: ESPAÑA | AZ95: 364170 | BA95: 16
C96: TRACKLINK CONTROL 60 | D96: 30.968 | E96: 1127.84 | F96: =+E91/48 -> 25.17666667 | K96: ALAMOR | N96: OCTUBRE | Q96: LILA | S96: 10 | T96: LIVIANO | AD96: DACIA | AE96: 29 | AF96: ALFA ROMEO | AG96: 24 | AH96: GTV3 | AI96: 10 | AJ96: SEDAN | AL96: 10 | AN96: 50 | AR96: PYME | AS96: ESTADOS UNIDOS | AZ96: 364171 | BA96: 1
C97: TRACKLINK CONTROL PLUS 12 | D97: 69.90666667 | E97: 586.88 | F97: =+(E92*1.05) -> 408.072 | K97: ALAUSI | N97: NOVIEMBRE | Q97: MORADO | S97: 11 | T97: PESADO HASTA 7.5 TN | AD97: DAEWOO | AE97: 5 | AF97: ALFA ROMEO | AG97: 24 | AH97: 145 | AI97: 11 | AJ97: COUPE | AL97: 11 | AN97: 55 | AS97: NORUEGA | AZ97: 364172 | BA97: 16
C98: TRACKLINK CONTROL PLUS 24 | D98: 47.50666667 | E98: 736.96 | K98: AMBUQUI | N98: DICIEMBRE | Q98: NARANJA | S98: 12 | AD98: DAIHATSU | AE98: 6 | AF98: ALFA ROMEO | AG98: 24 | AH98: 147 | AI98: 12 | AJ98: SEDAN | AL98: 12 | AN98: 60 | AS98: HONG KONG | AZ98: 364173 | BA98: 1
C99: TRACKLINK CONTROL PLUS 36 | D99: 40.04 | E99: 887.04 | K99: ANTONIO ANTE | Q99: NEGRO | S99: 13 | AD99: DATSUN | AE99: 30 | AF99: AUDI | AG99: 1 | AH99: 80 | AI99: 1 | AJ99: SEDAN | AL99: 13 | AN99: 65 | AS99: FRANCIA | AZ99: 364190 | BA99: 16
C100: TRACKLINK CONTROL PLUS 48 | D100: 36.30666667 | E100: 1187.2 | K100: ANTONIO ANTE | Q100: PLATA | S100: 14 | AD100: DEER | AE100: 111 | AF100: AUDI | AG100: 1 | AH100: A3 | AI100: 2 | AJ100: SEDAN | AL100: 14 | AN100: 70 | AS100: INGLATERRA | AZ100: 364234 | BA100: 16
C101: TRACKLINK CONTROL PLUS 60 | D101: 34.06666667 | E101: 1487.36 | F101: =+E96/48 -> 23.49666667 | K101: ARCHIDONA | Q101: PLATEADO | S101: 15 | AD101: DODGE | AE101: 31 | AF101: AUDI | AG101: 1 | AH101: TT COUPE 1.8 QUATTRO | AI101: 3 | AJ101: SEDAN | AL101: 15 | AN101: 75 | AS101: ITALIA | AZ101: 364261 | BA101: 16
C102: TRACKLINK CONTROL TOTAL 12 | D102: 88.57333333 | K102: ARENILLAS | Q102: PLOMO | S102: 16 | AD102: FIAT | AE102: 7 | AF102: AUDI | AG102: 1 | AH102: A4 | AI102: 4 | AJ102: SEDAN | AL102: 16 | AN102: 80 | AS102: JAPÓN | AZ102: 364444 | BA102: 1
C103: TRACKLINK CONTROL TOTAL 24 | D103: 60.15333333 | K103: ATACAMES | Q103: ROJO | S103: 17 | AD103: FORD | AE103: 8 | AF103: AUDI | AG103: 1 | AH103: A6 | AI103: 5 | AJ103: SEDAN | AL103: 17 | AN103: 85 | AS103: COREA | AZ103: 364522 | BA103: 16
C104: TRACKLINK CONTROL TOTAL 36 | D104: 50.68 | K104: ATUNTAQUI | Q104: VERDE | S104: 18 | AD104: FSO | AE104: 77 | AF104: AUDI | AG104: 1 | AH104: 808 | AI104: 6 | AJ104: SEDAN | AL104: 18 | AN104: 90 | AS104: MÉXICO | AZ104: 364700 | BA104: 1
C105: TRACKLINK CONTROL TOTAL 48 | D105: 45.94333333 | K105: AZOGUEZ | Q105: VINO | S105: 19 | AD105: GMC | AE105: 70 | AF105: AUDI | AG105: 1 | AH105: A 62.8 | AI105: 7 | AJ105: SEDAN | AL105: 19 | AN105: 95 | AS105: PERU | AZ105: 364701 | BA105: 16
C106: TRACKLINK CONTROL TOTAL 60 | D106: 43.10133333 | K106: BABAHOYO | Q106: BRONCE | S106: 20 | AD106: GREAT WALL | AE106: 108 | AF106: AUDI | AG106: 1 | AH106: ALLROAD | AI106: 8 | AJ106: SEDAN | AL106: 20 | AN106: 100 | AS106: REPUBLICA CHECA | AZ106: 364702 | BA106: 16
C107: SHERLOC 12 | D107: 53.2 | F107: =+(E102*1.05) -> 0 | I107: 870 | K107: BAHÍA DE CARÁQUEZ | Q107: CHAMPAGNE | S107: 21 | AD107: HONDA | AE107: 9 | AF107: AUDI | AG107: 1 | AH107: A8 | AI107: 9 | AJ107: SEDAN | AL107: 21 | AS107: RUSIA | AZ107: 364703 | BA107: 1
C108: SHERLOC 24 | D108: 40.55 | K108: BALAO | Q108: DORADO | S108: 22 | AD108: HUMMER | AE108: 115 | AF108: AUSTIN | AG108: 26 | AH108: MINI 1000 | AI108: 1 | AJ108: COUPE | AL108: 22 | AS108: SUECIA | AZ108: 364716 | BA108: 1
C109: SHERLOC 36 | D109: 36.34 | K109: BALSAS | Q109: HABANO | S109: 23 | AD109: HYUNDAI | AE109: 10 | AF109: AUSTIN | AG109: 26 | AH109: MINI CORD | AI109: 2 | AJ109: COUPE | AL109: 23 | AS109: VENEZUELA | AZ109: 364717 | BA109: 1
C110: SHERLOC 48 | D110: 31.9 | K110: BALZAR | Q110: MARRÓN | S110: 24 | AD110: INTERNATIONAL | AE110: 44 | AF110: BMW | AG110: 2 | AH110: 318 | AI110: 1 | AJ110: SEDAN | AL110: 24 | AS110: YUGOSLAVIA | AZ110: 364719 | BA110: 16
C111: SHERLOC 60 | D111: 29.23 | F111: =+E106/48 -> 0 | K111: BAÑOS | Q111: STRATO | S111: 25 | AD111: ISUZU | AE111: 34 | AF111: BMW | AG111: 2 | AH111: 330I | AI111: 2 | AJ111: SEDAN | AL111: 25 | AZ111: 365001 | BA111: 16
C112: HUNTER LOJACK 12 | D112: 41.888 | K112: BIBLIAN | Q112: VIOLETA | S112: 26 | AD112: JAGUAR | AE112: 35 | AF112: BMW | AG112: 2 | AH112: 328I | AI112: 3 | AJ112: SEDAN | AL112: 26 | AZ112: 365147 | BA112: 16
C113: HUNTER LOJACK 24 | D113: 33.6 | K113: BOLÍVAR | Q113: TURQUESA | S113: 27 | AD113: JEEP | AE113: 71 | AF113: BMW | AG113: 2 | AH113: 325I | AI113: 4 | AJ113: SEDAN | AL113: 27 | AZ113: 365166 | BA113: 1
C114: HUNTER LOJACK 36 | D114: 30.24 | K114: BUENA FE | Q114: ROSADO | S114: 28 | AD114: KIA | AE114: 11 | AF114: BMW | AG114: 2 | AH114: X5 4X4 5P | AI114: 5 | AJ114: JEEP | AL114: 28 | AZ114: 365167 | BA114: 1
C115: HUNTER LOJACK 48 | D115: 29.12 | K115: CALUMA | Q115: ARENA | S115: 29 | AD115: LADA | AE115: 13 | AF115: BMW | AG115: 2 | AH115: 528I | AI115: 6 | AJ115: SEDAN | AL115: 29 | AZ115: 365168 | BA115: 16
C116: HUNTER LOJACK 60 | D116: 28 | K116: CAÑAR | Q116: ILUSIÓN | S116: 30 | AD116: LANCIA | AE116: 36 | AF116: BMW | AG116: 2 | AH116: 316I | AI116: 7 | AJ116: SEDAN | AL116: 30 | AZ116: 365169 | BA116: 1
C117: H. MONITOREO BASICO 12 | D117: =616/12 -> 51.33333333 | K117: CARIAMANGA | Q117: ROBLE | S117: 31 | AD117: LAND ROVER | AE117: 12 | AF117: BMW | AG117: 2 | AH117: 320I | AI117: 8 | AJ117: SEDAN | AL117: 31 | AZ117: 365181 | BA117: 1
C118: H. MONITOREO BASICO 24 | D118: =952/24 -> 39.66666667 | K118: CATAMAYO | Q118: MOSTAZA | S118: 32 | AD118: LEXUS | AE118: 37 | AF118: BMW | AG118: 2 | AH118: 323I | AI118: 9 | AJ118: SEDAN | AZ118: 365420 | BA118: 1
C119: H. MONITOREO BASICO 36 | D119: =1288/36 -> 35.77777778 | K119: CAYAMBE | AD119: LINCOLN | AE119: 38 | AF119: BMW | AG119: 2 | AH119: 523I | AI119: 10 | AJ119: SEDAN | AZ119: 365421 | BA119: 16
C120: H. MONITOREO BASICO 48 | D120: =1624/48 -> 33.83333333 | K120: CELICA | AD120: MAHINDRA | AE120: 101 | AF120: BMW | AG120: 2 | AH120: 525I | AI120: 11 | AJ120: SEDAN | AZ120: 365422 | BA120: 1
C121: H. MONITOREO BASICO 60 | D121: =1960/60 -> 32.66666667 | K121: CHICA | AD121: MAZDA | AE121: 14 | AF121: BMW | AG121: 2 | AH121: Z3 | AI121: 12 | AJ121: COUPE | AZ121: 365423 | BA121: 16
C122: H. MONITOREO BÁSICO GOLDEN 12 | D122: =768.4/12 -> 64.03333333 | K122: CHIMBO | AD122: MERCEDES BENZ | AE122: 15 | AF122: BMW | AG122: 2 | AH122: Z8 | AI122: 13 | AJ122: COUPE | AZ122: 365424 | BA122: 16
C123: H. MONITOREO BÁSICO GOLDEN 24 | D123: =1104.4/24 -> 46.01666667 | K123: CHONE | AD123: MITSUBISHI | AE123: 16 | AF123: BMW | AG123: 2 | AH123: M3 | AI123: 14 | AJ123: COUPE | AZ123: 365425 | BA123: 1
C124: H. MONITOREO BÁSICO GOLDEN 36 | D124: =1440.4/36 -> 40.01111111 | K124: COCA | AD124: NISSAN | AE124: 17 | AF124: BMW | AG124: 2 | AH124: M5 | AI124: 15 | AJ124: COUPE | AZ124: 365427 | BA124: 1
C125: H. MONITOREO BÁSICO GOLDEN 48 | D125: =1776.4/48 -> 37.00833333 | K125: CONCORDIA | AD125: OLDSMOBIL | AE125: 73 | AF125: BMW | AG125: 2 | AH125: 520 | AI125: 16 | AJ125: SEDAN | AZ125: 365428 | BA125: 1
C126: H. MONITOREO BÁSICO GOLDEN 60 | D126: =2112.4/60 -> 35.20666667 | K126: COTACACHI | AD126: OLTCIT | AE126: 40 | AF126: BMW | AG126: 2 | AH126: 530IA | AI126: 17 | AJ126: SEDAN | AZ126: 365429 | BA126: 16
C127: MARESA SATELITAL BY HUNTER 12 | D127: =616/12 -> 51.33333333 | K127: CUMBAYÁ | AD127: PEUGEOT | AE127: 18 | AF127: BMW | AG127: 2 | AH127: 318TI | AI127: 18 | AJ127: COUPE | AZ127: 365453 | BA127: 16
C128: MARESA SATELITAL BY HUNTER 24 | D128: =968.8/24 -> 40.36666667 | K128: DAULE | AD128: PLYMOUTH | AE128: 54 | AF128: BMW | AG128: 2 | AH128: 740 | AI128: 19 | AJ128: SEDAN | AZ128: 365454 | BA128: 16
C129: MARESA SATELITAL BY HUNTER 36 | D129: =1338.4/36 -> 37.17777778 | K129: DURAN | AD129: PORCHE | AE129: 56 | AF129: BMW | AG129: 2 | AH129: 1602 | AI129: 21 | AJ129: SEDAN
C130: MARESA SATELITAL BY HUNTER 48 | D130: =1708/48 -> 35.58333333 | K130: EL ÁNGEL | AD130: RENAULT | AE130: 19 | AF130: BMW | AG130: 2 | AH130: 366 | AI130: 22 | AJ130: SEDAN
C131: MARESA SATELITAL BY HUNTER 60 | D131: =2077.6/60 -> 34.62666667 | K131: EL CARMEN | AD131: SAAB | AE131: 45 | AF131: BMW | AG131: 2 | AH131: 530 | AI131: 23 | AJ131: SEDAN
K132: EL CORAZÓN | AD132: SAEHAN | AE132: 57 | AF132: BMW | AG132: 2 | AH132: 540 | AI132: 25 | AJ132: SEDAN
K133: EL EMPALME | AD133: SAMSUNG | AE133: 74 | AF133: BMW | AG133: 2 | AH133: 318IS | AI133: 26 | AJ133: SEDAN
K134: EL GUABO | AD134: SANGYONG | AE134: 42 | AF134: BMW | AG134: 2 | AH134: 318I LIMUSIN | AI134: 27 | AJ134: SEDAN
K135: EL NARANJAL | AD135: SEAT | AE135: 105 | AF135: BMW | AG135: 2 | AH135: Z4 | AI135: 29 | AJ135: COUPE
C136: Sin Dispositivo | K136: EL TAMBO | AD136: SKODA | AE136: 20 | AF136: BMW | AG136: 2 | AH136: X3 | AI136: 31 | AJ136: JEEP
C137: H. MONITOREO BASICO | K137: EL TRIUNFO | AD137: SUBARU | AE137: 58 | AF137: BUICK | AG137: 81 | AH137: CENTURY | AI137: 1 | AJ137: SEDAN
C138: H. MONITOREO BÁSICO GOLDEN | K138: ESMERALDAS | AD138: SUZUKI | AE138: 60 | AF138: CHANGAN | AG138: 83 | AH138: SC1011CG | AI138: 1 | AJ138: PICK-UP
C139: MARESA SATELITAL BY HUNTER | K139: FLAVIO ALFARO | AD139: TALBOT | AE139: 59 | AF139: CHANGAN | AG139: 83 | AH139: MINI VAN | AI139: 2 | AJ139: MINI VAN
K140: GIRÓN | AD140: TATA | AE140: 75 | AF140: CHANGAN | AG140: 83 | AH140: SC1018AA100 | AI140: 3 | AJ140: PICK-UP
K141: GONZALO PIZARRO | AD141: TOYOTA | AE141: 21 | AF141: CHEVROLET | AG141: 3 | AH141: FORSA | AI141: 1 | AJ141: COUPE
K142: GUALACEO | AD142: VOLKSWAGEN | AE142: 22 | AF142: CHEVROLET | AG142: 3 | AH142: CORSA 3P | AI142: 2 | AJ142: COUPE
K145: GUALAQUIZA | AD145: VOLVO | AE145: 23 | AF145: CHEVROLET | AG145: 3 | AH145: CORSA 4P | AI145: 3 | AJ145: SEDAN
K146: GUAMOTE | AD146: WORLDSTAR | AE146: 99 | AF146: CHEVROLET | AG146: 3 | AH146: CORSA 5P | AI146: 4 | AJ146: SEDAN
K147: GUANO | AD147: ZASTAVA | AE147: 61 | AF147: CHEVROLET | AG147: 3 | AH147: CORSA SPORT | AI147: 5 | AJ147: SEDAN
K148: GUARANDA | AF148: CHEVROLET | AG148: 3 | AH148: CORSA P/U 1600 | AI148: 6 | AJ148: PICK-UP
K149: GUAYLLABAMBA | AF149: CHEVROLET | AG149: 3 | AH149: SAN REMO | AI149: 7 | AJ149: SEDAN
K150: HUAQUILLAS | AF150: CHEVROLET | AG150: 3 | AH150: MONZA | AI150: 8 | AJ150: SEDAN
K151: JIPIJAPA | AF151: CHEVROLET | AG151: 3 | AH151: SWIFT | AI151: 9 | AJ151: SEDAN
K152: JUNIN | AF152: CHEVROLET | AG152: 3 | AH152: SWIFT EMOTION | AI152: 10 | AJ152: SEDAN
K153: LA CONCORDIA | AF153: CHEVROLET | AG153: 3 | AH153: ESTEEM 4P | AI153: 11 | AJ153: SEDAN
K154: LA MANA | AF154: CHEVROLET | AG154: 3 | AH154: ESTEEM S. WAGON | AI154: 12 | AJ154: STATION WAGON
K155: LA UNIÓN | AF155: CHEVROLET | AG155: 3 | AH155: LUV 4X2 C/S | AI155: 13 | AJ155: PICK-UP
K156: LAGO AGRIO | AF156: CHEVROLET | AG156: 3 | AH156: LUV 4X2 D/C | AI156: 14 | AJ156: PICK-UP
K157: LAS LAJAS | AF157: CHEVROLET | AG157: 3 | AH157: LUV 4X4 C/S | AI157: 15 | AJ157: PICK-UP
C158: Valor del vehículo | D158: =+$F$34 -> 20000 | K158: LASSO | AF158: CHEVROLET | AG158: 3 | AH158: LUV 4X4 D/C | AI158: 16 | AJ158: PICK-UP
C159: INSCRIPCIÓN EN REGISTRO MERCANTIL | K159: LATACUNGA | AF159: CHEVROLET | AG159: 3 | AH159: VITARA 3P | AI159: 17 | AJ159: JEEP
C160: VALOR BASE POR CONTRATO | D160: 25 | K160: LIBERTAD | AF160: CHEVROLET | AG160: 3 | AH160: VITARA 5P | AI160: 18 | AJ160: JEEP
C161: CESIÓN DE DERECHOS | D161: 30 | K161: LIMÓN | AF161: CHEVROLET | AG161: 3 | AH161: RODEO 4X2 | AI161: 19 | AJ161: JEEP
C162: 0.5% SOBRE LA CUANTÍA DEL CONTRATO (PRECIO DE VENTA). | D162: =D158*0.5% -> 100 | K162: QUEVEDO | AF162: CHEVROLET | AG162: 3 | AH162: RODEO 4X4 | AI162: 20 | AJ162: JEEP
C163: TOTAL | D163: =SUM(D160:D162) -> 155 | K163: LOS BANCOS | AF163: CHEVROLET | AG163: 3 | AH163: CAVALIER STD | AI163: 21 | AJ163: SEDAN
C164: OTROS GASTOS | K164: MACARA | AF164: CHEVROLET | AG164: 3 | AH164: CAVALIER DLX | AI164: 22 | AJ164: SEDAN
C165: TRAMITACIÓN LEGAL, SERVICIO DE TERCERO | D165: =162.4+30 -> 192.4 | K165: MACAS | AF165: CHEVROLET | AG165: 3 | AH165: SÚPER CARRY PICK UP | AI165: 23 | AJ165: PICK-UP
K166: MACHACHI | AF166: CHEVROLET | AG166: 3 | AH166: GRAND BLAZER 3P | AI166: 26 | AJ166: JEEP
C167: Tarifa gastos legales | D167: =+D163+D165 -> 347.4 | K167: MÉNDEZ | AF167: CHEVROLET | AG167: 3 | AH167: GRAND BLAZER 5P | AI167: 27 | AJ167: JEEP
K168: MILAGRO | AF168: CHEVROLET | AG168: 3 | AH168: TAHOE 5P. USA | AI168: 28 | AJ168: JEEP
K169: MIRA | AF169: CHEVROLET | AG169: 3 | AH169: BLAZER 4X4 | AI169: 29 | AJ169: JEEP
K170: MOCACHE | AF170: CHEVROLET | AG170: 3 | AH170: BLAZER 4X2 | AI170: 30 | AJ170: JEEP
C171: Declaración unico vehículo | K171: MONTALVO | AF171: CHEVROLET | AG171: 3 | AH171: SILVERADO | AI171: 31 | AJ171: PICK-UP
C172: Si | K172: MONTECRISTI | AF172: CHEVROLET | AG172: 3 | AH172: CHEYENNE | AI172: 32 | AJ172: PICK-UP
C173: No | K173: MONTUFAR | AF173: CHEVROLET | AG173: 3 | AH173: TROOPER 2.300 3P. | AI173: 33 | AJ173: JEEP
K174: MUISNE | AF174: CHEVROLET | AG174: 3 | AH174: TROOPER 3P | AI174: 34 | AJ174: JEEP
K175: NARANJITO | AF175: CHEVROLET | AG175: 3 | AH175: TROOPER 5P | AI175: 35 | AJ175: JEEP
K176: NUEVA LOJA | AF176: CHEVROLET | AG176: 3 | AH176: GRAND VITARA 3P | AI176: 36 | AJ176: JEEP
K177: OTAVALO | AF177: CHEVROLET | AG177: 3 | AH177: GRAND VITARA 5P | AI177: 37 | AJ177: JEEP
K178: PAJAN | AF178: CHEVROLET | AG178: 3 | AH178: ALTO 5P | AI178: 38 | AJ178: SEDAN
K179: PALENQUE | AF179: CHEVROLET | AG179: 3 | AH179: ASTRA 2P | AI179: 39 | AJ179: COUPE
K180: PALESTINA | AF180: CHEVROLET | AG180: 3 | AH180: ASTRA 4P | AI180: 40 | AJ180: SEDAN
K181: PALLATANGA | AF181: CHEVROLET | AG181: 3 | AH181: ASKA | AI181: 41 | AJ181: SEDAN
K182: PASAJE | AF182: CHEVROLET | AG182: 3 | AH182: ASTROVAN | AI182: 42 | AJ182: MINI VAN
K183: PASTAZA | AF183: CHEVROLET | AG183: 3 | AH183: CHEVETTE | AI183: 44 | AJ183: COUPE
K184: PATATE | AF184: CHEVROLET | AG184: 3 | AH184: CONDOR | AI184: 45 | AJ184: COUPE
K185: PAUTE | AF185: CHEVROLET | AG185: 3 | AH185: CORSICA | AI185: 46 | AJ185: SEDAN
K186: PEDERNALES | AF186: CHEVROLET | AG186: 3 | AH186: GEMINI | AI186: 47 | AJ186: SEDAN
K187: PEDRO CARBO | AF187: CHEVROLET | AG187: 3 | AH187: IMPALA | AI187: 48 | AJ187: SEDAN
K188: PELILEO | AF188: CHEVROLET | AG188: 3 | AH188: VEGA | AI188: 49 | AJ188: SEDAN
K189: PIFO | AF189: CHEVROLET | AG189: 3 | AH189: ZAFIRA 5P | AI189: 51 | AJ189: MINI VAN
K190: PILLARO | AF190: CHEVROLET | AG190: 3 | AH190: CARGO | AI190: 52 | AJ190: PICK-UP
K191: PIMAMPIRO | AF191: CHEVROLET | AG191: 3 | AH191: CHEVY VAN | AI191: 53 | AJ191: MINI VAN
K192: PINDAL | AF192: CHEVROLET | AG192: 3 | AH192: MINI BLAZER 4X2 | AI192: 55 | AJ192: JEEP
K193: PIÑAS | AF193: CHEVROLET | AG193: 3 | AH193: MINI BLAZER 4X4 | AI193: 56 | AJ193: JEEP
K194: PLAYAS | AF194: CHEVROLET | AG194: 3 | AH194: CITATION | AI194: 57 | AJ194: SEDAN
K195: PORTOVELO | AF195: CHEVROLET | AG195: 3 | AH195: C10 | AI195: 60 | AJ195: PICK-UP
K196: PUEBLO VIEJO | AF196: CHEVROLET | AG196: 3 | AH196: CREW CAB 4X4 | AI196: 65 | AJ196: PICK-UP
K197: PUEMBO | AF197: CHEVROLET | AG197: 3 | AH197: C1500 | AI197: 66 | AJ197: PICK-UP
K198: PUERTO CAYO | AF198: CHEVROLET | AG198: 3 | AH198: AVALANCHE | AI198: 68 | AJ198: PICK-UP
K199: PUERTO LOPEZ | AF199: CHEVROLET | AG199: 3 | AH199: CORSA EVOLUTION | AI199: 70 | AJ199: SEDAN
K200: PUERTO QUITO | AF200: CHEVROLET | AG200: 3 | AH200: TRAIL BLAZER 4X4 | AI200: 71 | AJ200: JEEP
K201: PUJILI | AF201: CHEVROLET | AG201: 3 | AH201: TRAIL BLAZER 4X2 | AI201: 72 | AJ201: JEEP
K202: PUYANGO | AF202: CHEVROLET | AG202: 3 | AH202: ASTRA 3P | AI202: 73 | AJ202: COUPE
K203: PUYO | AF203: CHEVROLET | AG203: 3 | AH203: CORSA WIND | AI203: 74 | AJ203: SEDAN
K204: QUERO | AF204: CHEVROLET | AG204: 3 | AH204: JIMNY 4X4 | AI204: 75 | AJ204: JEEP
K205: QUININDE | AF205: CHEVROLET | AG205: 3 | AH205: SPARK | AI205: 76 | AJ205: SEDAN
K206: QUITO | AF206: CHEVROLET | AG206: 3 | AH206: CHEYENNE 4X2 | AI206: 77 | AJ206: PICK-UP
K207: RIOBAMBA | AF207: CHEVROLET | AG207: 3 | AH207: CHEYENNE 4X4 | AI207: 78 | AJ207: PICK-UP
K208: ROCAFUERTE | AF208: CHEVROLET | AG208: 3 | AH208: OPTRA | AI208: 79 | AJ208: SEDAN
K209: SALCEDO | AF209: CHEVROLET | AG209: 3 | AH209: GRAND VITARA 5P XL7 4X4 | AI209: 80 | AJ209: JEEP
K210: SALINAS | AF210: CHEVROLET | AG210: 3 | AH210: GRAND VITARA 5P XL7 4X2 | AI210: 81 | AJ210: JEEP
K211: SAMBORONDON | AF211: CHEVROLET | AG211: 3 | AH211: LUV D-MAX C/S 4X2 | AI211: 82 | AJ211: PICK-UP
K212: SAME | AF212: CHEVROLET | AG212: 3 | AH212: LUV D-MAX C/D 4X2 | AI212: 83 | AJ212: PICK-UP
K213: SAN CAMILO | AF213: CHEVROLET | AG213: 3 | AH213: LUV D-MAX C/S 4X4 | AI213: 84 | AJ213: PICK-UP
K214: SAN GABRIEL | AF214: CHEVROLET | AG214: 3 | AH214: LUV D-MAX C/D 4X4 | AI214: 85 | AJ214: PICK-UP
K215: SAN LORENZO | AF215: CHRYSLER | AG215: 4 | AH215: GRAND CHEROKEE LAREDO 4X4 | AI215: 1 | AJ215: JEEP
K216: SAN MIGUEL | AF216: CHRYSLER | AG216: 4 | AH216: GRAND CHEROKEE LIMITED 4X4 | AI216: 2 | AJ216: JEEP
K217: SAN RAFAEL | AF217: CHRYSLER | AG217: 4 | AH217: CHEROKEE LAREDO | AI217: 3 | AJ217: JEEP
K218: SAN VICENTE | AF218: CHRYSLER | AG218: 4 | AH218: NEON 2000CC | AI218: 4 | AJ218: SEDAN
K219: SANGOLQUI | AF219: CHRYSLER | AG219: 4 | AH219: CARAVAN | AI219: 5 | AJ219: MINI VAN
K220: SANTA ANA | AF220: CHRYSLER | AG220: 4 | AH220: GRAND CARAVAN | AI220: 6 | AJ220: MINI VAN
K221: SANTA CRUZ | AF221: CHRYSLER | AG221: 4 | AH221: LEBARON | AI221: 7 | AJ221: SEDAN
K222: SANTA ELENA | AF222: CHRYSLER | AG222: 4 | AH222: LIBERTY | AI222: 8 | AJ222: JEEP
K223: SANTA ISABEL | AF223: CHRYSLER | AG223: 4 | AH223: STRATUS | AI223: 9 | AJ223: SEDAN
K224: SANTA ISABEL | AF224: CHRYSLER | AG224: 4 | AH224: RENEGADO | AI224: 10 | AJ224: JEEP
K225: SANTA ROSA | AF225: CHRYSLER | AG225: 4 | AH225: TOWN & COUNTRY | AI225: 11 | AJ225: PICK-UP
K226: SANTO DOMINGO | AF226: CITROEN | AG226: 28 | AH226: AX GT | AI226: 1 | AJ226: SEDAN
K227: SAQUISILI | AF227: CITROEN | AG227: 28 | AH227: BERLINGO | AI227: 2 | AJ227: SEDAN
K228: SARAGURO | AF228: CITROEN | AG228: 28 | AH228: SAXO SX | AI228: 3 | AJ228: SEDAN
K229: SHUSHUFINDI | AF229: CITROEN | AG229: 28 | AH229: XANTIA | AI229: 4 | AJ229: SEDAN
K230: SIGCHOS | AF230: CITROEN | AG230: 28 | AH230: XSARA VTS | AI230: 5 | AJ230: SEDAN
K231: SIGSIG | AF231: CITROEN | AG231: 28 | AH231: ZX VOLCANE | AI231: 6 | AJ231: SEDAN
K232: SUCRE | AF232: CITROEN | AG232: 28 | AH232: ALLUER 5P | AI232: 7 | AJ232: STATION WAGON
K233: SUCUA | AF233: CITROEN | AG233: 28 | AH233: XSARA PICASSO | AI233: 8 | AJ233: SEDAN
K234: SUCUMBIOS | AF234: CITROEN | AG234: 28 | AH234: C3 SX 14I | AI234: 9 | AJ234: SEDAN
K235: TABABELA | AF235: DACIA | AG235: 29 | AH235: 1304 DROP-SIDE | AI235: 1 | AJ235: PICK-UP
K236: TABACUNDO | AF236: DACIA | AG236: 29 | AH236: BREAK | AI236: 2 | AJ236: SEDAN
K237: TAMBILLO | AF237: DACIA | AG237: 29 | AH237: RAPSODIE | AI237: 3 | AJ237: SEDAN
K238: TENA | AF238: DAEWOO | AG238: 5 | AH238: TICO 5P. SX | AI238: 1 | AJ238: SEDAN
K239: TONSUPA | AF239: DAEWOO | AG239: 5 | AH239: MATIZ | AI239: 2 | AJ239: SEDAN
K240: TOSAGUA | AF240: DAEWOO | AG240: 5 | AH240: LANOS 4P | AI240: 3 | AJ240: SEDAN
K241: TULCAN | AF241: DAEWOO | AG241: 5 | AH241: LANOS 5P | AI241: 4 | AJ241: SEDAN
K242: TUMBACO | AF242: DAEWOO | AG242: 5 | AH242: LANOS 3P | AI242: 5 | AJ242: SEDAN
K243: URCUQUI | AF243: DAEWOO | AG243: 5 | AH243: NUBIRA | AI243: 6 | AJ243: SEDAN
K244: URDANETA | AF244: DAEWOO | AG244: 5 | AH244: TACUMA | AI244: 7 | AJ244: MINI VAN
K245: VENTANAS | AF245: DAEWOO | AG245: 5 | AH245: ESPERO | AI245: 8 | AJ245: SEDAN
K246: VINCES | AF246: DAEWOO | AG246: 5 | AH246: RACER | AI246: 9 | AJ246: SEDAN
K247: YAGUACHI | AF247: DAEWOO | AG247: 5 | AH247: CIELO | AI247: 10 | AJ247: SEDAN
K248: ZAMORA | AF248: DAEWOO | AG248: 5 | AH248: COACH | AI248: 11 | AJ248: SEDAN
K249: ZAPOTILLO | AF249: DAEWOO | AG249: 5 | AH249: DAMAS | AI249: 12 | AJ249: SEDAN
K250: ZARUMA | AF250: DAEWOO | AG250: 5 | AH250: KORANDO | AI250: 13 | AJ250: JEEP
AF251: DAEWOO | AG251: 5 | AH251: MUSSO | AI251: 14 | AJ251: JEEP
AF252: DAEWOO | AG252: 5 | AH252: LEGANZA | AI252: 15 | AJ252: SEDAN
AF253: DAIHATSU | AG253: 6 | AH253: TERIOS | AI253: 1 | AJ253: JEEP
... 436 more rows

Sheet COTIZADOR
D3: FINANCIAMIENTO VEHICULAR
D5: COTIZADOR
C10: FECHA DE COTIZACION | F10: =TODAY() -> 2025-02-07 | H10: AAAA/MM/DD
C14: NOMBRES Y APELLIDOS DEL VENDEDOR: | F14: NOMBRE Y APELLIDO
C16: DATOS INFORMATIVOS DEL CLIENTE
C18: APELLIDOS DEL CLIENTE: | F18: PRIMER APELLIDO | L18: SEGUNDO APELLIDO
C20: NOMBRES DEL CLIENTE: | F20: PRIMER NOMBRE | L20: SEGUNDO NOMBRE | Q20: =CONCATENATE(F20," ",L20) -> PRIMER NOMBRE SEGUNDO NOMBRE
C22: TELEFONOS: | F22: CELULAR | L22: CONVENCIONAL
C24: DATOS DEL VEHICULO
C26: MARCA | F26: MAZDA
C28: MODELO: | F28: CX3
C30: AÑO: | F30: 2019
C32: ESTADO CIVIL: | F32: Casado
C34: VALOR DE FINANCIAMIENTO DEL VEHICULO (INCLUIDO IVA): | F34: 10000 | Q34: Se ingresa | BZ34: A | CA34: 25000 | CB34: S | CC34: 30000
T35: =+F41/F34 -> 0 | CB35: S
C36: VALIDACION % DE ENTRADA: | F36: =IF(F41/F34>=25%,F41/F34,"ENTRADA MENOR AL 25%") -> ENTRADA MENOR AL 25% | Q36: Calculado, no uede ser inferior al 25% | CA36: 35000 | CB36: C | CC36: =+CC34*25% -> 7500
C38: VALOR MINIMO DE ENTRADA: | Q38: Se ingresa | CC38: =+CA36-CC36 -> 27500
C40: VALOR TOTAL DEL VEHICULO (INCLUIDO IVA): | F40: 35000
C41: VALOR TOTAL DE VEHICULO
C42: PLAZO MESES FINANCIAMIENTO: | F42: 24 | Q42: Ingresa en meses o años
C44: TIPO DE CLIENTE: | F44: PERSONAL | Q44: Selecciona
C46: TIPO DEL VEHICULO: | F46: LIVIANO | Q46: Selecciona
C48: TASA MAXIMA DE INTERES VIGENTE DINERS: | F48: =VLOOKUP(F44,AQ87:AR90,2,FALSE) -> 0.156 | Q48: Recupera del parametro
C51: DISPOSITIVO: | F51: Con dispositivo Concesionario | Q51: No se muestra, para efectos del simulador aplicar un valor promedio de 40 USD
C53: PLAZO GASTOS LEGALES: | F53: CORRIENTE | Q53: Seleccion
C55: CUOTA MENSUAL SEGURO VEHICULAR PRIMER AÑO: | F55: ='AIG- Cotizador Seguro'!$I$6 -> 125.5838333 | Q55: Calculo
C57: CUOTA GASTOS LEGALES: | F57: =IF($F$53="3 MESES SIN INTERESES",FORM!$F$133/3,FORM!$F$133) -> 527.715 | Q57: Calculo
C59: CUOTA MENSUAL RASTREO SATELITAL: | F59: =+FORM!F139 -> 0 | Q59: Calculo
C61: CUOTA MENSUAL SEGURO DESGRAVAMEN | F61: 0,099% MENSUAL SOBRE EL SALDO DE LA TARJETA DE CREDITO
C63: CUOTA MENSUAL FINANCIAMIENTO VEHICULO: | F63: =+FORM!F143 -> 488.7237536 | Q63: Calculo
C65: VALOR A PAGAR MENSUALMENTE SIN G. LEGALES: | F65: =F55+F59+F63 -> 614.307587 | Q65: Calculo
C67: CONTRIBUCION SOLCA (0.5%): | F67: =IF(F53="3 MESES SIN INTERESES",$D$167*((0.5%/12)*3)+(0.5%*F71),(0.5%*F71)) -> 50 | Q67: Calculo
Q70: Calculado
C71: VALOR DE FINANCIAMIENTO: | F71: =+F34-F41 -> 10000
C73: INTERESES: | F73: =+PAGARE!D5-COTIZADOR!F71 -> 1729.370087 | Q73: Calculado
C86: DISPOSITIVOS | G86: AÑO | I86: VALOR LEGALES | K86: CIUDAD | N86: MES | Q86: COLOR | S86: CÓDIGO COLOR | T86: Min | U86: Max | V86: TASA | W86: TASA | X86: PRIMA US $ | Y86: SÚPER BANCOS | Z86: S.S. Campesino | AA86: IVA | AB86: DERECHOS EMISIÓN | AC86: PRIMA TOTAL | AD86: MARCA SISE | AE86: CÓDIGO MARCA SISE | AF86: MARCA | AG86: CÓDIGO MARCA SISE | AH86: MODELO | AI86: CÓDIGO MODELO SISE | AJ86: TIPO | AK86: GENERO | AL86: DIA | AM86: ESTADO CIVIL | AN86: % USO | AO86: MESES | AP86: GASTOS LEGALES | AR86: tasa por producto | AS86: PAÍS DE ORIGEN | AU86: % ENTRADA | AV86: % RESTANTE | AW86: VALOR RESTANTE | AX86: CALCULO DÍAS | AZ86: BIN | BA86: FECHA PAGO | BB86: EXTRAER1 | BC86: EXTRAER 2
C87: TRACKLINK INTERACTIVO 12 | D87: 46.57333333 | E87: 469.28 | G87: 2018 | I87: 37.184 | K87: QUITO | N87: ENERO | Q87: AMARILLO | S87: 1 | T87: 0 | U87: 0 | V87: 4.3 | W87: =+(V87/12)/100 -> 0.003583333333 | X87: =ROUND((FORM!$F$101*$W$87),2) -> 35.83 | Y87: =ROUND(($X$87*3.5%),2) -> 1.25 | Z87: =+X87*0.5% -> 0.17915 | AA87: =SUM(X87:Z87)*12% -> 4.471098 | AB87: 0.04 | AC87: =SUM(X87:AB87) -> 41.770248 | AD87: ALFA ROMEO | AE87: 24 | AF87: ALFA ROMEO | AG87: 24 | AH87: 146 | AI87: 1 | AJ87: SEDAN | AK87: MASCULINO | AL87: 1 | AM87: SOLTERO | AN87: 5 | AO87: 12 | AP87: CORRIENTE | AQ87: PERSONAL | AR87: 0.156 | AS87: ALEMANIA | AU87: =+F41/F34 -> 0 | AV87: =100%-AU87 -> 1 | AW87: =+F34-F41 -> 10000 | AX87: =+F42/12/12 -> 0.1666666667 | AZ87: 360041 | BA87: 16 | BB87: =MID(F64,1,6) ->  | BC87: =MID(F64,7,8) -> 
C88: TRACKLINK INTERACTIVO 24 | D88: 33.55333333 | E88: 592.48 | G88: 2019 | I88: 17.92 | K88: GUAYAQUIL | N88: FEBRERO | Q88: AZUL | S88: 2 | T88: 0 | U88: 24999 | V88: 3.5 | W88: =+(V88/12)/100 -> 0.002916666667 | X88: =ROUND((FORM!$F$101*$W$88),2) -> 29.17 | Y88: =ROUND(($X$88*3.5%),2) -> 1.02 | Z88: =+X88*0.5% -> 0.14585 | AA88: =SUM(X88:Z88)*12% -> 3.640302 | AB88: 0.04 | AC88: =SUM(X88:AB88) -> 34.016152 | AD88: AUDI | AE88: 1 | AF88: ALFA ROMEO | AG88: 24 | AH88: 155 | AI88: 2 | AJ88: SEDAN | AK88: FEMENINO | AL88: 2 | AM88: CASADO | AN88: 10 | AO88: =AO87+12 -> 24 | AP88: 3 MESES SIN INTERESES | AQ88: CORPORATIVO | AR88: 0.1151 | AS88: ARGENTINA | AZ88: 361329 | BA88: 16
C89: TRACKLINK INTERACTIVO 36 | D89: 29.21333333 | E89: 715.68 | G89: 2020 | I89: 1.2 | K89: CUENCA | N89: MARZO | Q89: BEIGE | S89: 3 | T89: =+U88+0.01 -> 24999.01 | U89: 39999 | V89: 3 | W89: =+(V89/12)/100 -> 0.0025 | X89: =ROUND((FORM!$F$101*$W$89),2) -> 25 | Y89: =ROUND(($X$89*3.5%),2) -> 0.88 | Z89: =+X89*0.5% -> 0.125 | AA89: =SUM(X89:Z89)*12% -> 3.1206 | AB89: 0.04 | AC89: =SUM(X89:AB89) -> 29.1656 | AD89: AUSTIN | AE89: 26 | AF89: ALFA ROMEO | AG89: 24 | AH89: 156 | AI89: 3 | AJ89: SEDAN | AL89: 3 | AM89: VIUDO | AN89: 15 | AO89: =AO88+12 -> 36 | AQ89: EMPRESARIAL | AR89: 0.1222 | AS89: BRASIL | AZ89: 361349 | BA89: 1
C90: TRACKLINK INTERACTIVO 48 | D90: 27.04333333 | E90: 962.08 | G90: 2021 | I90: 1000 | K90: AMBATO | N90: ABRIL | Q90: BLANCO | S90: 4 | T90: =+U89+0.01 -> 39999.01 | U90: 200000 | V90: 2.5 | W90: =+(V90/12)/100 -> 0.002083333333 | X90: =ROUND((FORM!$F$101*$W$90),2) -> 20.83 | Y90: =ROUND(($X$90*3.5%),2) -> 0.73 | Z90: =+X90*0.5% -> 0.10415 | AA90: =SUM(X90:Z90)*12% -> 2.599698 | AB90: 0.04 | AC90: =SUM(X90:AB90) -> 24.303848 | AD90: BMW | AE90: 2 | AF90: ALFA ROMEO | AG90: 24 | AH90: 165 | AI90: 4 | AJ90: SEDAN | AL90: 4 | AM90: DIVORCIADO | AN90: 20 | AO90: =AO89+12 -> 48 | AQ90: PYME | AR90: 0.1149 | AS90: CANADÁ | AZ90: 362062 | BA90: 1
C91: TRACKLINK INTERACTIVO 60 | D91: 25.74133333 | E91: 1208.48 | G91: 2022 | I91: 1.12 | K91: IBARRA | N91: MAYO | Q91: CAFÉ | S91: 5 | AD91: BUICK | AE91: 81 | AF91: ALFA ROMEO | AG91: 24 | AH91: 166 | AI91: 5 | AJ91: SEDAN | AL91: 5 | AM91: UNIÓN LIBRE | AN91: 25 | AO91: =AO90+12 -> 60 | AS91: CHINA | AZ91: 362620 | BA91: 1
C92: TRACKLINK CONTROL 12 | D92: 54.04 | E92: 388.64 | F92: 419 | I92: 44.8 | K92: MANTA | N92: JUNIO | Q92: CELESTE | S92: 6 | AD92: CHANGAN | AE92: 83 | AF92: ALFA ROMEO | AG92: 24 | AH92: SPIDER | AI92: 6 | AJ92: SEDAN | AL92: 6 | AN92: 30 | AR92: tipo de cliente | AS92: CHILE | AZ92: 362621 | BA92: 1
C93: TRACKLINK CONTROL 24 | D93: 39.62 | E93: 511.84 | I93: =IF(F11>4000,F11-4000,44.8) -> 44.8 | K93: PORTOVIEJO | N93: JULIO | Q93: CREMA | S93: 7 | AD93: CHEVROLET | AE93: 3 | AF93: ALFA ROMEO | AG93: 24 | AH93: 33 | AI93: 7 | AJ93: SEDAN | AL93: 7 | AN93: 35 | AR93: PERSONAL | AS93: COLOMBIA | AZ93: 362622 | BA93: 16
C94: TRACKLINK CONTROL 36 | D94: 34.81333333 | E94: 635.04 | I94: 22.4 | K94: MACHALA | N94: AGOSTO | Q94: FUCSIA | S94: 8 | AD94: CHRYSLER | AE94: 4 | AF94: ALFA ROMEO | AG94: 24 | AH94: GIO | AI94: 8 | AJ94: SEDAN | AL94: 8 | AN94: 40 | AS94: ECUADOR | AZ94: 363999 | BA94: 16
C95: TRACKLINK CONTROL 48 | D95: 32.41 | E95: 881.44 | I95: 56 | K95: LOJA | N95: SEPTIEMBRE | Q95: GRIS | S95: 9 | T95: TIPO DE VEHÍCLO | AD95: CITROEN | AE95: 28 | AF95: ALFA ROMEO | AG95: 24 | AH95: 164 | AI95: 9 | AJ95: SEDAN | AL95: 9 | AN95: 45 | AS95: ESPAÑA | AZ95: 364170 | BA95: 16
C96: TRACKLINK CONTROL 60 | D96: 30.968 | E96: 1127.84 | F96: =+E91/48 -> 25.17666667 | K96: ALAMOR | N96: OCTUBRE | Q96: LILA | S96: 10 | T96: LIVIANO | AD96: DACIA | AE96: 29 | AF96: ALFA ROMEO | AG96: 24 | AH96: GTV3 | AI96: 10 | AJ96: SEDAN | AL96: 10 | AN96: 50 | AS96: ESTADOS UNIDOS | AZ96: 364171 | BA96: 1
C97: TRACKLINK CONTROL PLUS 12 | D97: 69.90666667 | E97: 586.88 | F97: =+(E92*1.05) -> 408.072 | K97: ALAUSI | N97: NOVIEMBRE | Q97: MORADO | S97: 11 | T97: PESADO HASTA 7.5 TN | AD97: DAEWOO | AE97: 5 | AF97: ALFA ROMEO | AG97: 24 | AH97: 145 | AI97: 11 | AJ97: COUPE | AL97: 11 | AN97: 55 | AS97: NORUEGA | AZ97: 364172 | BA97: 16
C98: TRACKLINK CONTROL PLUS 24 | D98: 47.50666667 | E98: 736.96 | K98: AMBUQUI | N98: DICIEMBRE | Q98: NARANJA | S98: 12 | AD98: DAIHATSU | AE98: 6 | AF98: ALFA ROMEO | AG98: 24 | AH98: 147 | AI98: 12 | AJ98: SEDAN | AL98: 12 | AN98: 60 | AS98: HONG KONG | AZ98: 364173 | BA98: 1
C99: TRACKLINK CONTROL PLUS 36 | D99: 40.04 | E99: 887.04 | K99: ANTONIO ANTE | Q99: NEGRO | S99: 13 | AD99: DATSUN | AE99: 30 | AF99: AUDI | AG99: 1 | AH99: 80 | AI99: 1 | AJ99: SEDAN | AL99: 13 | AN99: 65 | AS99: FRANCIA | AZ99: 364190 | BA99: 16
C100: TRACKLINK CONTROL PLUS 48 | D100: 36.30666667 | E100: 1187.2 | K100: ANTONIO ANTE | Q100: PLATA | S100: 14 | AD100: DEER | AE100: 111 | AF100: AUDI | AG100: 1 | AH100: A3 | AI100: 2 | AJ100: SEDAN | AL100: 14 | AN100: 70 | AS100: INGLATERRA | AZ100: 364234 | BA100: 16
C101: TRACKLINK CONTROL PLUS 60 | D101: 34.06666667 | E101: 1487.36 | F101: =+E96/48 -> 23.49666667 | K101: ARCHIDONA | Q101: PLATEADO | S101: 15 | AD101: DODGE | AE101: 31 | AF101: AUDI | AG101: 1 | AH101: TT COUPE 1.8 QUATTRO | AI101: 3 | AJ101: SEDAN | AL101: 15 | AN101: 75 | AS101: ITALIA | AZ101: 364261 | BA101: 16
C102: TRACKLINK CONTROL TOTAL 12 | D102: 88.57333333 | K102: ARENILLAS | Q102: PLOMO | S102: 16 | AD102: FIAT | AE102: 7 | AF102: AUDI | AG102: 1 | AH102: A4 | AI102: 4 | AJ102: SEDAN | AL102: 16 | AN102: 80 | AS102: JAPÓN | AZ102: 364444 | BA102: 1
C103: TRACKLINK CONTROL TOTAL 24 | D103: 60.15333333 | K103: ATACAMES | Q103: ROJO | S103: 17 | AD103: FORD | AE103: 8 | AF103: AUDI | AG103: 1 | AH103: A6 | AI103: 5 | AJ103: SEDAN | AL103: 17 | AN103: 85 | AS103: COREA | AZ103: 364522 | BA103: 16
C104: TRACKLINK CONTROL TOTAL 36 | D104: 50.68 | K104: ATUNTAQUI | Q104: VERDE | S104: 18 | AD104: FSO | AE104: 77 | AF104: AUDI | AG104: 1 | AH104: 808 | AI104: 6 | AJ104: SEDAN | AL104: 18 | AN104: 90 | AS104: MÉXICO | AZ104: 364700 | BA104: 1
C105: TRACKLINK CONTROL TOTAL 48 | D105: 45.94333333 | K105: AZOGUEZ | Q105: VINO | S105: 19 | AD105: GMC | AE105: 70 | AF105: AUDI | AG105: 1 | AH105: A 62.8 | AI105: 7 | AJ105: SEDAN | AL105: 19 | AN105: 95 | AS105: PERU | AZ105: 364701 | BA105: 16
C106: TRACKLINK CONTROL TOTAL 60 | D106: 43.10133333 | K106: BABAHOYO | Q106: BRONCE | S106: 20 | AD106: GREAT WALL | AE106: 108 | AF106: AUDI | AG106: 1 | AH106: ALLROAD | AI106: 8 | AJ106: SEDAN | AL106: 20 | AN106: 100 | AS106: REPUBLICA CHECA | AZ106: 364702 | BA106: 16
C107: SHERLOC 12 | D107: 53.2 | F107: =+(E102*1.05) -> 0 | I107: 870 | K107: BAHÍA DE CARÁQUEZ | Q107: CHAMPAGNE | S107: 21 | AD107: HONDA | AE107: 9 | AF107: AUDI | AG107: 1 | AH107: A8 | AI107: 9 | AJ107: SEDAN | AL107: 21 | AS107: RUSIA | AZ107: 364703 | BA107: 1
C108: SHERLOC 24 | D108: 40.55 | K108: BALAO | Q108: DORADO | S108: 22 | AD108: HUMMER | AE108: 115 | AF108: AUSTIN | AG108: 26 | AH108: MINI 1000 | AI108: 1 | AJ108: COUPE | AL108: 22 | AS108: SUECIA | AZ108: 364716 | BA108: 1
C109: SHERLOC 36 | D109: 36.34 | K109: BALSAS | Q109: HABANO | S109: 23 | AD109: HYUNDAI | AE109: 10 | AF109: AUSTIN | AG109: 26 | AH109: MINI CORD | AI109: 2 | AJ109: COUPE | AL109: 23 | AS109: VENEZUELA | AZ109: 364717 | BA109: 1
C110: SHERLOC 48 | D110: 31.9 | K110: BALZAR | Q110: MARRÓN | S110: 24 | AD110: INTERNATIONAL | AE110: 44 | AF110: BMW | AG110: 2 | AH110: 318 | AI110: 1 | AJ110: SEDAN | AL110: 24 | AS110: YUGOSLAVIA | AZ110: 364719 | BA110: 16
C111: SHERLOC 60 | D111: 29.23 | F111: =+E106/48 -> 0 | K111: BAÑOS | Q111: STRATO | S111: 25 | AD111: ISUZU | AE111: 34 | AF111: BMW | AG111: 2 | AH111: 330I | AI111: 2 | AJ111: SEDAN | AL111: 25 | AZ111: 365001 | BA111: 16
C112: HUNTER LOJACK 12 | D112: 41.888 | K112: BIBLIAN | Q112: VIOLETA | S112: 26 | AD112: JAGUAR | AE112: 35 | AF112: BMW | AG112: 2 | AH112: 328I | AI112: 3 | AJ112: SEDAN | AL112: 26 | AZ112: 365147 | BA112: 16
C113: HUNTER LOJACK 24 | D113: 33.6 | K113: BOLÍVAR | Q113: TURQUESA | S113: 27 | AD113: JEEP | AE113: 71 | AF113: BMW | AG113: 2 | AH113: 325I | AI113: 4 | AJ113: SEDAN | AL113: 27 | AZ113: 365166 | BA113: 1
C114: HUNTER LOJACK 36 | D114: 30.24 | K114: BUENA FE | Q114: ROSADO | S114: 28 | AD114: KIA | AE114: 11 | AF114: BMW | AG114: 2 | AH114: X5 4X4 5P | AI114: 5 | AJ114: JEEP | AL114: 28 | AZ114: 365167 | BA114: 1
C115: HUNTER LOJACK 48 | D115: 29.12 | K115: CALUMA | Q115: ARENA | S115: 29 | AD115: LADA | AE115: 13 | AF115: BMW | AG115: 2 | AH115: 528I | AI115: 6 | AJ115: SEDAN | AL115: 29 | AZ115: 365168 | BA115: 16
C116: HUNTER LOJACK 60 | D116: 28 | K116: CAÑAR | Q116: ILUSIÓN | S116: 30 | AD116: LANCIA | AE116: 36 | AF116: BMW | AG116: 2 | AH116: 316I | AI116: 7 | AJ116: SEDAN | AL116: 30 | AZ116: 365169 | BA116: 1
C117: H. MONITOREO BASICO 12 | D117: =632.5/12 -> 52.70833333 | K117: CARIAMANGA | Q117: ROBLE | S117: 31 | AD117: LAND ROVER | AE117: 12 | AF117: BMW | AG117: 2 | AH117: 320I | AI117: 8 | AJ117: SEDAN | AL117: 31 | AZ117: 365181 | BA117: 1
C118: H. MONITOREO BASICO 24 | D118: =977.5/24 -> 40.72916667 | K118: CATAMAYO | Q118: MOSTAZA | S118: 32 | AD118: LEXUS | AE118: 37 | AF118: BMW | AG118: 2 | AH118: 323I | AI118: 9 | AJ118: SEDAN | AZ118: 365420 | BA118: 1
C119: H. MONITOREO BASICO 36 | D119: =1322.5/36 -> 36.73611111 | K119: CAYAMBE | AD119: LINCOLN | AE119: 38 | AF119: BMW | AG119: 2 | AH119: 523I | AI119: 10 | AJ119: SEDAN | AZ119: 365421 | BA119: 16
C120: H. MONITOREO BASICO 48 | D120: =1667.5/48 -> 34.73958333 | K120: CELICA | AD120: MAHINDRA | AE120: 101 | AF120: BMW | AG120: 2 | AH120: 525I | AI120: 11 | AJ120: SEDAN | AZ120: 365422 | BA120: 1
C121: H. MONITOREO BASICO 60 | D121: =2012.5/60 -> 33.54166667 | K121: CHICA | AD121: MAZDA | AE121: 14 | AF121: BMW | AG121: 2 | AH121: Z3 | AI121: 12 | AJ121: COUPE | AZ121: 365423 | BA121: 16
C122: H. MONITOREO BÁSICO GOLDEN 12 | D122: =788.98/12 -> 65.74833333 | K122: CHIMBO | AD122: MERCEDES BENZ | AE122: 15 | AF122: BMW | AG122: 2 | AH122: Z8 | AI122: 13 | AJ122: COUPE | AZ122: 365424 | BA122: 16
C123: H. MONITOREO BÁSICO GOLDEN 24 | D123: =1133.98/24 -> 47.24916667 | K123: CHONE | AD123: MITSUBISHI | AE123: 16 | AF123: BMW | AG123: 2 | AH123: M3 | AI123: 14 | AJ123: COUPE | AZ123: 365425 | BA123: 1
C124: H. MONITOREO BÁSICO GOLDEN 36 | D124: =1478.98/36 -> 41.08277778 | K124: COCA | AD124: NISSAN | AE124: 17 | AF124: BMW | AG124: 2 | AH124: M5 | AI124: 15 | AJ124: COUPE | AZ124: 365427 | BA124: 1
C125: H. MONITOREO BÁSICO GOLDEN 48 | D125: =1823.98/48 -> 37.99958333 | K125: CONCORDIA | AD125: OLDSMOBIL | AE125: 73 | AF125: BMW | AG125: 2 | AH125: 520 | AI125: 16 | AJ125: SEDAN | AZ125: 365428 | BA125: 1
C126: H. MONITOREO BÁSICO GOLDEN 60 | D126: =2168.98/60 -> 36.14966667 | K126: COTACACHI | AD126: OLTCIT | AE126: 40 | AF126: BMW | AG126: 2 | AH126: 530IA | AI126: 17 | AJ126: SEDAN | AZ126: 365429 | BA126: 16
C127: MARESA SATELITAL BY HUNTER 12 | D127: =616/12 -> 51.33333333 | K127: CUMBAYÁ | AD127: PEUGEOT | AE127: 18 | AF127: BMW | AG127: 2 | AH127: 318TI | AI127: 18 | AJ127: COUPE | AZ127: 365453 | BA127: 16
C128: MARESA SATELITAL BY HUNTER 24 | D128: =968.8/24 -> 40.36666667 | K128: DAULE | AD128: PLYMOUTH | AE128: 54 | AF128: BMW | AG128: 2 | AH128: 740 | AI128: 19 | AJ128: SEDAN | AZ128: 365454 | BA128: 16
C129: MARESA SATELITAL BY HUNTER 36 | D129: =1338.4/36 -> 37.17777778 | K129: DURAN | AD129: PORCHE | AE129: 56 | AF129: BMW | AG129: 2 | AH129: 1602 | AI129: 21 | AJ129: SEDAN
C130: MARESA SATELITAL BY HUNTER 48 | D130: =1708/48 -> 35.58333333 | K130: EL ÁNGEL | AD130: RENAULT | AE130: 19 | AF130: BMW | AG130: 2 | AH130: 366 | AI130: 22 | AJ130: SEDAN
C131: MARESA SATELITAL BY HUNTER 60 | D131: =2077.6/60 -> 34.62666667 | K131: EL CARMEN | AD131: SAAB | AE131: 45 | AF131: BMW | AG131: 2 | AH131: 530 | AI131: 23 | AJ131: SEDAN
K132: EL CORAZÓN | AD132: SAEHAN | AE132: 57 | AF132: BMW | AG132: 2 | AH132: 540 | AI132: 25 | AJ132: SEDAN
K133: EL EMPALME | AD133: SAMSUNG | AE133: 74 | AF133: BMW | AG133: 2 | AH133: 318IS | AI133: 26 | AJ133: SEDAN
K134: EL GUABO | AD134: SANGYONG | AE134: 42 | AF134: BMW | AG134: 2 | AH134: 318I LIMUSIN | AI134: 27 | AJ134: SEDAN
K135: EL NARANJAL | AD135: SEAT | AE135: 105 | AF135: BMW | AG135: 2 | AH135: Z4 | AI135: 29 | AJ135: COUPE
C136: Con dispositivo Concesionario | K136: EL TAMBO | AD136: SKODA | AE136: 20 | AF136: BMW | AG136: 2 | AH136: X3 | AI136: 31 | AJ136: JEEP
C137: H. MONITOREO BASICO | K137: EL TRIUNFO | AD137: SUBARU | AE137: 58 | AF137: BUICK | AG137: 81 | AH137: CENTURY | AI137: 1 | AJ137: SEDAN
C138: H. MONITOREO BÁSICO GOLDEN | K138: ESMERALDAS | AD138: SUZUKI | AE138: 60 | AF138: CHANGAN | AG138: 83 | AH138: SC1011CG | AI138: 1 | AJ138: PICK-UP
C139: Con dispositivo Concesionario | K139: FLAVIO ALFARO | AD139: TALBOT | AE139: 59 | AF139: CHANGAN | AG139: 83 | AH139: MINI VAN | AI139: 2 | AJ139: MINI VAN
K140: GIRÓN | AD140: TATA | AE140: 75 | AF140: CHANGAN | AG140: 83 | AH140: SC1018AA100 | AI140: 3 | AJ140: PICK-UP
K141: GONZALO PIZARRO | AD141: TOYOTA | AE141: 21 | AF141: CHEVROLET | AG141: 3 | AH141: FORSA | AI141: 1 | AJ141: COUPE
K142: GUALACEO | AD142: VOLKSWAGEN | AE142: 22 | AF142: CHEVROLET | AG142: 3 | AH142: CORSA 3P | AI142: 2 | AJ142: COUPE
K145: GUALAQUIZA | AD145: VOLVO | AE145: 23 | AF145: CHEVROLET | AG145: 3 | AH145: CORSA 4P | AI145: 3 | AJ145: SEDAN
K146: GUAMOTE | AD146: WORLDSTAR | AE146: 99 | AF146: CHEVROLET | AG146: 3 | AH146: CORSA 5P | AI146: 4 | AJ146: SEDAN
K147: GUANO | AD147: ZASTAVA | AE147: 61 | AF147: CHEVROLET | AG147: 3 | AH147: CORSA SPORT | AI147: 5 | AJ147: SEDAN
K148: GUARANDA | AF148: CHEVROLET | AG148: 3 | AH148: CORSA P/U 1600 | AI148: 6 | AJ148: PICK-UP
K149: GUAYLLABAMBA | AF149: CHEVROLET | AG149: 3 | AH149: SAN REMO | AI149: 7 | AJ149: SEDAN
K150: HUAQUILLAS | AF150: CHEVROLET | AG150: 3 | AH150: MONZA | AI150: 8 | AJ150: SEDAN
K151: JIPIJAPA | AF151: CHEVROLET | AG151: 3 | AH151: SWIFT | AI151: 9 | AJ151: SEDAN
K152: JUNIN | AF152: CHEVROLET | AG152: 3 | AH152: SWIFT EMOTION | AI152: 10 | AJ152: SEDAN
K153: LA CONCORDIA | AF153: CHEVROLET | AG153: 3 | AH153: ESTEEM 4P | AI153: 11 | AJ153: SEDAN
K154: LA MANA | AF154: CHEVROLET | AG154: 3 | AH154: ESTEEM S. WAGON | AI154: 12 | AJ154: STATION WAGON
K155: LA UNIÓN | AF155: CHEVROLET | AG155: 3 | AH155: LUV 4X2 C/S | AI155: 13 | AJ155: PICK-UP
K156: LAGO AGRIO | AF156: CHEVROLET | AG156: 3 | AH156: LUV 4X2 D/C | AI156: 14 | AJ156: PICK-UP
K157: LAS LAJAS | AF157: CHEVROLET | AG157: 3 | AH157: LUV 4X4 C/S | AI157: 15 | AJ157: PICK-UP
C158: Valor del vehículo | D158: =+$F$34 -> 10000 | K158: LASSO | AF158: CHEVROLET | AG158: 3 | AH158: LUV 4X4 D/C | AI158: 16 | AJ158: PICK-UP
C159: INSCRIPCIÓN EN REGISTRO MERCANTIL | K159: LATACUNGA | AF159: CHEVROLET | AG159: 3 | AH159: VITARA 3P | AI159: 17 | AJ159: JEEP
C160: VALOR BASE POR CONTRATO | D160: 25 | K160: LIBERTAD | AF160: CHEVROLET | AG160: 3 | AH160: VITARA 5P | AI160: 18 | AJ160: JEEP
C161: CESIÓN DE DERECHOS | D161: 30 | K161: LIMÓN | AF161: CHEVROLET | AG161: 3 | AH161: RODEO 4X2 | AI161: 19 | AJ161: JEEP
C162: 0.5% SOBRE LA CUANTÍA DEL CONTRATO (PRECIO DE VENTA). | D162: =D158*0.5% -> 50 | K162: QUEVEDO | AF162: CHEVROLET | AG162: 3 | AH162: RODEO 4X4 | AI162: 20 | AJ162: JEEP
C163: TOTAL | D163: =SUM(D160:D162) -> 105 | K163: LOS BANCOS | AF163: CHEVROLET | AG163: 3 | AH163: CAVALIER STD | AI163: 21 | AJ163: SEDAN
C164: OTROS GASTOS | K164: MACARA | AF164: CHEVROLET | AG164: 3 | AH164: CAVALIER DLX | AI164: 22 | AJ164: SEDAN
C165: TRAMITACIÓN LEGAL, SERVICIO DE TERCERO | D165: =162.4+30 -> 192.4 | K165: MACAS | AF165: CHEVROLET | AG165: 3 | AH165: SÚPER CARRY PICK UP | AI165: 23 | AJ165: PICK-UP
K166: MACHACHI | AF166: CHEVROLET | AG166: 3 | AH166: GRAND BLAZER 3P | AI166: 26 | AJ166: JEEP
C167: Tarifa gastos legales | D167: =+D163+D165 -> 297.4 | K167: MÉNDEZ | AF167: CHEVROLET | AG167: 3 | AH167: GRAND BLAZER 5P | AI167: 27 | AJ167: JEEP
K168: MILAGRO | AF168: CHEVROLET | AG168: 3 | AH168: TAHOE 5P. USA | AI168: 28 | AJ168: JEEP
K169: MIRA | AF169: CHEVROLET | AG169: 3 | AH169: BLAZER 4X4 | AI169: 29 | AJ169: JEEP
K170: MOCACHE | AF170: CHEVROLET | AG170: 3 | AH170: BLAZER 4X2 | AI170: 30 | AJ170: JEEP
C171: Declaración unico vehículo | K171: MONTALVO | AF171: CHEVROLET | AG171: 3 | AH171: SILVERADO | AI171: 31 | AJ171: PICK-UP
C172: Si | K172: MONTECRISTI | AF172: CHEVROLET | AG172: 3 | AH172: CHEYENNE | AI172: 32 | AJ172: PICK-UP
C173: No | K173: MONTUFAR | AF173: CHEVROLET | AG173: 3 | AH173: TROOPER 2.300 3P. | AI173: 33 | AJ173: JEEP
K174: MUISNE | AF174: CHEVROLET | AG174: 3 | AH174: TROOPER 3P | AI174: 34 | AJ174: JEEP
K175: NARANJITO | AF175: CHEVROLET | AG175: 3 | AH175: TROOPER 5P | AI175: 35 | AJ175: JEEP
K176: NUEVA LOJA | AF176: CHEVROLET | AG176: 3 | AH176: GRAND VITARA 3P | AI176: 36 | AJ176: JEEP
K177: OTAVALO | AF177: CHEVROLET | AG177: 3 | AH177: GRAND VITARA 5P | AI177: 37 | AJ177: JEEP
K178: PAJAN | AF178: CHEVROLET | AG178: 3 | AH178: ALTO 5P | AI178: 38 | AJ178: SEDAN
K179: PALENQUE | AF179: CHEVROLET | AG179: 3 | AH179: ASTRA 2P | AI179: 39 | AJ179: COUPE
K180: PALESTINA | AF180: CHEVROLET | AG180: 3 | AH180: ASTRA 4P | AI180: 40 | AJ180: SEDAN
K181: PALLATANGA | AF181: CHEVROLET | AG181: 3 | AH181: ASKA | AI181: 41 | AJ181: SEDAN
K182: PASAJE | AF182: CHEVROLET | AG182: 3 | AH182: ASTROVAN | AI182: 42 | AJ182: MINI VAN
K183: PASTAZA | AF183: CHEVROLET | AG183: 3 | AH183: CHEVETTE | AI183: 44 | AJ183: COUPE
K184: PATATE | AF184: CHEVROLET | AG184: 3 | AH184: CONDOR | AI184: 45 | AJ184: COUPE
K185: PAUTE | AF185: CHEVROLET | AG185: 3 | AH185: CORSICA | AI185: 46 | AJ185: SEDAN
K186: PEDERNALES | AF186: CHEVROLET | AG186: 3 | AH186: GEMINI | AI186: 47 | AJ186: SEDAN
K187: PEDRO CARBO | AF187: CHEVROLET | AG187: 3 | AH187: IMPALA | AI187: 48 | AJ187: SEDAN
K188: PELILEO | AF188: CHEVROLET | AG188: 3 | AH188: VEGA | AI188: 49 | AJ188: SEDAN
K189: PIFO | AF189: CHEVROLET | AG189: 3 | AH189: ZAFIRA 5P | AI189: 51 | AJ189: MINI VAN
K190: PILLARO | AF190: CHEVROLET | AG190: 3 | AH190: CARGO | AI190: 52 | AJ190: PICK-UP
K191: PIMAMPIRO | AF191: CHEVROLET | AG191: 3 | AH191: CHEVY VAN | AI191: 53 | AJ191: MINI VAN
K192: PINDAL | AF192: CHEVROLET | AG192: 3 | AH192: MINI BLAZER 4X2 | AI192: 55 | AJ192: JEEP
K193: PIÑAS | AF193: CHEVROLET | AG193: 3 | AH193: MINI BLAZER 4X4 | AI193: 56 | AJ193: JEEP
K194: PLAYAS | AF194: CHEVROLET | AG194: 3 | AH194: CITATION | AI194: 57 | AJ194: SEDAN
K195: PORTOVELO | AF195: CHEVROLET | AG195: 3 | AH195: C10 | AI195: 60 | AJ195: PICK-UP
K196: PUEBLO VIEJO | AF196: CHEVROLET | AG196: 3 | AH196: CREW CAB 4X4 | AI196: 65 | AJ196: PICK-UP
K197: PUEMBO | AF197: CHEVROLET | AG197: 3 | AH197: C1500 | AI197: 66 | AJ197: PICK-UP
K198: PUERTO CAYO | AF198: CHEVROLET | AG198: 3 | AH198: AVALANCHE | AI198: 68 | AJ198: PICK-UP
K199: PUERTO LOPEZ | AF199: CHEVROLET | AG199: 3 | AH199: CORSA EVOLUTION | AI199: 70 | AJ199: SEDAN
K200: PUERTO QUITO | AF200: CHEVROLET | AG200: 3 | AH200: TRAIL BLAZER 4X4 | AI200: 71 | AJ200: JEEP
K201: PUJILI | AF201: CHEVROLET | AG201: 3 | AH201: TRAIL BLAZER 4X2 | AI201: 72 | AJ201: JEEP
K202: PUYANGO | AF202: CHEVROLET | AG202: 3 | AH202: ASTRA 3P | AI202: 73 | AJ202: COUPE
K203: PUYO | AF203: CHEVROLET | AG203: 3 | AH203: CORSA WIND | AI203: 74 | AJ203: SEDAN
K204: QUERO | AF204: CHEVROLET | AG204: 3 | AH204: JIMNY 4X4 | AI204: 75 | AJ204: JEEP
K205: QUININDE | AF205: CHEVROLET | AG205: 3 | AH205: SPARK | AI205: 76 | AJ205: SEDAN
K206: QUITO | AF206: CHEVROLET | AG206: 3 | AH206: CHEYENNE 4X2 | AI206: 77 | AJ206: PICK-UP
K207: RIOBAMBA | AF207: CHEVROLET | AG207: 3 | AH207: CHEYENNE 4X4 | AI207: 78 | AJ207: PICK-UP
K208: ROCAFUERTE | AF208: CHEVROLET | AG208: 3 | AH208: OPTRA | AI208: 79 | AJ208: SEDAN
K209: SALCEDO | AF209: CHEVROLET | AG209: 3 | AH209: GRAND VITARA 5P XL7 4X4 | AI209: 80 | AJ209: JEEP
K210: SALINAS | AF210: CHEVROLET | AG210: 3 | AH210: GRAND VITARA 5P XL7 4X2 | AI210: 81 | AJ210: JEEP
K211: SAMBORONDON | AF211: CHEVROLET | AG211: 3 | AH211: LUV D-MAX C/S 4X2 | AI211: 82 | AJ211: PICK-UP
K212: SAME | AF212: CHEVROLET | AG212: 3 | AH212: LUV D-MAX C/D 4X2 | AI212: 83 | AJ212: PICK-UP
K213: SAN CAMILO | AF213: CHEVROLET | AG213: 3 | AH213: LUV D-MAX C/S 4X4 | AI213: 84 | AJ213: PICK-UP
K214: SAN GABRIEL | AF214: CHEVROLET | AG214: 3 | AH214: LUV D-MAX C/D 4X4 | AI214: 85 | AJ214: PICK-UP
K215: SAN LORENZO | AF215: CHRYSLER | AG215: 4 | AH215: GRAND CHEROKEE LAREDO 4X4 | AI215: 1 | AJ215: JEEP
K216: SAN MIGUEL | AF216: CHRYSLER | AG216: 4 | AH216: GRAND CHEROKEE LIMITED 4X4 | AI216: 2 | AJ216: JEEP
K217: SAN RAFAEL | AF217: CHRYSLER | AG217: 4 | AH217: CHEROKEE LAREDO | AI217: 3 | AJ217: JEEP
K218: SAN VICENTE | AF218: CHRYSLER | AG218: 4 | AH218: NEON 2000CC | AI218: 4 | AJ218: SEDAN
K219: SANGOLQUI | AF219: CHRYSLER | AG219: 4 | AH219: CARAVAN | AI219: 5 | AJ219: MINI VAN
K220: SANTA ANA | AF220: CHRYSLER | AG220: 4 | AH220: GRAND CARAVAN | AI220: 6 | AJ220: MINI VAN
K221: SANTA CRUZ | AF221: CHRYSLER | AG221: 4 | AH221: LEBARON | AI221: 7 | AJ221: SEDAN
K222: SANTA ELENA | AF222: CHRYSLER | AG222: 4 | AH222: LIBERTY | AI222: 8 | AJ222: JEEP
K223: SANTA ISABEL | AF223: CHRYSLER | AG223: 4 | AH223: STRATUS | AI223: 9 | AJ223: SEDAN
K224: SANTA ISABEL | AF224: CHRYSLER | AG224: 4 | AH224: RENEGADO | AI224: 10 | AJ224: JEEP
K225: SANTA ROSA | AF225: CHRYSLER | AG225: 4 | AH225: TOWN & COUNTRY | AI225: 11 | AJ225: PICK-UP
K226: SANTO DOMINGO | AF226: CITROEN | AG226: 28 | AH226: AX GT | AI226: 1 | AJ226: SEDAN
K227: SAQUISILI | AF227: CITROEN | AG227: 28 | AH227: BERLINGO | AI227: 2 | AJ227: SEDAN
K228: SARAGURO | AF228: CITROEN | AG228: 28 | AH228: SAXO SX | AI228: 3 | AJ228: SEDAN
K229: SHUSHUFINDI | AF229: CITROEN | AG229: 28 | AH229: XANTIA | AI229: 4 | AJ229: SEDAN
K230: SIGCHOS | AF230: CITROEN | AG230: 28 | AH230: XSARA VTS | AI230: 5 | AJ230: SEDAN
K231: SIGSIG | AF231: CITROEN | AG231: 28 | AH231: ZX VOLCANE | AI231: 6 | AJ231: SEDAN
K232: SUCRE | AF232: CITROEN | AG232: 28 | AH232: ALLUER 5P | AI232: 7 | AJ232: STATION WAGON
K233: SUCUA | AF233: CITROEN | AG233: 28 | AH233: XSARA PICASSO | AI233: 8 | AJ233: SEDAN
K234: SUCUMBIOS | AF234: CITROEN | AG234: 28 | AH234: C3 SX 14I | AI234: 9 | AJ234: SEDAN
K235: TABABELA | AF235: DACIA | AG235: 29 | AH235: 1304 DROP-SIDE | AI235: 1 | AJ235: PICK-UP
K236: TABACUNDO | AF236: DACIA | AG236: 29 | AH236: BREAK | AI236: 2 | AJ236: SEDAN
K237: TAMBILLO | AF237: DACIA | AG237: 29 | AH237: RAPSODIE | AI237: 3 | AJ237: SEDAN
K238: TENA | AF238: DAEWOO | AG238: 5 | AH238: TICO 5P. SX | AI238: 1 | AJ238: SEDAN
K239: TONSUPA | AF239: DAEWOO | AG239: 5 | AH239: MATIZ | AI239: 2 | AJ239: SEDAN
K240: TOSAGUA | AF240: DAEWOO | AG240: 5 | AH240: LANOS 4P | AI240: 3 | AJ240: SEDAN
K241: TULCAN | AF241: DAEWOO | AG241: 5 | AH241: LANOS 5P | AI241: 4 | AJ241: SEDAN
K242: TUMBACO | AF242: DAEWOO | AG242: 5 | AH242: LANOS 3P | AI242: 5 | AJ242: SEDAN
K243: URCUQUI | AF243: DAEWOO | AG243: 5 | AH243: NUBIRA | AI243: 6 | AJ243: SEDAN
K244: URDANETA | AF244: DAEWOO | AG244: 5 | AH244: TACUMA | AI244: 7 | AJ244: MINI VAN
K245: VENTANAS | AF245: DAEWOO | AG245: 5 | AH245: ESPERO | AI245: 8 | AJ245: SEDAN
K246: VINCES | AF246: DAEWOO | AG246: 5 | AH246: RACER | AI246: 9 | AJ246: SEDAN
K247: YAGUACHI | AF247: DAEWOO | AG247: 5 | AH247: CIELO | AI247: 10 | AJ247: SEDAN
K248: ZAMORA | AF248: DAEWOO | AG248: 5 | AH248: COACH | AI248: 11 | AJ248: SEDAN
K249: ZAPOTILLO | AF249: DAEWOO | AG249: 5 | AH249: DAMAS | AI249: 12 | AJ249: SEDAN
K250: ZARUMA | AF250: DAEWOO | AG250: 5 | AH250: KORANDO | AI250: 13 | AJ250: JEEP
AF251: DAEWOO | AG251: 5 | AH251: MUSSO | AI251: 14 | AJ251: JEEP
AF252: DAEWOO | AG252: 5 | AH252: LEGANZA | AI252: 15 | AJ252: SEDAN
... 437 more rows

Sheet FORM
G3: FINANCIAMIENTO VEHICULAR
G5: SOLICITUD
C9: FECHA DE COMPRA / VENTA: | F9: =+COTIZADOR!F10 -> 2025-02-07 | G9: AAAA/MM/DD
C12: DATOS DEL CONCESIONARIO
C14: CONCESIONARIO: | F14: CONCESIONARIO
C16: REPRESENTANTE LEGAL: | F16: FABIAN VARGAS
C18: NACIONALIDAD DEL REPRESENTANTE LEGAL: | F18: ECUATORIANO
C20: CARGO: | F20: GERENTE GENERAL
C22: RUC: | F22: XXXXXXXXXX001
C24: DIRECCIÓN: | F24: AV 10 DE AGOSTO Y AV GASPAR DE VILLAROEL ESQUINA
C26: CIUDAD: | F26: GUAYAQUIL
C28: NOMBRES Y APELLIDOS DEL VENDEDOR: | F28: =COTIZADOR!$F$14 -> NOMBRE Y APELLIDO
C30: CÉDULA DEL VENDEDOR: | F30: XXXXXXXXXX
C32: DATOS DEL CLIENTE
C34: APELLIDOS: | F34: =COTIZADOR!$F$18 -> PRIMER APELLIDO | L34: =IF(COTIZADOR!L18=0," ",COTIZADOR!L18) -> SEGUNDO APELLIDO | Q34: =IF(L34=0,F34,CONCATENATE(F34," ",L34)) -> PRIMER APELLIDO SEGUNDO APELLIDO
C36: NOMBRES: | F36: =COTIZADOR!$F$20 -> PRIMER NOMBRE | L36: =IF(COTIZADOR!L20=0," ",COTIZADOR!L20) -> SEGUNDO NOMBRE | Q36: =IF(L36=0,F36,CONCATENATE(F36," ",L36)) -> PRIMER NOMBRE SEGUNDO NOMBRE
C38: TELEFONOS: | F38: =COTIZADOR!$F$22 -> CELULAR | L38: =COTIZADOR!$L$22 -> CONVENCIONAL | Q38: =CONCATENATE(Q36," ",Q34) -> PRIMER NOMBRE SEGUNDO NOMBRE PRIMER APELLIDO SEGUNDO APELLIDO
C40: No. DE IDENTIFICACION: | F40: XXXXXXXXXX
C42: NACIONALIDAD DEL CLIENTE: | F42: ECUATORIANA
C44: GENERO: | F44: MASCULINO
C46: DIRECCION: | F46: CARCELEN
C48: CIUDAD: | F48: GUAYAQUIL
C50: E-MAIL: | F50: Correo
C52: LUGAR DE TRABAJO: | F52: QUITO
C54: DIRECCIÓN DE TRABAJO: | F54: AMAZONAS Y AYORA
C56: TELEFONO DE TRABAJO: | F56: 022000000
C58: PROFESIÓN U OCUPACIÓN: | F58: INGENIERO
C60: EL VEHÍCULO ES DE ÚNICO USO FAMILIAR O PERSONAL: | F60: Si
C62: DATOS INFORMATIVOS DEL CONYUGE
C64: APELLIDOS: | Q64: =IF(L64=0,F64,CONCATENATE(F64," ",L64)) -> 0
C66: NOMBRES: | Q66: =IF(L66=0,F66,CONCATENATE(F66," ",L66)) -> 0
C68: No. CEDULA / RUC:
C70: NACIONALIDAD DEL CONYUGUE:
C72: LUGAR DE TRABAJO:
C74: PROFESIÓN U OCUPACIÓN:
C76: DATOS VEHÍCULO
C78: MARCA: | F78: HYUNDAI
C80: MODELO: | F80: ACCENT
C82: CLASE: | F82: AUTOMOVIL
C85: TIPO: | F85: SEDAN
C87: AÑO: | F87: 2022
C89: COLOR: | F89: ROJO
C91: No. DE MOTOR: | F91: BU456792826RE7
C93: No. DE CHASIS: | F93: CG5342892U
C95: PAIS DE ORIGEN: | F95: KOREA
C97: TONELAJE: | F97: 0,45
C99: CILINDRAJE: | F99: 2000
C101: VALOR DE FINANCIAMIENTO DEL VEHICULO: | F101: =COTIZADOR!F34 -> 10000
C103: VALOR DE ENTRADA | F103: =COTIZADOR!F41 -> 0
C105: PLAZO FINANCIAMIENTO (Meses) | F105: =COTIZADOR!F42 -> 24
C107: TASA DE INTERES VIGENTE: | F107: =+COTIZADOR!F48 -> 0.156
C109: CUOTA VEHICULO: | F109: =+'TABLA AMORT.'!C14 -> 488.7237536
C111: REQUIERE DISPOSITIVO | F111: =IF(F101>15000,"REQUIERE DISPOSITIVO DE RASTREO","NO APLICA DISPOSITIVO") -> NO APLICA DISPOSITIVO
C113: DISPOSITIVO | F113: =COTIZADOR!F51 -> Con dispositivo Concesionario
C115: DISPOSITIVO | F115: =CONCATENATE(F113," ",IF(F105<=12,12,IF(AND(F105>12,F105<=24),24,IF(AND(F105>24,F105<=36),36,IF(AND(F105>36,F105<=48),48,60))))) -> Con dispositivo Concesionario 24
C117: GASTOS LEGALIZACIÓN | F117: =+COTIZADOR!F57 -> 527.715
C119: CONDUCTORES DEL VEHICULO
C121: NOMBRE Y APELLIDO | F121: FECHA NACIMIENTO | I121: GENERO | L121: ESTADO CIVIL | O121: % DE USO
C129: VALORES ADICIONALES
C131: CUOTA MENSUAL SEGURO VEHICULAR PRIMER AÑO | F131: =+COTIZADOR!F55 -> 125.5838333
C133: GASTOS LEGALES | F133: =FIDEVAL!C8 -> 527.715
C135: PLAZO GASTOS LEGALES | F135: =COTIZADOR!F53 -> CORRIENTE
C137: CUOTA GASTOS LEGALES | F137: =+COTIZADOR!F57 -> 527.715
C139: CUOTA MENSUAL RASTREO SATELITAL | F139: =IF(F113="Con dispositivo Concesionario",0,VLOOKUP(F115,COTIZADOR!$C$87:$D$131,2,FALSE)) -> 0
C141: CUOTA MENSUAL SEGURO DESGRAVAMEN | F141: 0,099% MENSUAL SOBRE EL SALDO DE LA TARJETA DE CREDITO
C143: CUOTA MENSUAL FINANCIAMIENTO VEHICULO | F143: =+F109 -> 488.7237536
C145: FORMA DE PAGO
C147: No. DE TARJETA ENCRIPTADA: | F147: XXXXXXXXXX1234
C151: No. DE TARJETA: | F151: 360860 | L151: 1234567890
C153: FECHA DE CADUCIDAD: | F153: 2023-07-01 | L153: =TODAY() -> 2025-02-07
C171: DISPOSITIVOS | G171: AÑO | I171: VALOR LEGALES | K171: CIUDAD | L171: Rep Legal | M171: CI REP LEG | N171: MES | Q171: COLOR | S171: CÓDIGO COLOR | T171: TASA | U171: PRIMA NETA | V171: SÚPER BANCOS | W171: DERECHOS EMISIÓN | X171: IVA | Y171: PRIMA TOTAL | Z171: MARCA SISE | AA171: CÓDIGO MARCA SISE | AB171: MARCA | AC171: CÓDIGO MARCA SISE | AD171: MODELO | AE171: CÓDIGO MODELO SISE | AF171: TIPO | AG171: GENERO | AH171: DIA | AI171: ESTADO CIVIL | AJ171: % USO | AK171: AÑOS | AL171: GASTOS LEGALES | AO171: PAÍS DE ORIGEN | AQ171: % ENTRADA | AR171: % RESTANTE | AS171: VALOR RESTANTE | AT171: CALCULO DÍAS | AV171: BIN | AW171: FECHA PAGO | AX171: EXTRAER1 | AY171: EXTRAER 2 | AZ171: ES VEHICULO FAMILIAR
C172: TRACKLINK INTERACTIVO 12 | D172: 46.57333333 | E172: 469.28 | G172: 2008 | I172: 37.184 | K172: QUITO | L172: SILVIA JANNETH LEMA TAIPE | M172: 1715916951 | N172: ENERO | Q172: AMARILLO | S172: 1 | T172: =(3.85/12)/100 -> 0.003208333333 | U172: =ROUND(([6]FORM!$F$105*$T$172),2) -> 0 | V172: =ROUND(($U$172*3.5%),2) -> 0 | W172: 0.04 | X172: =+[6]CERT!I18 -> 0.0048 | Y172: =+[6]CERT!I20 -> 0.0448 | Z172: ALFA ROMEO | AA172: 24 | AB172: ALFA ROMEO | AC172: 24 | AD172: 146 | AE172: 1 | AF172: SEDAN | AG172: MASCULINO | AH172: 1 | AI172: SOLTERO | AJ172: 5 | AK172: 1 | AL172: CORRIENTE | AO172: ALEMANIA | AQ172: =+F103/F101 -> 0 | AR172: =100%-AQ172 -> 1 | AS172: =+F101-F103 -> 10000 | AT172: =+F105/12 -> 2 | AV172: 360041 | AW172: 16 | AX172: =MID(F151,1,6) -> 360860 | AY172: =MID(F151,7,8) ->  | AZ172: SI
C173: TRACKLINK INTERACTIVO 24 | D173: 33.55333333 | E173: 592.48 | G173: 2009 | I173: 17.92 | K173: GUAYAQUIL | L173: ERNEST FERDINAND VALLEJO COBOS | M173: 0926201138 | N173: FEBRERO | Q173: AZUL | S173: 2 | T173: =(3.25/12)/100 -> 0.002708333333 | U173: =ROUND(([6]FORM!$F$105*$T$173),2) -> 0 | V173: =ROUND(($U$173*3.5%),2) -> 0 | W173: 0.04 | X173: =+[6]CERT!I18 -> 0.0048 | Y173: =+Y172 -> 0.0448 | Z173: AUDI | AA173: 1 | AB173: ALFA ROMEO | AC173: 24 | AD173: 155 | AE173: 2 | AF173: SEDAN | AG173: FEMENINO | AH173: 2 | AI173: CASADO | AJ173: 10 | AK173: 2 | AL173: 3 MESES SIN INTERESES | AO173: ARGENTINA | AV173: 361329 | AW173: 16 | AZ173: NO
C174: TRACKLINK INTERACTIVO 36 | D174: 29.21333333 | E174: 715.68 | G174: 2010 | I174: 1.2 | K174: CUENCA | L174: ERNEST FERDINAND VALLEJO COBOS | M174: 0926201138 | N174: MARZO | Q174: BEIGE | S174: 3 | T174: =(2.5/12)/100 -> 0.002083333333 | U174: =ROUND(([6]FORM!$F$105*$T$174),2) -> 0 | V174: =ROUND(($U$174*3.5%),2) -> 0 | W174: 0.04 | X174: =+[6]CERT!I18 -> 0.0048 | Y174: =+Y173 -> 0.0448 | Z174: AUSTIN | AA174: 26 | AB174: ALFA ROMEO | AC174: 24 | AD174: 156 | AE174: 3 | AF174: SEDAN | AH174: 3 | AI174: VIUDO | AJ174: 15 | AK174: 3 | AO174: BRASIL | AV174: 361349 | AW174: 1
C175: TRACKLINK INTERACTIVO 48 | D175: 27.04333333 | E175: 962.08 | G175: 2011 | I175: 1000 | K175: AMBATO | L175: SILVIA JANNETH LEMA TAIPE | M175: 1715916951 | N175: ABRIL | Q175: BLANCO | S175: 4 | Z175: BMW | AA175: 2 | AB175: ALFA ROMEO | AC175: 24 | AD175: 165 | AE175: 4 | AF175: SEDAN | AH175: 4 | AI175: DIVORCIADO | AJ175: 20 | AK175: 4 | AO175: CANADÁ | AV175: 362062 | AW175: 1
C176: TRACKLINK INTERACTIVO 60 | D176: 25.74133333 | E176: 1208.48 | G176: 2012 | I176: 1.12 | K176: IBARRA | L176: SILVIA JANNETH LEMA TAIPE | M176: 1715916951 | N176: MAYO | Q176: CAFÉ | S176: 5 | Z176: BUICK | AA176: 81 | AB176: ALFA ROMEO | AC176: 24 | AD176: 166 | AE176: 5 | AF176: SEDAN | AH176: 5 | AI176: UNIÓN LIBRE | AJ176: 25 | AO176: CHINA | AV176: 362620 | AW176: 1
C177: TRACKLINK CONTROL 12 | D177: 54.04 | E177: 388.64 | F177: 419 | G177: 2013 | I177: 44.8 | K177: MANTA | L177: ERNEST FERDINAND VALLEJO COBOS | M177: 0926201138 | N177: JUNIO | Q177: CELESTE | S177: 6 | Z177: CHANGAN | AA177: 83 | AB177: ALFA ROMEO | AC177: 24 | AD177: SPIDER | AE177: 6 | AF177: SEDAN | AH177: 6 | AJ177: 30 | AO177: CHILE | AV177: 362621 | AW177: 1
C178: TRACKLINK CONTROL 24 | D178: 39.62 | E178: 511.84 | G178: 2014 | I178: =IF(F101>4000,F101-4000,44.8) -> 6000 | K178: MACHALA | L178: ERNEST FERDINAND VALLEJO COBOS | M178: 0926201138 | N178: JULIO | Q178: CREMA | S178: 7 | Z178: CHEVROLET | AA178: 3 | AB178: ALFA ROMEO | AC178: 24 | AD178: 33 | AE178: 7 | AF178: SEDAN | AH178: 7 | AJ178: 35 | AO178: COLOMBIA | AV178: 362622 | AW178: 16
C179: TRACKLINK CONTROL 36 | D179: 34.81333333 | E179: 635.04 | G179: 2015 | I179: 22.4 | K179: LOJA | L179: ERNEST FERDINAND VALLEJO COBOS | M179: 0926201138 | N179: AGOSTO | Q179: FUCSIA | S179: 8 | Z179: CHRYSLER | AA179: 4 | AB179: ALFA ROMEO | AC179: 24 | AD179: GIO | AE179: 8 | AF179: SEDAN | AH179: 8 | AJ179: 40 | AO179: ECUADOR | AV179: 363999 | AW179: 16
C180: TRACKLINK CONTROL 48 | D180: 32.41 | E180: 881.44 | G180: 2016 | I180: 56 | K180: PORTOVIEJO | L180: ERNEST FERDINAND VALLEJO COBOS | M180: 0926201138 | N180: SEPTIEMBRE | Q180: GRIS | S180: 9 | Z180: CITROEN | AA180: 28 | AB180: ALFA ROMEO | AC180: 24 | AD180: 164 | AE180: 9 | AF180: SEDAN | AH180: 9 | AJ180: 45 | AO180: ESPAÑA | AV180: 364170 | AW180: 16
C181: TRACKLINK CONTROL 60 | D181: 30.968 | E181: 1127.84 | F181: =+E176/48 -> 25.17666667 | K181: ALAMOR | N181: OCTUBRE | Q181: LILA | S181: 10 | Z181: DACIA | AA181: 29 | AB181: ALFA ROMEO | AC181: 24 | AD181: GTV3 | AE181: 10 | AF181: SEDAN | AH181: 10 | AJ181: 50 | AO181: ESTADOS UNIDOS | AV181: 364171 | AW181: 1
C182: TRACKLINK CONTROL PLUS 12 | D182: 69.90666667 | E182: 586.88 | F182: =+(E177*1.05) -> 408.072 | K182: ALAUSI | N182: NOVIEMBRE | Q182: MORADO | S182: 11 | Z182: DAEWOO | AA182: 5 | AB182: ALFA ROMEO | AC182: 24 | AD182: 145 | AE182: 11 | AF182: COUPE | AH182: 11 | AJ182: 55 | AO182: NORUEGA | AV182: 364172 | AW182: 16
C183: TRACKLINK CONTROL PLUS 24 | D183: 47.50666667 | E183: 736.96 | K183: AMBUQUI | N183: DICIEMBRE | Q183: NARANJA | S183: 12 | Z183: DAIHATSU | AA183: 6 | AB183: ALFA ROMEO | AC183: 24 | AD183: 147 | AE183: 12 | AF183: SEDAN | AH183: 12 | AJ183: 60 | AO183: HONG KONG | AV183: 364173 | AW183: 1
C184: TRACKLINK CONTROL PLUS 36 | D184: 40.04 | E184: 887.04 | K184: ANTONIO ANTE | Q184: NEGRO | S184: 13 | Z184: DATSUN | AA184: 30 | AB184: AUDI | AC184: 1 | AD184: 80 | AE184: 1 | AF184: SEDAN | AH184: 13 | AJ184: 65 | AO184: FRANCIA | AV184: 364190 | AW184: 16
C185: TRACKLINK CONTROL PLUS 48 | D185: 36.30666667 | E185: 1187.2 | K185: ANTONIO ANTE | Q185: PLATA | S185: 14 | Z185: DEER | AA185: 111 | AB185: AUDI | AC185: 1 | AD185: A3 | AE185: 2 | AF185: SEDAN | AH185: 14 | AJ185: 70 | AO185: INGLATERRA | AV185: 364234 | AW185: 16
C186: TRACKLINK CONTROL PLUS 60 | D186: 34.06666667 | E186: 1487.36 | F186: =+E181/48 -> 23.49666667 | K186: ARCHIDONA | Q186: PLATEADO | S186: 15 | Z186: DODGE | AA186: 31 | AB186: AUDI | AC186: 1 | AD186: TT COUPE 1.8 QUATTRO | AE186: 3 | AF186: SEDAN | AH186: 15 | AJ186: 75 | AO186: ITALIA | AV186: 364261 | AW186: 16
C187: TRACKLINK CONTROL TOTAL 12 | D187: 88.57333333 | E187: 506.24 | F187: =+(E182*1.05) -> 616.224 | K187: ARENILLAS | Q187: PLOMO | S187: 16 | Z187: FIAT | AA187: 7 | AB187: AUDI | AC187: 1 | AD187: A4 | AE187: 4 | AF187: SEDAN | AH187: 16 | AJ187: 80 | AO187: JAPÓN | AV187: 364444 | AW187: 1
C188: TRACKLINK CONTROL TOTAL 24 | D188: 60.15333333 | E188: 656.32 | K188: ATACAMES | Q188: ROJO | S188: 17 | Z188: FORD | AA188: 8 | AB188: AUDI | AC188: 1 | AD188: A6 | AE188: 5 | AF188: SEDAN | AH188: 17 | AJ188: 85 | AO188: COREA | AV188: 364522 | AW188: 16
C189: TRACKLINK CONTROL TOTAL 36 | D189: 50.68 | E189: 806.4 | K189: ATUNTAQUI | Q189: VERDE | S189: 18 | Z189: FSO | AA189: 77 | AB189: AUDI | AC189: 1 | AD189: 808 | AE189: 6 | AF189: SEDAN | AH189: 18 | AJ189: 90 | AO189: MÉXICO | AV189: 364700 | AW189: 1
C190: TRACKLINK CONTROL TOTAL 48 | D190: 45.94333333 | E190: 1106.56 | K190: AZOGUEZ | Q190: VINO | S190: 19 | Z190: GMC | AA190: 70 | AB190: AUDI | AC190: 1 | AD190: A 62.8 | AE190: 7 | AF190: SEDAN | AH190: 19 | AJ190: 95 | AO190: PERU | AV190: 364701 | AW190: 16
C191: TRACKLINK CONTROL TOTAL 60 | D191: 43.10133333 | E191: 1406.72 | F191: =+E186/48 -> 30.98666667 | K191: BABAHOYO | Q191: BRONCE | S191: 20 | Z191: GREAT WALL | AA191: 108 | AB191: AUDI | AC191: 1 | AD191: ALLROAD | AE191: 8 | AF191: SEDAN | AH191: 20 | AJ191: 100 | AO191: REPUBLICA CHECA | AV191: 364702 | AW191: 16
C192: SHERLOC 12 | D192: 53.2 | E192: =+D203*24 -> 940.8 | F192: =+(E187*1.05) -> 531.552 | I192: 870 | K192: BAHÍA DE CARÁQUEZ | Q192: CHAMPAGNE | S192: 21 | Z192: HONDA | AA192: 9 | AB192: AUDI | AC192: 1 | AD192: A8 | AE192: 9 | AF192: SEDAN | AH192: 21 | AO192: RUSIA | AV192: 364703 | AW192: 1
C193: SHERLOC 24 | D193: 40.55 | E193: =+D204*24 -> 860.16 | K193: BALAO | Q193: DORADO | S193: 22 | Z193: HUMMER | AA193: 115 | AB193: AUSTIN | AC193: 26 | AD193: MINI 1000 | AE193: 1 | AF193: COUPE | AH193: 22 | AO193: SUECIA | AV193: 364716 | AW193: 1
C194: SHERLOC 36 | D194: 36.34 | E194: =+D205*24 -> 806.4 | K194: BALSAS | Q194: HABANO | S194: 23 | Z194: HYUNDAI | AA194: 10 | AB194: AUSTIN | AC194: 26 | AD194: MINI CORD | AE194: 2 | AF194: COUPE | AH194: 23 | AO194: VENEZUELA | AV194: 364717 | AW194: 1
C195: SHERLOC 48 | D195: 31.9 | E195: =+D206*36 -> 1169.28 | K195: BALZAR | Q195: MARRÓN | S195: 24 | Z195: INTERNATIONAL | AA195: 44 | AB195: BMW | AC195: 2 | AD195: 318 | AE195: 1 | AF195: SEDAN | AH195: 24 | AO195: YUGOSLAVIA | AV195: 364719 | AW195: 16
C196: SHERLOC 60 | D196: 29.23 | E196: =+D207*48 -> 3064.32 | F196: =+E191/48 -> 29.30666667 | K196: BAÑOS | Q196: STRATO | S196: 25 | Z196: ISUZU | AA196: 34 | AB196: BMW | AC196: 2 | AD196: 330I | AE196: 2 | AF196: SEDAN | AH196: 25 | AV196: 365001 | AW196: 16
C197: HUNTER LOJACK 12 | D197: 41.888 | K197: BIBLIAN | Q197: VIOLETA | S197: 26 | Z197: JAGUAR | AA197: 35 | AB197: BMW | AC197: 2 | AD197: 328I | AE197: 3 | AF197: SEDAN | AH197: 26 | AV197: 365147 | AW197: 16
C198: HUNTER LOJACK 24 | D198: 33.6 | K198: BOLÍVAR | Q198: TURQUESA | S198: 27 | Z198: JEEP | AA198: 71 | AB198: BMW | AC198: 2 | AD198: 325I | AE198: 4 | AF198: SEDAN | AH198: 27 | AV198: 365166 | AW198: 1
C199: HUNTER LOJACK 36 | D199: 30.24 | K199: BUENA FE | Q199: ROSADO | S199: 28 | Z199: KIA | AA199: 11 | AB199: BMW | AC199: 2 | AD199: X5 4X4 5P | AE199: 5 | AF199: JEEP | AH199: 28 | AV199: 365167 | AW199: 1
C200: HUNTER LOJACK 48 | D200: 29.12 | K200: CALUMA | Q200: ARENA | S200: 29 | Z200: LADA | AA200: 13 | AB200: BMW | AC200: 2 | AD200: 528I | AE200: 6 | AF200: SEDAN | AH200: 29 | AV200: 365168 | AW200: 16
C201: HUNTER LOJACK 60 | D201: 28 | K201: CAÑAR | Q201: ILUSIÓN | S201: 30 | Z201: LANCIA | AA201: 36 | AB201: BMW | AC201: 2 | AD201: 316I | AE201: 7 | AF201: SEDAN | AH201: 30 | AV201: 365169 | AW201: 1
C202: H. MONITOREO BASICO 12 | D202: 51.52 | K202: CARIAMANGA | Q202: ROBLE | S202: 31 | Z202: LAND ROVER | AA202: 12 | AB202: BMW | AC202: 2 | AD202: 320I | AE202: 8 | AF202: SEDAN | AH202: 31 | AV202: 365181 | AW202: 1
C203: H. MONITOREO BASICO 24 | D203: 39.2 | K203: CATAMAYO | Q203: MOSTAZA | S203: 32 | Z203: LEXUS | AA203: 37 | AB203: BMW | AC203: 2 | AD203: 323I | AE203: 9 | AF203: SEDAN | AV203: 365420 | AW203: 1
C204: H. MONITOREO BASICO 36 | D204: 35.84 | K204: CAYAMBE | Z204: LINCOLN | AA204: 38 | AB204: BMW | AC204: 2 | AD204: 523I | AE204: 10 | AF204: SEDAN | AV204: 365421 | AW204: 16
C205: H. MONITOREO BASICO 48 | D205: 33.6 | K205: CELICA | Z205: MAHINDRA | AA205: 101 | AB205: BMW | AC205: 2 | AD205: 525I | AE205: 11 | AF205: SEDAN | AV205: 365422 | AW205: 1
C206: H. MONITOREO BASICO 60 | D206: 32.48 | K206: CHICA | Z206: MAZDA | AA206: 14 | AB206: BMW | AC206: 2 | AD206: Z3 | AE206: 12 | AF206: COUPE | AV206: 365423 | AW206: 16
C207: H. MONITOREO BÁSICO GOLDEN 12 | D207: 63.84 | K207: CHIMBO | Z207: MERCEDES BENZ | AA207: 15 | AB207: BMW | AC207: 2 | AD207: Z8 | AE207: 13 | AF207: COUPE | AV207: 365424 | AW207: 16
C208: H. MONITOREO BÁSICO GOLDEN 24 | D208: 45.92
C209: H. MONITOREO BÁSICO GOLDEN 36 | D209: 40.32 | K209: CHONE | Z209: MITSUBISHI | AA209: 16 | AB209: BMW | AC209: 2 | AD209: M3 | AE209: 14 | AF209: COUPE | AV209: 365425 | AW209: 1
C210: H. MONITOREO BÁSICO GOLDEN 48 | D210: 36.96 | K210: COCA | Z210: NISSAN | AA210: 17 | AB210: BMW | AC210: 2 | AD210: M5 | AE210: 15 | AF210: COUPE | AV210: 365427 | AW210: 1
C211: H. MONITOREO BÁSICO GOLDEN 60 | D211: 35.168 | K211: CONCORDIA | Z211: OLDSMOBIL | AA211: 73 | AB211: BMW | AC211: 2 | AD211: 520 | AE211: 16 | AF211: SEDAN | AV211: 365428 | AW211: 1
C212: MARESA SATELITAL BY HUNTER 12 | D212: 50.4 | K212: COTACACHI | Z212: OLTCIT | AA212: 40 | AB212: BMW | AC212: 2 | AD212: 530IA | AE212: 17 | AF212: SEDAN | AV212: 365429 | AW212: 16
C213: MARESA SATELITAL BY HUNTER 24 | D213: 40.32 | K213: CUMBAYÁ | Z213: PEUGEOT | AA213: 18 | AB213: BMW | AC213: 2 | AD213: 318TI | AE213: 18 | AF213: COUPE | AV213: 365453 | AW213: 16
C214: MARESA SATELITAL BY HUNTER 36 | D214: 36.96 | K214: DAULE | Z214: PLYMOUTH | AA214: 54 | AB214: BMW | AC214: 2 | AD214: 740 | AE214: 19 | AF214: SEDAN | AV214: 365454 | AW214: 16
C215: MARESA SATELITAL BY HUNTER 48 | D215: 35.84 | K215: DURAN | Z215: PORCHE | AA215: 56 | AB215: BMW | AC215: 2 | AD215: 1602 | AE215: 21 | AF215: SEDAN
C216: MARESA SATELITAL BY HUNTER 60 | D216: 34.72 | K216: EL ÁNGEL | Z216: RENAULT | AA216: 19 | AB216: BMW | AC216: 2 | AD216: 366 | AE216: 22 | AF216: SEDAN
K217: EL CARMEN | Z217: SAAB | AA217: 45 | AB217: BMW | AC217: 2 | AD217: 530 | AE217: 23 | AF217: SEDAN
K218: EL CORAZÓN | Z218: SAEHAN | AA218: 57 | AB218: BMW | AC218: 2 | AD218: 540 | AE218: 25 | AF218: SEDAN
K219: EL EMPALME | Z219: SAMSUNG | AA219: 74 | AB219: BMW | AC219: 2 | AD219: 318IS | AE219: 26 | AF219: SEDAN
K220: EL GUABO | Z220: SANGYONG | AA220: 42 | AB220: BMW | AC220: 2 | AD220: 318I LIMUSIN | AE220: 27 | AF220: SEDAN
C221: Sin Dispositivo | K221: EL NARANJAL | Z221: SEAT | AA221: 105 | AB221: BMW | AC221: 2 | AD221: Z4 | AE221: 29 | AF221: COUPE
C222: TRACKLINK INTERACTIVO | K222: EL TAMBO | Z222: SKODA | AA222: 20 | AB222: BMW | AC222: 2 | AD222: X3 | AE222: 31 | AF222: JEEP
C223: TRACKLINK CONTROL | K223: EL TRIUNFO | Z223: SUBARU | AA223: 58 | AB223: BUICK | AC223: 81 | AD223: CENTURY | AE223: 1 | AF223: SEDAN
C224: TRACKLINK CONTROL PLUS | K224: ESMERALDAS | Z224: SUZUKI | AA224: 60 | AB224: CHANGAN | AC224: 83 | AD224: SC1011CG | AE224: 1 | AF224: PICK-UP
C225: TRACKLINK CONTROL TOTAL | K225: FLAVIO ALFARO | Z225: TALBOT | AA225: 59 | AB225: CHANGAN | AC225: 83 | AD225: MINI VAN | AE225: 2 | AF225: MINI VAN
C226: SHERLOC | K226: GIRÓN | Z226: TATA | AA226: 75 | AB226: CHANGAN | AC226: 83 | AD226: SC1018AA100 | AE226: 3 | AF226: PICK-UP
C227: HUNTER LOJACK | K227: GONZALO PIZARRO | Z227: TOYOTA | AA227: 21 | AB227: CHEVROLET | AC227: 3 | AD227: FORSA | AE227: 1 | AF227: COUPE
C228: H. MONITOREO BASICO | K228: GUALACEO | Z228: VOLKSWAGEN | AA228: 22 | AB228: CHEVROLET | AC228: 3 | AD228: CORSA 3P | AE228: 2 | AF228: COUPE
C229: H. MONITOREO BÁSICO GOLDEN | K229: GUALAQUIZA | Z229: VOLVO | AA229: 23 | AB229: CHEVROLET | AC229: 3 | AD229: CORSA 4P | AE229: 3 | AF229: SEDAN
C230: MARESA SATELITAL BY HUNTER | K230: GUAMOTE | Z230: WORLDSTAR | AA230: 99 | AB230: CHEVROLET | AC230: 3 | AD230: CORSA 5P | AE230: 4 | AF230: SEDAN
K231: GUANO | Z231: ZASTAVA | AA231: 61 | AB231: CHEVROLET | AC231: 3 | AD231: CORSA SPORT | AE231: 5 | AF231: SEDAN
K232: GUARANDA | AB232: CHEVROLET | AC232: 3 | AD232: CORSA P/U 1600 | AE232: 6 | AF232: PICK-UP
K233: GUAYLLABAMBA | AB233: CHEVROLET | AC233: 3 | AD233: SAN REMO | AE233: 7 | AF233: SEDAN
K234: HUAQUILLAS | AB234: CHEVROLET | AC234: 3 | AD234: MONZA | AE234: 8 | AF234: SEDAN
K235: JIPIJAPA | AB235: CHEVROLET | AC235: 3 | AD235: SWIFT | AE235: 9 | AF235: SEDAN
K236: JUNIN | AB236: CHEVROLET | AC236: 3 | AD236: SWIFT EMOTION | AE236: 10 | AF236: SEDAN
K237: LA CONCORDIA | AB237: CHEVROLET | AC237: 3 | AD237: ESTEEM 4P | AE237: 11 | AF237: SEDAN
K238: LA MANA | AB238: CHEVROLET | AC238: 3 | AD238: ESTEEM S. WAGON | AE238: 12 | AF238: STATION WAGON
K239: LA UNIÓN | AB239: CHEVROLET | AC239: 3 | AD239: LUV 4X2 C/S | AE239: 13 | AF239: PICK-UP
K240: LAGO AGRIO | AB240: CHEVROLET | AC240: 3 | AD240: LUV 4X2 D/C | AE240: 14 | AF240: PICK-UP
K241: LAS LAJAS | AB241: CHEVROLET | AC241: 3 | AD241: LUV 4X4 C/S | AE241: 15 | AF241: PICK-UP
K242: LASSO | AB242: CHEVROLET | AC242: 3 | AD242: LUV 4X4 D/C | AE242: 16 | AF242: PICK-UP
K243: LATACUNGA | AB243: CHEVROLET | AC243: 3 | AD243: VITARA 3P | AE243: 17 | AF243: JEEP
K244: LIBERTAD | AB244: CHEVROLET | AC244: 3 | AD244: VITARA 5P | AE244: 18 | AF244: JEEP
K245: LIMÓN | AB245: CHEVROLET | AC245: 3 | AD245: RODEO 4X2 | AE245: 19 | AF245: JEEP
K246: QUEVEDO | AB246: CHEVROLET | AC246: 3 | AD246: RODEO 4X4 | AE246: 20 | AF246: JEEP
K247: LOS BANCOS | AB247: CHEVROLET | AC247: 3 | AD247: CAVALIER STD | AE247: 21 | AF247: SEDAN
K248: MACARA | AB248: CHEVROLET | AC248: 3 | AD248: CAVALIER DLX | AE248: 22 | AF248: SEDAN
K249: MACAS | AB249: CHEVROLET | AC249: 3 | AD249: SÚPER CARRY PICK UP | AE249: 23 | AF249: PICK-UP
K250: MACHACHI | AB250: CHEVROLET | AC250: 3 | AD250: GRAND BLAZER 3P | AE250: 26 | AF250: JEEP
K251: MÉNDEZ | AB251: CHEVROLET | AC251: 3 | AD251: GRAND BLAZER 5P | AE251: 27 | AF251: JEEP
K252: MILAGRO | AB252: CHEVROLET | AC252: 3 | AD252: TAHOE 5P. USA | AE252: 28 | AF252: JEEP
K253: MIRA | AB253: CHEVROLET | AC253: 3 | AD253: BLAZER 4X4 | AE253: 29 | AF253: JEEP
K254: MOCACHE | AB254: CHEVROLET | AC254: 3 | AD254: BLAZER 4X2 | AE254: 30 | AF254: JEEP
K255: MONTALVO | AB255: CHEVROLET | AC255: 3 | AD255: SILVERADO | AE255: 31 | AF255: PICK-UP
K256: MONTECRISTI | AB256: CHEVROLET | AC256: 3 | AD256: CHEYENNE | AE256: 32 | AF256: PICK-UP
K257: MONTUFAR | AB257: CHEVROLET | AC257: 3 | AD257: TROOPER 2.300 3P. | AE257: 33 | AF257: JEEP
K258: MUISNE | AB258: CHEVROLET | AC258: 3 | AD258: TROOPER 3P | AE258: 34 | AF258: JEEP
K259: NARANJITO | AB259: CHEVROLET | AC259: 3 | AD259: TROOPER 5P | AE259: 35 | AF259: JEEP
K260: NUEVA LOJA | AB260: CHEVROLET | AC260: 3 | AD260: GRAND VITARA 3P | AE260: 36 | AF260: JEEP
K261: OTAVALO | AB261: CHEVROLET | AC261: 3 | AD261: GRAND VITARA 5P | AE261: 37 | AF261: JEEP
K262: PAJAN | AB262: CHEVROLET | AC262: 3 | AD262: ALTO 5P | AE262: 38 | AF262: SEDAN
K263: PALENQUE | AB263: CHEVROLET | AC263: 3 | AD263: ASTRA 2P | AE263: 39 | AF263: COUPE
K264: PALESTINA | AB264: CHEVROLET | AC264: 3 | AD264: ASTRA 4P | AE264: 40 | AF264: SEDAN
K265: PALLATANGA | AB265: CHEVROLET | AC265: 3 | AD265: ASKA | AE265: 41 | AF265: SEDAN
K266: PASAJE | AB266: CHEVROLET | AC266: 3 | AD266: ASTROVAN | AE266: 42 | AF266: MINI VAN
K267: PASTAZA | AB267: CHEVROLET | AC267: 3 | AD267: CHEVETTE | AE267: 44 | AF267: COUPE
K268: PATATE | AB268: CHEVROLET | AC268: 3 | AD268: CONDOR | AE268: 45 | AF268: COUPE
K269: PAUTE | AB269: CHEVROLET | AC269: 3 | AD269: CORSICA | AE269: 46 | AF269: SEDAN
K270: PEDERNALES | AB270: CHEVROLET | AC270: 3 | AD270: GEMINI | AE270: 47 | AF270: SEDAN
K271: PEDRO CARBO | AB271: CHEVROLET | AC271: 3 | AD271: IMPALA | AE271: 48 | AF271: SEDAN
K272: PELILEO | AB272: CHEVROLET | AC272: 3 | AD272: VEGA | AE272: 49 | AF272: SEDAN
K273: PIFO | AB273: CHEVROLET | AC273: 3 | AD273: ZAFIRA 5P | AE273: 51 | AF273: MINI VAN
K274: PILLARO | AB274: CHEVROLET | AC274: 3 | AD274: CARGO | AE274: 52 | AF274: PICK-UP
K275: PIMAMPIRO | AB275: CHEVROLET | AC275: 3 | AD275: CHEVY VAN | AE275: 53 | AF275: MINI VAN
K276: PINDAL | AB276: CHEVROLET | AC276: 3 | AD276: MINI BLAZER 4X2 | AE276: 55 | AF276: JEEP
K277: PIÑAS | AB277: CHEVROLET | AC277: 3 | AD277: MINI BLAZER 4X4 | AE277: 56 | AF277: JEEP
K278: PLAYAS | AB278: CHEVROLET | AC278: 3 | AD278: CITATION | AE278: 57 | AF278: SEDAN
K279: PORTOVELO | AB279: CHEVROLET | AC279: 3 | AD279: C10 | AE279: 60 | AF279: PICK-UP
K280: PUEBLO VIEJO | AB280: CHEVROLET | AC280: 3 | AD280: CREW CAB 4X4 | AE280: 65 | AF280: PICK-UP
K281: PUEMBO | AB281: CHEVROLET | AC281: 3 | AD281: C1500 | AE281: 66 | AF281: PICK-UP
K282: PUERTO CAYO | AB282: CHEVROLET | AC282: 3 | AD282: AVALANCHE | AE282: 68 | AF282: PICK-UP
K283: PUERTO LOPEZ | AB283: CHEVROLET | AC283: 3 | AD283: CORSA EVOLUTION | AE283: 70 | AF283: SEDAN
K284: PUERTO QUITO | AB284: CHEVROLET | AC284: 3 | AD284: TRAIL BLAZER 4X4 | AE284: 71 | AF284: JEEP
K285: PUJILI | AB285: CHEVROLET | AC285: 3 | AD285: TRAIL BLAZER 4X2 | AE285: 72 | AF285: JEEP
K286: PUYANGO | AB286: CHEVROLET | AC286: 3 | AD286: ASTRA 3P | AE286: 73 | AF286: COUPE
K287: PUYO | AB287: CHEVROLET | AC287: 3 | AD287: CORSA WIND | AE287: 74 | AF287: SEDAN
K288: QUERO | AB288: CHEVROLET | AC288: 3 | AD288: JIMNY 4X4 | AE288: 75 | AF288: JEEP
K289: QUININDE | AB289: CHEVROLET | AC289: 3 | AD289: SPARK | AE289: 76 | AF289: SEDAN
K290: QUITO | AB290: CHEVROLET | AC290: 3 | AD290: CHEYENNE 4X2 | AE290: 77 | AF290: PICK-UP
K291: RIOBAMBA | AB291: CHEVROLET | AC291: 3 | AD291: CHEYENNE 4X4 | AE291: 78 | AF291: PICK-UP
K292: ROCAFUERTE | AB292: CHEVROLET | AC292: 3 | AD292: OPTRA | AE292: 79 | AF292: SEDAN
K293: SALCEDO | AB293: CHEVROLET | AC293: 3 | AD293: GRAND VITARA 5P XL7 4X4 | AE293: 80 | AF293: JEEP
K294: SALINAS | AB294: CHEVROLET | AC294: 3 | AD294: GRAND VITARA 5P XL7 4X2 | AE294: 81 | AF294: JEEP
K295: SAMBORONDON | AB295: CHEVROLET | AC295: 3 | AD295: LUV D-MAX C/S 4X2 | AE295: 82 | AF295: PICK-UP
K296: SAME | AB296: CHEVROLET | AC296: 3 | AD296: LUV D-MAX C/D 4X2 | AE296: 83 | AF296: PICK-UP
K297: SAN CAMILO | AB297: CHEVROLET | AC297: 3 | AD297: LUV D-MAX C/S 4X4 | AE297: 84 | AF297: PICK-UP
K298: SAN GABRIEL | AB298: CHEVROLET | AC298: 3 | AD298: LUV D-MAX C/D 4X4 | AE298: 85 | AF298: PICK-UP
K299: SAN LORENZO | AB299: CHRYSLER | AC299: 4 | AD299: GRAND CHEROKEE LAREDO 4X4 | AE299: 1 | AF299: JEEP
K300: SAN MIGUEL | AB300: CHRYSLER | AC300: 4 | AD300: GRAND CHEROKEE LIMITED 4X4 | AE300: 2 | AF300: JEEP
... 469 more rows

Sheet DECLARACIÓN
A2: DECLARACION
A4: =+FORM!F26 -> GUAYAQUIL | J4: , | K4: =+FORM!F9 -> 2025-02-07
A8: Señores:
A9: BANCO DINERS CLUB DEL ECUADOR S.A.
A10: Presente
A13: De mis consideraciones:
A15: Yo, | C15: =FORM!Q38 -> PRIMER NOMBRE SEGUNDO NOMBRE PRIMER APELLIDO SEGUNDO APELLIDO | Z15: , portador de la cédula de
A16: ciudadanía No. | F16: =+FORM!F40 -> XXXXXXXXXX | T16: , declaro que el vehículo:
A18: Marca: | F18: =+FORM!F78 -> HYUNDAI
A19: Modelo: | F19: =+FORM!F80 -> ACCENT
A20: Año: | F20: =+FORM!F87 -> 2022
A21: Que he adquirido a la compañía: | L21: =+FORM!F14 -> CONCESIONARIO | Z21: mediante contrato de
A22: adhesión al fideicomiso, suscrito con fecha: | P22: =+K4 -> 2025-02-07 | Y22: =CONCATENATE(","," ",+FORM!F60) -> , Si | AA22: es de único uso
A23: personal o familiar.
A25: Declaro asimismo que la información aquí consignada es veraz y exacta, sobre lo cual asumo toda la respon-
A26: sabilidad que fuere del caso.
A28: Atentamente,
A34: =+C15 -> PRIMER NOMBRE SEGUNDO NOMBRE PRIMER APELLIDO SEGUNDO APELLIDO
A35: No. CEDULA
A36: =+FORM!F40 -> XXXXXXXXXX

Sheet AUT. CARGO
A2: AUTORIZACIÓN DE CARGO
A4: =+FORM!F26 -> GUAYAQUIL | J4: , | K4: =+FORM!F9 -> 2025-02-07
A8: Señores:
A9: BANCO DINERS CLUB DEL ECUADOR S.A.
A10: Presente
A13: De mis consideraciones:
A15: Yo, | C15: =FORM!Q38 -> PRIMER NOMBRE SEGUNDO NOMBRE PRIMER APELLIDO SEGUNDO APELLIDO | Z15: , en calidad de titular principal
A16: de la tarjeta de crédito Diners Club No. | N16: =FORM!F147 -> XXXXXXXXXX1234 | T16: , autorizo libre y voluntariamente a BANCO DINERS
A17: CLUB DEL ECUADOR S.A., se cargue a mi señalada tarjeta el valor de US$ | Y17: =+FORM!$F$133 -> 527.715 | AC17: que corresponde
A18: al costo de gastos notariales y costo de adhesión al fideicomiso, valor que me comprometo a cancelar de manera incondicional en la siguiente forma:
J20: X | K20: =+FORM!F135 -> CORRIENTE
A22: Expresamente me obligo a no revocar la presente autorización, y a la vez libero de toda responsabilidad a BANCO DINERS CLUB DEL ECUADOR S.A. por los cargos efectuados en base a la presente autorización. De igual manera autorizo que en caso de pérdida, hurto, robo o cualquier otra circunstancia, que merezca ser cambiado mi actual número de tarjeta, se cuente con el nuevo que se me asigne para cancelar todos mis consumos de manera incondicional, de tal forma que mis obligaciones no queden en mora por los conceptos antes mencionados y hasta su total cancelación.
A27: Atentamente,
A33: =+C15 -> PRIMER NOMBRE SEGUNDO NOMBRE PRIMER APELLIDO SEGUNDO APELLIDO
A34: No. CEDULA
A35: =+FORM!F40 -> XXXXXXXXXX

Sheet TABLA AMORT.
A1: FINANCIAMIENTO DE VEHÍCULOS - Tabla de amortización | Y1: 364171 | Z1: 1
A2: Tabla simple de amortizaciones que cubre n períodos de pago de un préstamo. | Y2: 365166 | Z2: 1
A3: 1) Para usar la tabla, simplemente cambie cualquiera de los valores en el área "Datos iniciales". | Y3: 365167 | Z3: 1
A4: 2) Para imprimir la tabla, elija Imprimir en el menú Archivo. El área de impresión ya está definida. | Y4: 365169 | Z4: 1
A5: Datos iniciales | Y5: 365181 | Z5: 1
Y6: 365420 | Z6: 1
A7: Monto: | C7: =+FORM!F101-FORM!F103 -> 10000 | D7: Nombre del Cliente: | F7: =CONCATENATE(FORM!Q36," ",FORM!Q34) -> PRIMER NOMBRE SEGUNDO NOMBRE PRIMER APELLIDO SEGUNDO APELLIDO | Y7: 365422 | Z7: 1
A8: Tasa de interés anual: | C8: =+FORM!F107 -> 0.156 | D8: Cédula de Identidad: | F8: =+FORM!F40 -> XXXXXXXXXX | Y8: 365425 | Z8: 1
A9: Plazo, en años: | C9: =+FORM!F105/12 -> 2 | D9: Fecha del crédito: | F9: =+FORM!F9 -> 2025-02-07 | Y9: 365427 | Z9: 1
A10: Pagos por año: | C10: 12 | D10: Vencimiento primer pago: | F10: =+F9+30 -> 2025-03-09 | Y10: 365428 | Z10: 1
O11: 1 | Y11: 365023 | Z11: 1
O12: 1.5 | Y12: 365025 | Z12: 1
O13: 2 | Y13: 365026 | Z13: 1
B14: CUOTA MENSUAL | C14: =PMT(ROUNDDOWN((Tasa_interés_anual/360*365),4)/12,Plazo_en_años*Pagos_por_año,-Monto_préstamo) -> 488.7237536 | E14: NUMERO DE CUOTAS: | F14: =Pagos_por_año*Plazo_en_años -> 24 | I14: =+Pago_calculado*Pagos_por_año -> 5864.685044 | O14: 3 | Y14: 364173 | Z14: 1
Y15: 362620 | Z15: 1
B16: Usar el pago: | C16: =(IF(Pago_introducido=0,Pago_calculado,Pago_introducido)) -> 488.7237536 | F16: ="Saldo inicial antes del pago: "&TEXT(Núm_primer_pago,"0")&":" -> Saldo inicial antes del pago: 1: | G16: =FV(Tasa_interés_anual/Pagos_por_año,Núm_primer_pago-1,Pago_a_usar,-Monto_préstamo) -> 10000 | I16: =SUM(Saldo_inicial_tabla+G44) -> 11729.37009 | K16: =+Pago_a_usar*Pagos_por_año*Plazo_en_años -> 11729.37009 | Y16: 362621 | Z16: 1
B17: Primer pago en la tabla: | C17: 1 | F17: ="Interés acumulado antes del pago: "&TEXT(Núm_primer_pago,"0")&":" -> Interés acumulado antes del pago: 1: | G17: =Pago_a_usar*(Núm_primer_pago-1)-(Monto_préstamo-Saldo_inicial_tabla) -> 0 | K17: =+K16-Saldo_inicial_tabla -> 1729.370087 | O17: 15 de c/mes | Y17: 362062 | Z17: 1
A18: Tabla | O18: 30 de c/mes | Y18: 364444 | Z18: 1
B19: Fecha de | C19: Saldo | F19: Saldo | G19: Interés | O19: =+B21-$F$9 -> 30 | P19: =+B21-F9 -> 30 | Y19: 361349 | Z19: 1
A20: Nº | B20: Pago* | C20: inicial | D20: Interés | E20: Capital | F20: final | G20: acumulado | O20: 30 | P20: 30 | Y20: 364700 | Z20: 1
A21: =IF(Núm_primer_pago<Total_de_pagos,Núm_primer_pago,"") -> 1 | B21: =Mostrar.fecha -> 2025-03-09 | C21: =IF(A21<>"",IF(Saldo_inicial_tabla<0,0,Saldo_inicial_tabla),"") -> 10000 | D21: =Interés -> 131.75 | E21: =Capital -> 356.9737536 | F21: =Saldo.final -> 9643.026246 | G21: =IF(A21<>"",D21+Interés_previo_tabla,"") -> 131.75 | I21: =+Pago_a_usar*25000 -> 12218093.84 | O21: =+O20-O19 -> 0 | P21: =+P20-P19 -> 0 | Y21: 364703 | Z21: 1
A22: =Núm.pago -> 2 | B22: =Mostrar.fecha -> 2025-04-09 | C22: =Saldo.inicial -> 9643.026246 | D22: =Interés -> 127.0468708 | E22: =Capital -> 361.6768828 | F22: =Saldo.final -> 9281.349364 | G22: =Interés.acumulado -> 258.7968708 | K22: ene | L22: 2001 | O22: =+Monto_préstamo -> 10000 | P22: =Monto_préstamo -> 10000 | Y22: 364717 | Z22: 1
A23: =Núm.pago -> 3 | B23: 2025-05-09 | C23: =Saldo.inicial -> 9281.349364 | D23: =Interés -> 122.2817779 | E23: =Capital -> 366.4419758 | F23: 8914.907388 | G23: =Interés.acumulado -> 381.0786487 | K23: feb | O23: =+Tasa_interés_anual -> 0.156 | P23: =Tasa_interés_anual -> 0.156 | Y23: 364716 | Z23: 1
A24: 4 | B24: 2025-06-09 | C24: =Saldo.inicial -> 8914.907388 | D24: =Interés -> 117.4539048 | E24: 371.2698488 | F24: 8543.637539 | G24: 498.5325535 | K24: mar | O24: 360 | P24: 360 | Y24: 360138 | Z24: 1
A25: 5 | B25: 2025-07-09 | C25: 8543.637539 | D25: =Interés -> 112.5624246 | E25: 376.1613291 | F25: 8167.47621 | G25: 611.0949781 | K25: abr | Y25: 360218 | Z25: 1
A26: 6 | B26: 2025-08-09 | C26: 8167.47621 | D26: =Interés -> 107.6064991 | E26: 381.1172546 | F26: 7786.358955 | G26: 718.7014771 | K26: abr | Y26: 360219 | Z26: 1
A27: 7 | B27: 2025-09-09 | C27: 7786.358955 | D27: =Interés -> 102.5852792 | E27: 386.1384744 | F27: 7400.220481 | G27: 821.2867564 | K27: may | Y27: 364170 | Z27: 16
A28: 8 | B28: 2025-10-09 | C28: 7400.220481 | D28: =Interés -> 97.49790484 | E28: 391.2258488 | F28: 7008.994632 | G28: 918.7846612 | K28: jun | Y28: 364234 | Z28: 16
A29: 9 | B29: 2025-11-09 | C29: 7008.994632 | D29: =Interés -> 92.34350428 | E29: 396.3802494 | F29: 6612.614383 | G29: 1011.128165 | K29: jul | Y29: 365147 | Z29: 16
A30: 10 | B30: 2025-12-09 | C30: 6612.614383 | D30: =Interés -> 87.12119449 | E30: 401.6025592 | F30: 6211.011824 | G30: 1098.24936 | K30: jul | Y30: 365168 | Z30: 16
A31: 11 | B31: 2026-01-09 | C31: 6211.011824 | D31: =Interés -> 81.83008078 | E31: 406.8936729 | F31: 5804.118151 | G31: 1180.079441 | K31: ago | Y31: 365421 | Z31: 16
A32: 12 | B32: 2026-02-09 | C32: 5804.118151 | D32: =Interés -> 76.46925664 | E32: 412.254497 | F32: 5391.863654 | G32: 1256.548697 | K32: sep | Y32: 365423 | Z32: 16
A33: 13 | B33: 2026-03-09 | C33: 5391.863654 | D33: =Interés -> 71.03780364 | E33: 417.68595 | F33: 4974.177704 | G33: 1327.586501 | K33: oct | Y33: 365424 | Z33: 16
A34: 14 | B34: 2026-04-09 | C34: 4974.177704 | D34: =Interés -> 65.53479125 | E34: 423.1889624 | F34: 4550.988741 | G34: 1393.121292 | K34: nov | Y34: 365429 | Z34: 16
A35: 15 | B35: 2026-05-09 | C35: 4550.988741 | D35: =Interés -> 59.95927667 | E35: 428.764477 | F35: 4122.224264 | G35: 1453.080569 | K35: dic | Y35: 365453 | Z35: 16
A36: 16 | B36: 2026-06-09 | C36: 4122.224264 | D36: =Interés -> 54.31030468 | E36: 434.413449 | F36: 3687.810815 | G36: 1507.390874 | K36: dic | Y36: 365454 | Z36: 16
A37: 17 | B37: 2026-07-09 | C37: 3687.810815 | D37: =Interés -> 48.58690749 | E37: 440.1368462 | F37: 3247.673969 | G37: 1555.977781 | K37: ene | L37: 2002 | Y37: 365001 | Z37: 16
A38: 18 | B38: 2026-08-09 | C38: 3247.673969 | D38: =Interés -> 42.78810454 | E38: 445.9356491 | F38: 2801.73832 | G38: 1598.765886 | K38: ene | Y38: 365256 | Z38: 16
A39: 19 | B39: 2026-09-09 | C39: 2801.73832 | D39: =Interés -> 36.91290237 | E39: 451.8108513 | F39: 2349.927469 | G39: 1635.678788 | K39: feb | Y39: 364172 | Z39: 16
A40: 20 | B40: 2026-10-09 | C40: 2349.927469 | D40: =Interés -> 30.9602944 | E40: 457.7634592 | F40: 1892.16401 | G40: 1666.639082 | K40: mar | Y40: 364261 | Z40: 16
A41: 21 | B41: 2026-11-09 | C41: 1892.16401 | D41: =Interés -> 24.92926083 | E41: 463.7944928 | F41: 1428.369517 | G41: 1691.568343 | K41: abr | Y41: 363999 | Z41: 16
A42: 22 | B42: 2026-12-09 | C42: 1428.369517 | D42: =Interés -> 18.81876838 | E42: 469.9049853 | F42: 958.4645315 | G42: 1710.387112 | K42: abr | Y42: 362622 | Z42: 16
A43: 23 | B43: 2027-01-09 | C43: 958.4645315 | D43: =Interés -> 12.6277702 | E43: 476.0959834 | F43: 482.368548 | G43: 1723.014882 | K43: may | Y43: 361329 | Z43: 16
A44: 24 | B44: 2027-02-09 | C44: 482.368548 | D44: =Interés -> 6.35520562 | E44: 482.368548 | F44: 0 | G44: 1729.370087 | K44: jun | Y44: 364701 | Z44: 16
D45: =Interés ->  | K45: jul | Y45: 364702 | Z45: 16
D46: =Interés ->  | K46: jul | Y46: 364719 | Z46: 16
D47: =Interés ->  | K47: ago | Y47: 364190 | Z47: 16
D48: =Interés ->  | K48: sep | Y48: 364522 | Z48: 16
D49: =Interés ->  | K49: oct | Y49: 360041 | Z49: 16
D50: =Interés ->  | K50: nov | Y50: 361868 | Z50: 16
D51: =Interés ->  | K51: dic
D52: =Interés ->  | K52: dic
D53: =Interés ->  | K53: ene | L53: 2003
D54: =Interés ->  | K54: ene
D55: =Interés ->  | K55: feb
D56: =Interés ->  | K56: mar
D57: =Interés -> 
D58: =Interés -> 
D59: =Interés -> 
D60: =Interés -> 
D61: =Interés -> 
D62: =Interés -> 
D63: =Interés -> 
D64: =Interés -> 
D65: =Interés -> 
D66: =Interés -> 
D67: =Interés -> 
D68: =Interés -> 
D69: =Interés -> 
D70: =Interés -> 
D71: =Interés -> 
D72: =Interés -> 
D73: =Interés -> 
D74: =Interés -> 
D75: =Interés -> 
D76: =Interés -> 
D77: =Interés -> 
D78: =Interés -> 
D79: =Interés -> 
D80: =Interés -> 
B87: FIRMA CLIENTE | E87: FIRMA CÓNYUGE
A89: Nombre: | B89: =+F7 -> PRIMER NOMBRE SEGUNDO NOMBRE PRIMER APELLIDO SEGUNDO APELLIDO | E89: Nombre: | F89: =IF(FORM!F64=0,"",CONCATENATE(FORM!Q66," ",FORM!Q64," ")) -> 
A90: C.C.: | B90: =+FORM!F40 -> XXXXXXXXXX | E90: C.C.: | F90: =IF(FORM!F64=0,"",FORM!F68) ->  | K90: sep
B92: * Fecha a ser facturada en su estado de cuenta de la Tarjeta Diners Club.

Sheet COM VEND (hidden)
B1: FORMULARIO DE COMISIÓN PARA VENDEDORES
A2: Tipo de Compra | B2: VEHÍCULO NUEVO
A3: Fecha de Compra | B3: =+FORM!F9 -> 2025-02-07
A4: Nombre del Vendedor | B4: =+FORM!F28 -> NOMBRE Y APELLIDO
A5: Cédula de Identidad del Vendedor | B5: =+FORM!F30 -> XXXXXXXXXX
A6: Concesionario | B6: =+FORM!F14 -> CONCESIONARIO
A7: Ciudad | B7: =+FORM!F26 -> GUAYAQUIL
A8: Nro. de tarjeta del socio | B8: =CONCATENATE(FORM!F151,FORM!L151) -> 3608601234567890
A9: Nombre del Socio | B9: =FORM!Q38 -> PRIMER NOMBRE SEGUNDO NOMBRE PRIMER APELLIDO SEGUNDO APELLIDO
A10: Valor del Vale | B10: =+PAGARE!D5 -> 11729.37009
A11: Plazo | B11: =+FORM!F105*12 -> 288
A12: CHECK LIST DE DOCUMENTOS (Confirme que esté enviando completa la documentación)
A13: Documentos para entregar al Socio | B13: Carta AIG
B14: Certificado de Cobertura Provisional
B15: Certificado de Seguro Colectivo Vida Deudores
B16: 1 Solicitud - Certificado Seguro de Desgravamen
B17: Orden de instalación de dispositivos de rastreo (si aplica)
A18: Documentos para entregar Diners Club | B18: 4 Contrato de Adhesión al Fideicomiso
B19: 4 Reconocimiento de Firmas
B20: 1 Formulario Conozca su Cliente FDV
B21: 1 Formulario Autocertificación FDV
B22: 1 Pagaré
B23: 1 Declaración Unico Vehículo Uso familiar.
B24: 3 Autorización de Cargo
B25: 4 Tabla de Amortización
B26: Solicitud de Seguro Vehículo
B27: 3 Fiel Copia de la Factura del Vehículo
B28: 3 Copia de Cédula del Socio
B29: 3 Copia de Cédula del Cónyuge
B30: Voucher lleno con el número de autorización y Recap.
B31: Formulario de dispositivo de rastreo (si aplica)
A32: POR FAVOR ADJUNTE ESTE FORMULARIO A LOS CONTRATOS Y DEMÁS DOCUMENTOS QUE REMITE A DINERS CLUB.

Sheet PAGARE
A2: PAGARE A LA ORDEN
A3: (Con vencimientos sucesivos)
A5: POR: USD$ | D5: =(X9*N10) -> 11729.37009
A7: Debo (emos) y pagaré (mos) solidaria e incondicionalmente a la orden de BANCO DINERS CLUB DEL ECUADOR S.A.,
A8: en la ciudad de | E8: =+H27 -> GUAYAQUIL | J8: ,o en el lugar donde me(nos) reconvenga, la cantidad de | V8: =+D5 -> 11729.37009
A9: DOLARES DE LOS ESTADOS UNIDOS DE AMERICA obligándome(nos) a pagar irrevocablemente | V9: en | X9: =+FORM!F105 -> 24
A10: cuotas mensuales cuotas mensuales iguales y sucesivas de US$ | N10: =+'TABLA AMORT.'!C16 -> 488.7237536 | Q10: DOLARES DE LOS ESTADOS
A11: UNIDOS DE AMERICA, cada una, y que serán pagadas a partir del | N11: =+DAY('TABLA AMORT.'!F10) -> 9 | O11: de | P11: =+'TABLA AMORT.'!F10 -> 2025-03-09 | U11: del | W11: =+P11 -> 2025-03-09 | Z11: y asi
A12: sucesivamente hasta su pago total, esto es hasta el | L12: =IF(FORM!F105/12=1,'TABLA AMORT.'!B32)+IF(FORM!F105/12=2,'TABLA AMORT.'!B44)+IF(FORM!F105/12=3,'TABLA AMORT.'!B56)+IF(FORM!F105/12=4,'TABLA AMORT.'!B68)+IF(FORM!F105/12=5,'TABLA AMORT.'!B80) -> 2027-02-09 | M12: de | N12: =+L12 -> 2027-02-09 | R12: del | T12: =+N12 -> 2027-02-09 | V12: .
A14: Declaro(amos) que la falta de pago oportuno de cualquiera de las cuotas mensuales antes detalladas o de parte de alguna de ellas, permitirá al Acreedor anticipar y declarar de plazo vencido las cuotas posteriores y exigir al(los) Deudor(es) y/o Aval(es) el pago total de la obligación contenida en este pagaré, más los gastos y costas a que hubiere lugar.
A16: En caso de mora, pagaré (mos) desde su vencimiento hasta su total cancelación, sobre los valores no pagados, la máxima tasa de interés de mora que para el efecto haya dispuesto la Autoridad Monetaria correspondiente, vigentes a la respectiva fecha de vencimiento.
A17: Además, pagaré (mos) todos los gastos judiciales, extra judiciales, y honorarios profesionales que ocasione el cobro, bastando para determinar el monto de tales gastos, la sola aseveración del Acreedor.
A19: Se deja constancia que BANCO DINERS CLUB DEL ECUADOR S.A a su sola decisión podrá ceder todos los derechos emanados de este Pagaré a la Orden a cualquier persona natural y/o jurídica, por los que el (la/los) suscriptor (es) desde ya acepta (n) la pertinente cesión de derechos, incluso se da(n) por notificado(s) del traspaso del crédito. En tal virtud, la o las cesiones que se realicen, surtirán pleno efecto respecto al deudor (es), sus avalistas solidarios y respecto de terceros.
A21: Renuncio (amos) fuero y domicilio y quedo (amos) expresamente sometido (s) a los jueces competentes de la ciudad
A22: de | B22: =+E8 -> GUAYAQUIL | F22: o del lugar en que se nos reconvenga, y al trámite legal correspondiente, a elección del
A23: demandante; obligándome (nos) irrevocablemente al fiel cumplimiento de lo aquí estipulado con todos mis (nuestros) bienes presentes y futuros. El pago no podrá hacerse por partes ni aún por mis (nuestros) herederos.
A25: Sin protesto. Exímese al Acreedor de este Pagaré a la Orden, de su presentación para el pago al (los) suscriptor(es) del mismo, así como realizar los avisos por falta de pago.
A27: Lugar y Fecha de suscripción: | H27: =+FORM!F48 -> GUAYAQUIL | L27: =+'TABLA AMORT.'!F9 -> 2025-02-07
A32: f) | O32: f)
A33: NOMBRES: | E33: =CONCATENATE(FORM!Q36," ",FORM!Q34) -> PRIMER NOMBRE SEGUNDO NOMBRE PRIMER APELLIDO SEGUNDO APELLIDO | O33: =IF(FORM!F64=0,"",CONCATENATE(FORM!Q66," ",FORM!Q64)) -> 
A34: Dirección: | E34: =FORM!F46 -> CARCELEN | O34: =IF(FORM!F64=0,"",PAGARE!E34) -> 
A35: RUC o CC | E35: =FORM!F40 -> XXXXXXXXXX | O35: =IF(FORM!F64=0,"",FORM!F68) -> 
A36: Teléfono: | E36: =+FORM!F38 -> CELULAR | O36: =IF(FORM!F64=0,"",PAGARE!E36) -> 
A41: VISTO BUENO
A43: Lugar y Fecha de suscripción: | H43: =+H27 -> GUAYAQUIL | M43: =+L27 -> 2025-02-07
A47: f) | O47: f)
A48: NOMBRES: | E48: =+E33 -> PRIMER NOMBRE SEGUNDO NOMBRE PRIMER APELLIDO SEGUNDO APELLIDO | O48: =+O33 -> 
A49: Dirección: | E49: =+E34 -> CARCELEN | O49: =+O34 -> 
A50: RUC o CC | E50: =+E35 -> XXXXXXXXXX | O50: =+O35 -> 
A51: Teléfono: | E51: =+E36 -> CELULAR | O51: =+O36 -> 

Sheet RASTREO SATELITAL
A1: PLAN EXCLUSIVO PARA SOCIOS DINERS CLUB
A5: QUITO: Calle Francisco Andrade Marín E 6-101 y Av. Eloy Alfaro. Telf. 600-9390
A7: ORDEN DE INSTALACIÓN DEL SISTEMA SATELITAL
A8: FECHA: | F8: =+FORM!F9 -> 2025-02-07 | P8: VALOR VEHICULO: | W8: =FORM!F101 -> 10000
A9: NOMBRE: | F9: =FORM!Q38 -> PRIMER NOMBRE SEGUNDO NOMBRE PRIMER APELLIDO SEGUNDO APELLIDO
A10: DIRECCIÓN: | F10: =+FORM!F46 -> CARCELEN
A11: TELEFONOS: | F11: =CONCATENATE(FORM!F38," ",FORM!L38) -> CELULAR CONVENCIONAL | R11: CIUDAD: | V11: =+FORM!F26 -> GUAYAQUIL
A12: CONCESIONARIO: | H12: =+FORM!F14 -> CONCESIONARIO
A13: PLAN | D13: =+A32 -> Con dispositivo Concesionario
A14: DATOS DEL VEHICULO
A15: MARCA: | D15: =+FORM!F78 -> HYUNDAI | J15: MODELO: | N15: =+FORM!F80 -> ACCENT | T15: TIPO: | W15: =+FORM!F85 -> SEDAN
A16: COLOR: | D16: =+FORM!F89 -> ROJO | J16: AÑO: | N16: =+FORM!F87 -> 2022 | T16: PLACA: | W16: N/A
A17: MOTOR: | D17: =+FORM!F91 -> BU456792826RE7 | J17: CHASIS: | N17: =+FORM!F93 -> CG5342892U | T17: USO: | W17: PERSONAL/FAMILIAR
A18: El asegurado deberá llevar el vehículo para la instalación del sistema Maresa Satelital, en un plazo de 8 días posteriores a la compra del vehículo. De no hacerlo, pierde el derecho a indemnización en el caso de un eventual robo total.
F24: CONCESIONARIO | V24: TARJETAHABIENTE
A26: AUTORIZACIÓN ORDEN DE CARGO
A27: =+FORM!F26 -> GUAYAQUIL | L27: , | M27: =+F8 -> 2025-02-07
A29: En mi calidad de socio Diners Club No. | O29: =FORM!F147 -> XXXXXXXXXX1234 | U29: autorizo libre y voluntariamente | AT29: =CONCATENATE(FORM!AP143,FORM!AV143) ->  | BA29: autorizo libre y voluntariamente a | BM29: En mi calidad de socio Diners Club No. | BZ29: =CONCATENATE(FORM!BV143,FORM!CB143) ->  | CG29: autorizo libre y voluntariamente a | CS29: En mi calidad de socio Diners Club No. | DF29: =CONCATENATE(FORM!DB143,FORM!DH143) ->  | DM29: autorizo libre y voluntariamente a | DY29: En mi calidad de socio Diners Club No. | EL29: =CONCATENATE(FORM!EH143,FORM!EN143) ->  | ES29: autorizo libre y voluntariamente a | FE29: En mi calidad de socio Diners Club No. | FR29: =CONCATENATE(FORM!FN143,FORM!FT143) ->  | FY29: autorizo libre y voluntariamente a | GK29: En mi calidad de socio Diners Club No. | GX29: =CONCATENATE(FORM!GT143,FORM!GZ143) ->  | HE29: autorizo libre y voluntariamente a | HQ29: En mi calidad de socio Diners Club No. | ID29: =CONCATENATE(FORM!HZ143,FORM!IF143) ->  | IK29: autorizo libre y voluntariamente a
A30: a BANCO DINERS CLUB DEL ECUADOR S.A., se cargue a mi señalada tarjeta de manera mensual
A31: el valor de US$ | G31: =+FORM!F139 -> 0 | J31: durante | M31: =+FORM!F105 -> 24 | O31: meses, que corresponde a la compra de un sistema
A32: =+FORM!F113 -> Con dispositivo Concesionario | N32: de conformidad al acuerdo que he llegado con | AW32: durante | AZ32: =+FORM!AP103*12 -> 0 | BB32: meses, que corresponde a la | BM32: de manera mensual el valor de US$ | CC32: durante | CF32: =+FORM!BV103*12 -> 0 | CH32: meses, que corresponde a la | CS32: de manera mensual el valor de US$ | DI32: durante | DL32: =+FORM!DB103*12 -> 0 | DN32: meses, que corresponde a la | DY32: de manera mensual el valor de US$ | EO32: durante | ER32: =+FORM!EH103*12 -> 0 | ET32: meses, que corresponde a la | FE32: de manera mensual el valor de US$ | FU32: durante | FX32: =+FORM!FN103*12 -> 0 | FZ32: meses, que corresponde a la | GK32: de manera mensual el valor de US$ | HA32: durante | HD32: =+FORM!GT103*12 -> 0 | HF32: meses, que corresponde a la | HQ32: de manera mensual el valor de US$ | IG32: durante | IJ32: =+FORM!HZ103*12 -> 0 | IL32: meses, que corresponde a la
A33: CARSEG S.A. esto es, un crédito diferido a | P33: =+M31 -> 24 | R33: meses plazo sin intereses, valores que me
A34: comprometo a cancelar de manera incondicional y dentro de los plazos estipulados.
A35: Asímismo, expresamente me obligo a no revocar la presente autorización, sin previo consentimiento por escrito de CARSEG S.A., por lo que libero de toda responsabilidad a BANCO DINERS CLUB DEL ECUADOR S.A. por los cargos efectuados en base a la presente autorización. | BM35: Asímismo, expresamente me obligo a no revocar la presente autorización, sin previo consentimiento por | CS35: Asímismo, expresamente me obligo a no revocar la presente autorización, sin previo consentimiento por | DY35: Asímismo, expresamente me obligo a no revocar la presente autorización, sin previo consentimiento por | FE35: Asímismo, expresamente me obligo a no revocar la presente autorización, sin previo consentimiento por | GK35: Asímismo, expresamente me obligo a no revocar la presente autorización, sin previo consentimiento por | HQ35: Asímismo, expresamente me obligo a no revocar la presente autorización, sin previo consentimiento por
A36: De igual manera, autorizo en caso de pérdida, hurto, robo o cualquier otra circunstancia que merezca ser cambiado mi actual número de tarjeta, se cuenta con el nuevo que se me asigne para cancelar todos mis consumos de manera incondicional dentro del periodo respectivo, de tal forma de que mis obligaciones no queden en mora por los conceptos antes mencionados y hasta su total cancelación. | BM36: De igual manera, autorizo en caso de pérdida, hurto, robo o cualquier otra circunstancia que merezca | CS36: De igual manera, autorizo en caso de pérdida, hurto, robo o cualquier otra circunstancia que merezca | DY36: De igual manera, autorizo en caso de pérdida, hurto, robo o cualquier otra circunstancia que merezca | FE36: De igual manera, autorizo en caso de pérdida, hurto, robo o cualquier otra circunstancia que merezca | GK36: De igual manera, autorizo en caso de pérdida, hurto, robo o cualquier otra circunstancia que merezca | HQ36: De igual manera, autorizo en caso de pérdida, hurto, robo o cualquier otra circunstancia que merezca
BM37: hasta su total cancelación. | CS37: hasta su total cancelación. | DY37: hasta su total cancelación. | FE37: hasta su total cancelación. | GK37: hasta su total cancelación. | HQ37: hasta su total cancelación.
A38: Atentamente,
A42: =F9 -> PRIMER NOMBRE SEGUNDO NOMBRE PRIMER APELLIDO SEGUNDO APELLIDO
A43: =S48 -> XXXXXXXXXX
A44: Caducidad Tarjeta: | I44: =+FORM!F153 -> 2023-07-01
A45: DECLARACION ADICIONAL
A47: =A42 -> PRIMER NOMBRE SEGUNDO NOMBRE PRIMER APELLIDO SEGUNDO APELLIDO | O47: , mayor de edad, de estado civil | Z47: =+IF(FORM!F64<>"","CASADO","SOLTERO") -> SOLTERO
A48: , portador de la cédula de ciudadanía o pasaporte No. | S48: =FORM!F40 -> XXXXXXXXXX | X48: , por medio de la presente
A49: realizo la siguiente declaración:
A50: Declaro de manera expresa que autorizo a la compañía CARSEG S.A., para que en el evento de que la compañía Banco Diners Club del Ecuador S.A., lo requiera, haga conocer la información en relación a la ubicación del vehículo, así mismo podrá bloquear el vehículo a la sola solicitud de Banco Diners Club del Ecuador S.A.
A54: Por tratarse de una autorización realizada de manera libre y voluntaria, declaro que no interpondré contra Banco Diners Club del Ecuador S.A., o la compañía CARSEG S.A., ningún tipo de acción judicial o administrativa por la ejecución de las acciones descritas en el presente documento.
A59: Atentamente,
A63: =A42 -> PRIMER NOMBRE SEGUNDO NOMBRE PRIMER APELLIDO SEGUNDO APELLIDO
A64: =A43 -> XXXXXXXXXX

Sheet AIG- Cotizador Seguro
B1: Cotizador
A5: MARCA | B5: =+FORM!F78 -> HYUNDAI | E5: Año | F5: Cuotas | G5: Prima Neta | H5: Prima Total | I5: Cuota
A6: MODELO | B6: =+FORM!F80 -> ACCENT | E6: 1 | F6: =+CálculosSeguro!B2 -> 12 | G6: =+CálculosSeguro!I2 -> 1260 | H6: =+CálculosSeguro!I9 -> 1507.006 | I6: =+IFERROR(H6/F6,0) -> 125.5838333
A7: Valor Asegurado | B7: =COTIZADOR!$F$40 -> 35000 | C7: Valor total de vehículo incluido extras (total de factura/s). | E7: 2 | F7: =+CálculosSeguro!B13 -> 12 | G7: =+CálculosSeguro!I13 -> 1108.8 | H7: =+CálculosSeguro!I20 -> 1326.1708 | I7: =+IFERROR(H7/F7,0) -> 110.5142333
A8: Crédito Meses | B8: =+FORM!F105 -> 24 | E8: 3 | F8: =+CálculosSeguro!B24 -> 0 | G8: =+CálculosSeguro!I24 -> 0 | H8: =+CálculosSeguro!I31 -> 0 | I8: 0
E9: 4 | F9: =+CálculosSeguro!B35 -> 0 | G9: =+CálculosSeguro!I35 -> 0 | H9: =+CálculosSeguro!I42 -> 0 | I9: 0
E10: 5 | F10: =+CálculosSeguro!B46 -> 0 | G10: =+CálculosSeguro!I46 -> 0 | H10: =+CálculosSeguro!I53 -> 0 | I10: 0

Sheet AIG-Solicitud Cetificado
A5: SEGURO DE VEHÍCULOS
A6: Diners Financiados
A7: Solicitud certificado
A10: DATOS DEL ASEGURADO
A13: Nombres Completos: | C13: BANCO DINERS CLUB DEL ECUADOR S.A.
A15: Número de Cédula / RUC / Pasaporte: | D15: 1790283380001
A17: DATOS DEL ASEGURADO
A20: Apellido Paterno: | C20: =+FORM!F34 -> PRIMER APELLIDO | G20: Apellido Materno: | I20: =+FORM!L34 -> SEGUNDO APELLIDO
A22: Nombres: | C22: =+FORM!F36&" "&FORM!L36 -> PRIMER NOMBRE SEGUNDO NOMBRE | G22: Número de Cédula / RUC / Pasaporte: | J22: =+FORM!F40 -> XXXXXXXXXX
A24: Estado Civil: | C24: =+COTIZADOR!F32 -> Casado | E24: Género: | H24: Fecha de Nacimiento:
A26: Nacionalidad: | C26: =+'CONOZCA A SU CLIENTE PN(2)'!K13 -> 0 | G26: Lugar de Nacimiento: | I26: =+C26 -> 0
A28: Actividad económica / Ocupación: | G28: Ingresos Mensuales:
A30: Dirección Domicilio: | C30: =+FORM!F46 -> CARCELEN | G30: Teléfono Domicilio: | I30: =+FORM!F38 -> CELULAR
A32: Dirección Oficina: | C32: =+FORM!F54 -> AMAZONAS Y AYORA | G32: Teléfono Oficina: | I32: =+FORM!F56 -> 022000000
A34: Teléfono Celular: | C34: =+FORM!L38 -> CONVENCIONAL | G34: Correo Electrónico: | I34: =+FORM!F50 -> Correo
D37: *Datos solicitados de conformidad a la Resolución No. JB-2012-2147 de 26 de abril de 2012 y sus posteriores reformas
A40: DATOS DEL BIEN ASEGURADO
A43: Conductor: | B43: =+C20&" "&I20&" "&C22 -> PRIMER APELLIDO SEGUNDO APELLIDO PRIMER NOMBRE SEGUNDO NOMBRE | G43: Fecha vencimiento licencia:
A45: Marca: | B45: =+FORM!F78 -> HYUNDAI | G45: Modelo: | H45: =+FORM!F80 -> ACCENT
A47: Tipo: | B47: =+FORM!F85 -> SEDAN | E47: Año: | F47: =+FORM!F87 -> 2022 | G47: Color: | H47: =+FORM!F89 -> ROJO | J47: Placa/CPN:
A49: Número Motor: | C49: =+FORM!F91 -> BU456792826RE7 | G49: Número Chasis: | I49: =+FORM!F93 -> CG5342892U
G51: Accesorios Extras | I51: si aplica, completar descripción, marca, valor a continuación.
A53: Descripción: | E53: Descripción: | J53: Descripción:
A54: Marca: | E54: Marca: | J54: Marca:
A55: Valor: | E55: Valor: | J55: Valor:
A57: DECLARACIONES DEL ASEGURADO
A60: Declaro libre y voluntariamente que el seguro solicitado a la compañía AIG-Metropolitana Cía. de Seguros y Reaseguros S.A., ampara bienes de procedencia lícita y que los mismos no están ligados con actividades de narcotráfico, lavado de activos o financiamiento del terrorismo; igualmente declaro que los fondos con los cuales se pagará la prima de este seguro tienen origen lícito y no guarda ninguna relación con las actividades mencionadas anteriormente.
A63: Declaro que la información contenida en este formulario es verdadera, completa y proporciona la información de modo confiable y actualizada; además declaro conocer y aceptar que es mi obligación actualizar anualmente mis datos personales, así como el comunicar y documentar de manera inmediata a AIG-Metropolitana Cía. de Seguros y Reaseguros S.A. cualquier cambio en la información que hubiere proporcionado. Durante la vigencia de la relación con la compañía me comprometo a proveer de la documentación e información que me sea solicitada.
A66: Declaro que a la fecha de la firma de esta declaración, he recibido el certificado de seguro que contiene resumen de las condiciones generales de la Póliza a la cual se adhiere la presente declaración y declaro conocerlas y aceptarlas.
A67: Además, acepto recibir información comercial y promocional por canales ordinarios o electrónicos relativos a productos y servicios que AIG-Metropolitana Cía. de Seguros y Reaseguros S.A. preste actualmente o decida prestar en un futuro, conservándose con esta finalidad hasta que indique mi manifestación expresa en contrario.
A69: En cumplimiento de la Ley Orgánica de Protección de Datos Personales y la normativa vigente de protección de datos, con su consentimiento AIG-Metropolitana Cía. de Seguros y Reaseguros S.A. (“AIG-Metropolitana”) y sus asociadas (casa matriz, filiales, pares, subsidiarias, entidades relacionadas, socios, aliados comerciales estratégicos y proveedores) podrán realizar tratamiento de sus datos personales, los cuales incluyen recolectar, archivar, procesar, y almacenar, actualizar, realizar consultas o reportes de riesgo crediticio, transmitir dentro del territorio nacional, sus datos de contactabilidad, datos de identificación y otros necesarios para proporcionar los servicios y productos de AIG-Metropolitana y sus asociadas. AIG-Metropolitanta y sus asociadas se rigen bajo lo establecido en su Política de Privacidad disponible en su sitio web: www.aig.com.ec., la que usted declara conocer.
A73: Asimismo, da su consentimiento explícito para la transferencia internacional de datos en los términos y para las finalidades antes descritas.
A74: [ X ] He leído y acepto el tratamiento para las finalidades descritas. [ ] He leído y rechazó el tratamiento para las finalidades descritas”.
A79: AUTORIZACION DE CARGO
A81: Yo, | B81: =+FORM!Q38 -> PRIMER NOMBRE SEGUNDO NOMBRE PRIMER APELLIDO SEGUNDO APELLIDO | E81: , titular de la tarjeta número, | G81: =+FORM!F147 -> XXXXXXXXXX1234 | I81: por medio de la presente, solicito a usted
A82: ordenar a quien corresponda, se cargue a mi Tarjeta de Crédito BANCO DINERS el valor correspondiente a la prima que cause esta solicitud de seguro por concepto de la prima de Seguro de Vehículos, sobre la tarjeta de crédito que soy titular. Debo y pagaré incondicionalmente al Emisor de la tarjeta de crédito el total de los valores expresados en esta Autorización de Orden de Cargo, en el lugar y fecha que se convenga. En caso de mora, pagaré la tasa máxima autorizada para el Emisor de la tarjeta de crédito y los gastos en que esta institución haya incurrido por las gestiones de la cartera vencida. Por tal fin, me comprometo a efectuar los pagos de mi tarjeta de crédito al día y me obligo a mantener los fondos suficientes para cubrir el importe correspondiente ya que lo contrario, de no estar al día en los pagos, no tendré cobertura. En caso de no poder efectuar el débito por carecer de fondos y que se acumulen varias cuotas, autorizo a que se debite una sola vez todas las cuotas atrasadas. Por otra parte, acepto que se de por terminado el contrato de seguro y reconozco que me será retirada la cobertura por las siguientes condiciones: después que la Aseguradora haga los intentos de débito por 3 ocasiones, si llegase a tener 90 días de vencido de una o más cuotas, si no se pudiese recaudar las cuotas respectivas por: fondos insuficientes, cancelación de la cuenta, cambio de la misma, o cualquier otro motivo no imputable a ella.
C95: POLIZA MAESTRA NRO. | G95: CERTIFICADO INDIVIDUAL NRO
A96: Mediante este documento, AIG-METROPOLITANA CÍA. DE SEGUROS Y REASEGUROS S.A. certifica que el seguro que usted ha contratado cubre pérdidas parciales y totales del bien asegurado de acuerdo a los montos establecidos en el presente certificado:
A98: COBERTURAS | J98: LÍMITE
A99: 1. Responsabilidad Civil Límite Único Combinado | G99: 1.1 Lesiones corporales | J99: 50000
G100: 1.2 Daños a la Propiedad Ajena
A101: 2. Pérdida Parcial del Vehículo por Daños | J101: =+'AIG- Cotizador Seguro'!B7 -> 35000
A102: 3. Pérdida Total del Vehículo por Daños | J102: =+J101 -> 35000
A103: 4. Pérdida Parcial del Vehículo por Robo | J103: =+J102 -> 35000
A104: 5. Pérdida Total del Vehículo por Robo | J104: =+J103 -> 35000
A105: 6. Lesiones a Ocupantes del vehículo | G105: 6.1 Gastos Médicos por ocupante* | J105: 5000
G106: 6.2 Accidentes Personales por ocupante* | J106: 10000
A107: 7. Gastos de Grúa, Transporte y Protección del vehículos | J107: 200
A108: 8. Amparo jurídico en proceso penal | J108: 1000
A109: 9. Llave Protegida | J109: 150
A110: 10. Documentos Protegidos | J110: 100
A111: 11. Muerte Accidental o Incapacidad Total y Permanente** | J111: 10000
A112: 12. Amparo Patrimonial | J112: =+J103 -> 35000
A113: 13 Auto Sustituto*** | G113: 13.1 Pérdidas Parciales **** | J113: 10 días consecutivos por evento
G114: 13.2 Pérdidas Totales | J114: 20 días consecutivos
A116: * El número de ocupantes asegurados será el indicado en la matrícula del vehículo asegurado. ** Como consecuencia de accidente de tránsito mientras sea conductor o pasajero del vehículo asegurado en la presente póliza. *** Vehículos con valor asegurado entre $ 0 y $ 20,000.00 se otorga un auto gama económica, vehículos con valor asegurado entre $ 20,001.00 y $ 40,000.00 se otorga un auto gama media, vehículos con valor asegurado de $ 40,001.00 en adelante se otorga un auto gama alta. **** Aplica si el valor del siniestro es superior a $ 1,000.00 y se haya emitido la orden de reparación que supere los 3 días laborables.
A118: ASISTENCIAS Y COBERTURAS ADICIONALES
A119: Asistencia AIG: 24 horas, 365 días. Asistencia legal telefónica e insitu en: Quito, Guayaquil, Cuenca, Ambato, Manta y Portoviejo
A120: Gastos de transporte: Hasta $600
A121: DEDUCIBLES
A122: Pérdidas parciales: Livianos: Primer evento: 10% valor siniestro, mínimo 1% valor asegurado, no inferior a USD $200, Segundo evento: 10% valor siniestro, mínimo 1% valor asegurado, no inferior a US $350. Segundo evento:10% valor siniestro, minimo 1% valor asegurado, no inferior a US $300. Pérdida total por Daños: 15% valor asegurado
A123: Uso distinto al asegurado o recorrido superior a 30.000 kmtrs al año o su equivalente mensual. -10% valor siniestro, minimo 2% valor asegurado, no inferior a US$ 500.
A124: Pérdida total por robo: Todo vehiculo cuyo valor asegurado sea igual o superior a US$20.000,00 a vehículos tipo jeep o camioneta de hasta 5 años de antigüedad, deberá mantener instalada y en funcionamiento el dispositivo de seguridad satelital o cualquier dispositivo de rastreo, paralización y recuperación, en caso de no cumplir con dicho requisito se aplicarán los siguientes deducibles: - Pérdida total por robo (vehículos que no requieren dispositivos Livianos), 15% del valor asegurado. - Pérdida total por robo (vehículos que requieren dispositivos y lo mantengan instalado y en funcionamiento), 5% del valor asegurado.
A125: Depreciación: Vehículos Nuevos: 2año 12% - 3er año 8% - 4to en adelante 5% anual. Vehículos Usados: 5% anual
E127: DESGLOSE DE PRIMA
E128: Valor Asegurado: | G128: =+'AIG- Cotizador Seguro'!B7-'AIG-Solicitud Cetificado'!B55-'AIG-Solicitud Cetificado'!F55-'AIG-Solicitud Cetificado'!K55 -> 35000
E129: Valor Extras: | G129: =+B55+F55+K55 -> 0
E130: Prima Neta Anual: | G130: =+CálculosSeguro!I2 -> 1260
E131: Contribución SCVS: | G131: =+CálculosSeguro!I4 -> 44.1
E132: Seguro Campesino: | G132: =+CálculosSeguro!I5 -> 6.3
E133: Derechos de emisión: | G133: =+CálculosSeguro!I6 -> 0.04
E134: IVA: | G134: =+CálculosSeguro!I8 -> 196.566
E135: Total | G135: =+CálculosSeguro!I9 -> 1507.006
A137: La renovación del presente certificado es anual. La cobertura se mantendrá vigente mientras el (la) Asegurado(a) se encuentre al día en los pagos de la prima. El presente certificado se enmarca en las Condiciones Generales de la Póliza de Vehículos aprobadas mediante resolución de la Superintendencia de Compañías, Valores y Seguros No. SCVS-6-7-CG-34-515004420-10062020.
A139: Vigencia de la póliza desde (12:00): | D139: 2024-07-01 | G139: Vigencia del certificado desde (12:00): | K139: =$C$140 -> 2025-02-07
A140: Fecha de emisión: | C140: =FORM!$F$9 -> 2025-02-07 | G140: Vigencia del certificado hasta (12:00): | K140: =EDATE(FORM!$F$9,FORM!$F$105) -> 2027-02-07
A141: Nota: El inicio de la cobertura de su póliza se ejecutará una vez sea entregado el bien | G141: Forma de Pago: Tarjeta de crédito
A143: Resumen de la Condiciones Generales de la Polóliza de Vehículos
A146: Definiciones:
A147: Asegurado: La persona natural o juridica designada en la poliza, incluyendo tambien a cualquier otra persona que estuviere usando el vehículo asegurado o fuere responsable legalmente de tal uso, siempre que la conduccion del mismo ejerza bajo el control del Asegurado o con su anuencia. | G147: determinen el estado de riesgo. La reticencia, inexactitud o falsedad de aquellas circunstancias, que conocidas por la Campaña, la hubieren hecho desisitir de la celebración del Contrato o inducida a estipular condiciones mas gravsas, producen la nulidad relativa del Contrato de Seguro.
A151: Vehiculos particulares: Se entenderá por vehiculos particulares, aquellos que sean usados exclusivamente para el servicio personal de Asegurado y en ningún caso para arquilarlos o para transportar pasajeros y/o carga, mediante el cobre de renta, pasajes o flete.
G152: Obligaciones del asegurado al ocurrir un siniestro:
G153: a) Proteger al vehículo, puesto que cualquier pérdida adicional por falta de protección no será indemnizada. Los gastos razonables efectuados para dar dicha protección serán considerados como si hubieran sido autorizados por la Compañía.
A155: Ocupantes del vehículo: Se entenderá por ocupantes, el conductor y cualquier otra persona que viaje dentro del vehiculo asegurado en los lugares normalmente destinados para llevar personas.
G157: b) Dará aviso a a Compañía dentro de los diez (10) días calendario siguientes a la fecha en la que se tuvo conocimiento del siniestro.
A158: Franquicia deducible: Es la cantidad que en cada siniestro deberá ser cubierta por el Asegurado. La Compañía cubrirá únicamente las sumas que excedan de dicha cantidad.
G159: c) Entregar a la Compañía una copia del respectivo parte policial o copia de la denuncia ante las autoridades respectivas en caso de robo.
G161: d) Llenar el formulario de reporte de accidente, dentro del plazo máximo de diez (10) días despues de dicho aviso.
A162: Coberturas:
A163: Cobertura al casco del vehiculo: Todo riesgo con exclusiones nombradas según condiciones generales de la póliza de Vehiculo. | G163: e) En caso que existe un tercero afectado, no realizar ninguna transacción o arreglo, al hacerlo perdera el derecho a indemnización.
G165: f) No autorizar reparación alguna en el vehiculo. Un representante de la compañía realizara la respectiva comprobación de daños y autorizará dicha reparación de ser el caso.
A166: Exclusiones:
A167: a) Vehiculos utilizados para carreras o enseñanzas.
A168: b) Vehiculos sea destinado al transporte publico, comercial o alquiler. | G168: g) Si el vehiculo es llevado a la revisión de tránsito es obligación del propietario realizar los tramites correspondientes para el retiro y traslado del vehículo a una mecanica para la inspección y posterior autorización de reparación por parte de la Compañia.
A169: c) Multas que las autoridades impongan a consecuencia de infracciones.
A170: d) Daños o perdidas causadas intencionalmente por el asegurado.
A171: e) Pérdida o daño producido por el desgaste.
A172: f) Cualquier perdida indirecta que sufra el asegurado tales como la privacion del uso del vehiculo, depreciación o perdida del valor comercial del mismo.
G173: Notificación de siniestros:
A174: g) Daños y/o lesiones que sufran ocupantes y bienes del vehiculo, en lo referente a respnsabilidad civil. | G174: El Asegurado tendrá la obligación de dar aviso a la Compañía de ocurrencia de un siniestro dentro de los diez (10) diás calendario siguientes a la fecha en la que se tuvo conocimiento del mismo.
A176: h) Daños o perdidas causados o consecuencia de imprudencia temeraria o por manejar bajo influencia del alcohol o drogas.
G177: Documentos necesarios:
A178: i) Cuando la licencia del conductor del vehiculo se encuentre caducada por un lapso mayor a (30) días o cuando el conductor carezca de la misma. No son validos los permisos de conduccion provisional. | G178: a) Formulario debidamente lleno
G179: b)Licencia de conducir
G180: c)Matricula
A181: j) No se cubre radios PULL OUT. Los radios de caratula desmontable, serán indemnizados unicamente si el asegurado entrega a la compañía la carátula, y existe evidencia de forzamineto en las seguridades del vehículo. | G181: d) Cédula
G182: e) Parte policial
G183: f) Denuncia a titulo personal
A185: Impuestos de Ley y contribuciones: | G185: Nota: El presente cerfiticado es un resumen de las Condiciones Generales de la Póliza de Vehículo aprobadas mediante resolución de la Superintendencia de Compañias, Valores y Seguros No. SCVS-6-7-cg-34-515004420. En caso de existir una diferencia entre el presente certificado y las Condiciones Generales, regirán las existencias en la Póliza.
A186: Todos los impuestos y contribuciones vigentes y por estarlo, que graven a esta póliza, serán asumidos por asegurado.
A189: Pago de Prima y Devoluciones: | G189: Nota: El Contratante y/0 Asegurado podrá solicitar a la Superintendencia de Compañias, Valores y Seguros la verificación de este texto.
A190: El tomador del seguro está obligado al pago de la prima. Salvo disposición legal o contractual en contrario, deberá hacerlo a mas tardar dentro los 30 días siguientes contando a partir de la fecha de entrega de la póliza o de los certificados o anexos que se expidan con fundamiento de ella.
G192: Para quejas o reclamos comunicarse con nuestro departamento de Servicio al Cliente al correo servicio.cliente@aig.com o al 1800 AIG AIG (244 244)
G194: Quito: Av. Brasil 293 y Antonio Granda Centeno, Piso PB
A195: Declaracion del estado del riesgo: | G195: Guayaquil: Av. Rodrigo Chávez González Parque Empresarial Colón, Edificio Corporativo II, Piso 2, Of. 203
A196: El Contratante y cada Aseguradora, individualmente, estan obligados adeclarar objetivamente, los hechos o circunstancias que
G197: Cuenca: Av. Ordóñez Lazo 5-42 y Laureles

Sheet AIG- Carta Bienvenida (opc)
C8: =+TODAY() -> 2025-02-07
A11: Estimado Cliente Presente. - De nuestras consideraciones: Por medio de la presente nos complace entregar el certificado de Cobertura de su nuevo vehículo, el cual servirá como respaldo ante cualquier eventualidad. Desde este momento se encuentra respaldado con la protección que AIG Metropolitana ha diseñado exclusivamente para usted. Las coberturas de su seguro tienen validez durante el periodo de vigencia del crédito contratado y siempre que usted se encuentre al día en sus pagos. En caso de necesitar una de nuestras asistencias o en caso de siniestro se pueden comunicar con el 1800 AIG AIG. Una vez más agradecemos su preferencia y lo invitamos a seguir disfrutando como cliente de AIG Metropolitana. Reciban un cordial saludo. Atentamente, AIG Metropolitana Cía. de Seguros y Reaseguros Carlos León García Gerente de Auto

Sheet CHECKLIST VEHICULOS NUEVOS
C2: FORMULARIO CHECKLIST VEHICULOS NUEVOS
B3: Tipo de Compra | C3: Vehículo nuevo
B4: Fecha de Compra | C4: =FORM!F9 -> 2025-02-07
B5: Nombre del Vendedor | C5: =COTIZADOR!$F$14 -> NOMBRE Y APELLIDO
B6: Dirección Vendedor | C6: IÑAQUITO
B7: Telefono Vendedor | C7: 0999000000 | I7: Tipo de vehículo
B8: Cédula de Identidad del Vendedor | C8: =FORM!$F$30 -> XXXXXXXXXX | I8: Vehículo nuevo
B9: Concesionario | C9: =FORM!$F$14 -> CONCESIONARIO | I9: Vehículo usado
B10: Ciudad | C10: =FORM!$F$26 -> GUAYAQUIL
B11: Nro. de tarjeta del socio | C11: =FORM!$F$147 -> XXXXXXXXXX1234
B12: Nombre del Socio | C12: =CONCATENATE(COTIZADOR!$F$20,COTIZADOR!$L$20,COTIZADOR!$F$18,COTIZADOR!$L$18) -> PRIMER NOMBRESEGUNDO NOMBREPRIMER APELLIDOSEGUNDO APELLIDO
B13: Valor del Vale | C13: =FORM!$F$101 -> 10000
B14: Plazo en meses | C14: =FORM!$F$105 -> 24
B15: CHECK LIST DE DOCUMENTOS (Confirme que esté enviando completa la documentación)
B16: Documentos para entregar al Socio | C16: Carta de Bienvanida AIG
C17: Certificado de Seguro Colectivo Vida Deudores
C18: 1 Solicitud - Certificado Seguro de Desgravamen
C19: Copia Certificado Seguro AIG (si aplica)
C20: Copia Orden de instalación de dispositivo de rastreo Hunter (si aplica)
B21: Documentos para entregar Diners Club | C21: Personas Naturales
C22: 1 Formulario Conozca a su Cliente (modelo del Formulario de Fideval).
C23: 3 Copia de cédula del socio, papeleta de votación actualizada y planilla de pago de servicios básicos (hasta tres meses atrás).
C24: 1 Copia de la declaración del Impuesto a la Renta del año inmediato anterior, según aplique.
C25: 2 Copia de la tabla de amortización.
C26: 4 Contratos de Adhesión al Fideicomiso.
C27: 4 Documento de Reconocimiento de Firmas.
C28: 1 Pagaré.
C29: 3 Autorización de Cargo .
C30: 1 Declaración de único uso personal o familiar de herramienta.
C31: 1 Solicitud/póliza de Seguro Vehicular o Solicitud de Certificado de Seguro Vehicular AIG de herramienta firmado (si aplica) en caso de contratar el seguro directamente con nosotros.
C32: 1 Endoso Beneficiario en caso de contratar el seguro vehicular externamente.
C33: 3 Fiel Copia de la Factura del Vehículo o 3 copias PDF de factura electrónica con leyenda: NO NEGOCIABLE APORTADO AL FIDEICOMISO MERCANTIL DE GARANTÍA AUTOMOTRIZ DINERS CLUB.
C34: 3 Copia de Cédula del Cónyuge (si aplica)
C35: 1 Voucher de compra con tarjeta de crédito.
C36: 1 Nombramiento, cédula, y RUC del representante legal del Concesionario.
C37: 1 Orden de instalación de dispositivo de rastreo Hunter de herramienta o documento de contratación de rastreto satelital.
B38: POR FAVOR ADJUNTE ESTE FORMULARIO A LOS CONTRATOS Y OTROS DOCUMENTOS ORIGINALES Y FIRMADOS QUE SE REMITE A DINERS CLUB.

Sheet CHECKLIST VEHICULOS USADOS
C2: FORMULARIO CHECKLIST VEHICULOS USADOS
B3: Tipo de Compra | C3: Vehículo usado
B4: Fecha de Compra | C4: =FORM!F9 -> 2025-02-07
B5: Nombre del Vendedor | C5: =COTIZADOR!$F$14 -> NOMBRE Y APELLIDO
B6: Dirección Vendedor | C6: IÑAQUITO
B7: Telefono Vendedor | C7: 0999000000 | I7: Tipo de vehículo
B8: Cédula de Identidad del Vendedor | C8: =FORM!$F$30 -> XXXXXXXXXX | I8: Vehículo nuevo
B9: Concesionario | C9: =FORM!$F$14 -> CONCESIONARIO | I9: Vehículo usado
B10: Ciudad | C10: =FORM!$F$26 -> GUAYAQUIL
B11: Nro. de tarjeta del socio | C11: =FORM!$F$147 -> XXXXXXXXXX1234
B12: Nombre del Socio | C12: =CONCATENATE(COTIZADOR!$F$20,COTIZADOR!$L$20,COTIZADOR!$F$18,COTIZADOR!$L$18) -> PRIMER NOMBRESEGUNDO NOMBREPRIMER APELLIDOSEGUNDO APELLIDO
B13: Valor del Vale | C13: =FORM!$F$101 -> 10000
B14: Plazo en meses | C14: =FORM!$F$105 -> 24
B15: CHECK LIST DE DOCUMENTOS (Confirme que esté enviando completa la documentación)
B16: Documentos para entregar al Socio | C16: Carta de Bienvanida AIG
C17: Certificado de Seguro Colectivo Vida Deudores
C18: 1 Solicitud - Certificado Seguro de Desgravamen
C19: Copia Certificado Seguro AIG (si aplica)
C20: Copia Orden de instalación de dispositivo de rastreo Hunter (si aplica)
B21: Documentos para entregar Diners Club | C21: Personas Naturales
C22: 1 Formulario Conozca a su Cliente (modelo del Formulario de Fideval).
C23: 3 Copia de cédula del socio, papeleta de votación actualizada y planilla de pago de servicios básicos (hasta tres meses atrás).
C24: 1 Copia de la declaración del Impuesto a la Renta del año inmediato anterior, según aplique.
C25: 2 Copia de la tabla de amortización.
C26: 4 Contratos de Adhesión al Fideicomiso.
C27: 4 Documento de Reconocimiento de Firmas.
C28: 1 Pagaré.
C29: 3 Autorización de Cargo .
C30: 1 Declaración de único uso personal o familiar de herramienta.
C31: 1 Solicitud/póliza de Seguro Vehicular o Solicitud de Certificado de Seguro Vehicular AIG de herramienta firmado (si aplica) en caso de contratar el seguro directamente con nosotros.
C32: 1 Endoso Beneficiario en caso de contratar el seguro vehicular externamente.
C33: Contrato compra venta con cláusula: OBSERVACIÓN.- El comprador por medio del presente reconoce que sobre el vehículo materia del presente contrato se otorga garantía fiduciaria, en virtud de que el vehículo de manera simultánea a la compra ha sido aportado al FIDEICOMISO MERCANTIL DE GARANTÍA AUTOMOTRIZ DINERS CLUB - NO NEGOCIABLE.
C34: 3 Copia de Cédula del Cónyuge (si aplica)
C35: 1 Voucher de compra con tarjeta de crédito.
C36: 1 Nombramiento, cédula, y RUC del representante legal del Concesionario.
C37: 1 Orden de instalación de dispositivo de rastreo Hunter de herramienta o documento de contratación de rastreto satelital.
B38: POR FAVOR ADJUNTE ESTE FORMULARIO A LOS CONTRATOS Y OTROS DOCUMENTOS ORIGINALES Y FIRMADOS QUE SE REMITE A DINERS CLUB.

Sheet CONOZCA A SU CLIENTE PN
A6: Fomulario Conozca Su Cliente - Personas Naturales
A8: Hacer click en el siguiente ícono:

Sheet HUNTER (hidden)
A1: PLAN EXCLUSIVO PARA SOCIOS DINERS CLUB
A5: GUAYAQUIL : Cdla. Vernaza Norte MZ 21 Solar 2,6,7 y 8 Telef. ( 04) 2291065. QUITO : Av. 10 de Agosto 5023 y Los Cedros. Esq. PBX : (02) 805170-805180. TUMBACO : CC. Ventura Mall. Local 5 B. PBX : (02) 2375308. MACHALA : Marcel Laniado 105 y Circunvalación Norte. PBX : (07) 2980379. MANTA : Av. 113 y Calle 119 esq. PBX : (05) 2925584. QUEVEDO : Malecón 302 y Tercera Esq. (05)2761370. STO. DOMINGO : Av. Quevedo. Km. 3/12 No. 1516 y Av. Bombolí. AMBATO : Montalvo 0236 y Los Capulíes. PBX : 2829941. LOJA: 24 de Mayo y Azuay. Esq. PBX : 2574291. CUENCA: Circunvalación Sur y J. Núñez. PBX : (07) 2819080. IBARRA : Av. Cristóbal de Troya 661 y J. M. Lequerica. PBX : (06) 2955517. SALINAS : Calle Segunda ( Junto a Mi Comisariato Jr.) PBX : 2761370.
A9: ORDEN DE INSTALACIÓN DEL SISTEMA HUNTER
A10: FECHA: | F10: =FORM!F9 -> 2025-02-07 | P10: VALOR VEHICULO: | W10: =FORM!F101 -> 10000
A11: NOMBRE: | F11: =FORM!Q38 -> PRIMER NOMBRE SEGUNDO NOMBRE PRIMER APELLIDO SEGUNDO APELLIDO
A12: DIRECCIÓN: | F12: =FORM!F46 -> CARCELEN
A13: TELEFONOS: | F13: =CONCATENATE(FORM!F38," ",FORM!L38) -> CELULAR CONVENCIONAL | R13: CIUDAD: | V13: =+FORM!F26 -> GUAYAQUIL
A14: CONCESIONARIO: | H14: =+FORM!F14 -> CONCESIONARIO
A15: PLAN | D15: =+A34 -> Con dispositivo Concesionario
A16: DATOS DEL VEHICULO
A17: MARCA: | D17: =+FORM!F78 -> HYUNDAI | J17: MODELO: | N17: =+FORM!F80 -> ACCENT | T17: TIPO: | W17: =+FORM!F85 -> SEDAN
A18: COLOR: | D18: =+FORM!F89 -> ROJO | J18: AÑO: | N18: =+FORM!F87 -> 2022 | T18: PLACA: | W18: N/A
A19: MOTOR: | D19: =+FORM!F91 -> BU456792826RE7 | J19: CHASIS: | N19: =+FORM!F93 -> CG5342892U | T19: USO: | W19: PERSONAL/FAMILIAR
A20: El asegurado deberá llevar el vehículo para la instalación del sistema Hunter, en un plazo de 8 días posteriores a la compra del vehículo. De no hacerlo, pierde el derecho a indemnización en el caso de un eventual robo total.
F26: CONCESIONARIO | V26: TARJETAHABIENTE
A28: AUTORIZACIÓN ORDEN DE CARGO
A29: =+FORM!F26 -> GUAYAQUIL | L29: , | M29: =+F10 -> 2025-02-07
A31: En mi calidad de socio Diners Club No. | O31: =CONCATENATE(FORM!F151,FORM!L151) -> 3608601234567890 | W31: autorizo libre y voluntariamente | AS31: =CONCATENATE([7]FORM!AL147,[7]FORM!AR147) ->  | AZ31: autorizo libre y voluntariamente a | BL31: En mi calidad de socio Diners Club No. | BY31: =CONCATENATE([7]FORM!BR147,[7]FORM!BX147) ->  | CF31: autorizo libre y voluntariamente a | CR31: En mi calidad de socio Diners Club No. | DE31: =CONCATENATE([7]FORM!CX147,[7]FORM!DD147) ->  | DL31: autorizo libre y voluntariamente a | DX31: En mi calidad de socio Diners Club No. | EK31: =CONCATENATE([7]FORM!ED147,[7]FORM!EJ147) ->  | ER31: autorizo libre y voluntariamente a | FD31: En mi calidad de socio Diners Club No. | FQ31: =CONCATENATE([7]FORM!FJ147,[7]FORM!FP147) ->  | FX31: autorizo libre y voluntariamente a | GJ31: En mi calidad de socio Diners Club No. | GW31: =CONCATENATE([7]FORM!GP147,[7]FORM!GV147) ->  | HD31: autorizo libre y voluntariamente a | HP31: En mi calidad de socio Diners Club No. | IC31: =CONCATENATE([7]FORM!HV147,[7]FORM!IB147) ->  | IJ31: autorizo libre y voluntariamente a
A32: a BANCO DINERS CLUB DEL ECUADOR S.A., se cargue a mi señalada tarjeta de manera mensual el
A33: valor de US$ | F33: =+FORM!F139 -> 0 | I33: durante | L33: =+FORM!F105 -> 24 | O33: meses, que corresponde a la compra de un sistema
A34: =+FORM!F113 -> Con dispositivo Concesionario | N34: de conformidad al acuerdo que he llegado con CARSEG S.A. | AV34: durante | AY34: =+[7]FORM!AL107*12 -> 0 | BA34: meses, que corresponde a la | BL34: de manera mensual el valor de US$ | CB34: durante | CE34: =+[7]FORM!BR107*12 -> 0 | CG34: meses, que corresponde a la | CR34: de manera mensual el valor de US$ | DH34: durante | DK34: =+[7]FORM!CX107*12 -> 0 | DM34: meses, que corresponde a la | DX34: de manera mensual el valor de US$ | EN34: durante | EQ34: =+[7]FORM!ED107*12 -> 0 | ES34: meses, que corresponde a la | FD34: de manera mensual el valor de US$ | FT34: durante | FW34: =+[7]FORM!FJ107*12 -> 0 | FY34: meses, que corresponde a la | GJ34: de manera mensual el valor de US$ | GZ34: durante | HC34: =+[7]FORM!GP107*12 -> 0 | HE34: meses, que corresponde a la | HP34: de manera mensual el valor de US$ | IF34: durante | II34: =+[7]FORM!HV107*12 -> 0 | IK34: meses, que corresponde a la
A35: esto es, un crédito diferido a | L35: =+L33 -> 24 | O35: meses plazo sin intereses, valores que me comprometo a
A36: cancelar de manera incondicional y dentro de los plazos estipulados.
A37: Asímismo, expresamente me obligo a no revocar la presente autorización, sin previo consentimiento por escrito de CARSEG S.A, por lo que libero de toda responsabilidad a BANCO DINERS CLUB DEL ECUADOR S.A. por los cargos efectuados en base a la presente autorización. | BL37: Asímismo, expresamente me obligo a no revocar la presente autorización, sin previo consentimiento por | CR37: Asímismo, expresamente me obligo a no revocar la presente autorización, sin previo consentimiento por | DX37: Asímismo, expresamente me obligo a no revocar la presente autorización, sin previo consentimiento por | FD37: Asímismo, expresamente me obligo a no revocar la presente autorización, sin previo consentimiento por | GJ37: Asímismo, expresamente me obligo a no revocar la presente autorización, sin previo consentimiento por | HP37: Asímismo, expresamente me obligo a no revocar la presente autorización, sin previo consentimiento por
A38: De igual manera, autorizo en caso de pérdida, hurto, robo o cualquier otra circunstancia que merezca ser cambiado mi actual número de tarjeta, se cuenta con el nuevo que se me asigne para cancelar todos mis consumos de manera incondicional dentro del periodo respectivo, de tal forma de que mis obligaciones no queden en mora por los conceptos antes mencionados y hasta su total cancelación. | BL38: De igual manera, autorizo en caso de pérdida, hurto, robo o cualquier otra circunstancia que merezca | CR38: De igual manera, autorizo en caso de pérdida, hurto, robo o cualquier otra circunstancia que merezca | DX38: De igual manera, autorizo en caso de pérdida, hurto, robo o cualquier otra circunstancia que merezca | FD38: De igual manera, autorizo en caso de pérdida, hurto, robo o cualquier otra circunstancia que merezca | GJ38: De igual manera, autorizo en caso de pérdida, hurto, robo o cualquier otra circunstancia que merezca | HP38: De igual manera, autorizo en caso de pérdida, hurto, robo o cualquier otra circunstancia que merezca
BL39: hasta su total cancelación. | CR39: hasta su total cancelación. | DX39: hasta su total cancelación. | FD39: hasta su total cancelación. | GJ39: hasta su total cancelación. | HP39: hasta su total cancelación.
A40: Atentamente,
A43: =+F11 -> PRIMER NOMBRE SEGUNDO NOMBRE PRIMER APELLIDO SEGUNDO APELLIDO
A44: =+FORM!F40 -> XXXXXXXXXX
A45: Caducidad Tarjeta: | I45: =+FORM!F153 -> 2023-07-01
A46: DECLARACION ADICIONAL
A48: =A43 -> PRIMER NOMBRE SEGUNDO NOMBRE PRIMER APELLIDO SEGUNDO APELLIDO | P48: , mayor de edad, de estado civil | AA48: =+IF(FORM!F64<>"","CASADO","SOLTERO") -> SOLTERO
A49: , portador de la cédula de ciudadanía o pasaporte No. | T49: =+A44 -> XXXXXXXXXX | X49: , por medio de la presente
A50: realizo la siguiente declaración:
A51: Declaro de manera expresa que autorizo a la compañía CARSEG S.A, para que en el evento de que la compañía Banco Diners Club del Ecuador S.A., lo requiera, haga conocer la información en relación a la ubicación del vehículo, así mismo podrá bloquear el vehículo a la sola solicitud de Banco Diners Club del Ecuador S.A.
A55: Por tratarse de una autorización realizada de manera libre y voluntaria, declaro que no interpondré contra Banco Diners Club del Ecuador S.A., o la compañía Hunter, ningún tipo de acción judicial o administrativa por la ejecución de las acciones descritas en el presente documento.
A60: Atentamente,
A63: =A43 -> PRIMER NOMBRE SEGUNDO NOMBRE PRIMER APELLIDO SEGUNDO APELLIDO
A64: =A44 -> XXXXXXXXXX

Sheet AUTOCERTIFICACIÓN PJ (hidden)
A6: Formulario Autocertificación de Residencia Fiscal Para Personas Que Ejercen el Control
A8: Hacer click en el siguiente ícono:

Sheet AUTOCERTIFICACIÓN (hidden)
N3: FDV - 010
A4: AUTO – CERTIFICACIÓN DE RESIDENCIA FISCAL PARA PERSONAS QUE EJERCEN EL CONTROL
A5: Conforme a las regulaciones del Estándar Común de Reporte (CRS por sus siglas en ingles) en el marco de la OCDE (Organización para la Cooperación y Desarrollo Económico), lo establecido en la Disposición General Primera de la Ley Orgánica para la Reactivación de la Economía, Fortalecimiento de la Dolarización y Modernización de la Gestión, publicada en el Suplemento del Registro Oficial No. 150 de 29 de diciembre de 2017 y según lo señalado en la Resolución NAC- DGERCGC19-000000045 del Servicio de Rentas Internas, publicada en el Suplemento del Registro Oficial Nro. 51 de 01 de octubre de 2019, se ha dispuesto la obligación de reportar información específica sobre la residencia fiscal de una cuenta. Con el objeto de dar cumplimiento con la normativa expuesta, se ha implementado el presente formulario de auto- certificación a fin de que los datos registrados en el mismo, sean transmitidos al Servicio de Rentas Internas que a su vez podrá enviar esta información a las autoridades fiscales de otras jurisdicciones en virtud de acuerdos intergubernamentales para intercambiar información de cuentas financieras.
A6: ¿Quién debe llenar este formulario?
A7:  El titular de la cuenta que sea una Entidad No Financiera (ENF) Pasiva o una Entidad de Inversión residente en el exterior y administrada por otra Institución Financiera.
A8:  No llene este formulario si representa a una sociedad distinta a una Entidad No Financiera (ENF) Pasiva o una Entidad de Inversión, en su lugar debe presentar el Formulario de Auto – certificación de Residencia Fiscal para persona jurídicas.
A9:  Use un formulario separado para cada persona que ejerce el control.
A10: 1. IDENTIFICACIÓN DE LA PERSONA QUE EJERCE EL CONTROL (mayor o igual al 25%)
A11: Nombres y Apellidos completos | G11: Fecha de nacimiento (aa/mm/dd) | J11: Ciudad de nacimiento | M11: País de nacimiento
A13: Dirección permanente de residencia (calle, número, piso, departamento, referencia de ubicación):
A14: Ciudad: | D14: Provincia: | H14: País: | L14: Código postal:
A15: 2. RESIDENCIA FISCAL DE LA PERSONA QUE EJERCE EL CONTROL
A16: 1. ¿Es una persona estadounidense para fines fiscales (paga impuestos en EE.UU.) ?: SI ( ) NO ( ) | I16: Si respondió SI, indique su número de identificación como contribuyente en Estados Unidos:
A17: 2. ¿Es residente de cualquier otro país distinto de Estados Unidos y Ecuador para fines fiscales (país donde paga impuestos) ?: SI ( ) NO ( ). Si la respuesta es positiva por favor a continuación enumere el/los países:
A18: 1) | F18: 2) | K18: 3)
A19: Proporcione a continuación el número de identificación fiscal (NIF) del contribuyente para cada país que indicó anteriormente:
A20: 1) | F20: 2) | K20: 3)
A21: 3. TIPO DE PERSONA QUE EJERCE EL CONTROL
A22: Datos de las sociedades de las cuales ejerce el control:
A23: Razón Social | H23: Número de Identificación Fiscal (NIF) | L23: Status de la persona que ejerce el control (*)
A24: 1)
A25: 2)
A26: 3)
A27: Estatus de la persona que ejerce el control (*)
A28: CRS801 | C28: Persona que ejerce el control de la persona jurídica – control por propiedad.
A29: CRS802 | C29: CP of legal person - other means (Persona que ejerce el control de una entidad– control por otros medios).
A30: CRS803 | C30: Persona que ejerce el control de la persona jurídica – por cargo directivo.
A31: CRS804 | C31: Persona que ejerce el control de la persona jurídica – fideicomiso - fideicomitente.
A32: CRS805 | C32: Persona que ejerce el control de la persona jurídica – fideicomiso - fiduciario.
A33: CRS806 | C33: CP of legal arrangement - trust – protector (Persona que ejerce el control de un fideicomiso – protector).
A34: CRS807 | C34: Persona que ejerce el control de la persona jurídica – fideicomiso – beneficiario.
A35: CRS808 | C35: CP of legal arrangement - trust – other (Persona que ejerce el control de un fideicomiso – otro).
A36: CRS809 | C36: CP of legal arrangement - other – settlor-equivalent (Persona que ejerce el control de un acuerdo jurídico).
A37: CRS810 | C37: CP of legal arrangement - other – trustee-equivalent (Persona que ejerce el control de un acuerdo jurídico(excepto fideicomiso)– fiduciario o equivalente).
A38: CRS811 | C38: CP of legal arrangement - other – protector-equivalent (Persona que ejerce el control de un arreglo jurídico(excepto fideicomiso)– protector o equivalente).
A39: CRS812 | C39: CP of legal arrangement - other – beneficiary-equivalent (Persona que ejerce el control de un acuerdo jurídico(excepto fideicomiso)– beneficiario o equivalente).
A40: CRS813 | C40: CP of legal arrangement - other – other-equivalent (. Persona que ejerce el control de un acuerdo jurídico(excepto fideicomiso)– otro-equivalente).
B42: 1
N49: FDV - 010
A50: 4. CERTIFICACIÓN Y COMPROMISO
A51: Por este medio certifico que la información proporcionada en este formulario es correcta y completa.  Autorizo a FIDEVAL S.A. a proporcionar, directa o indirectamente, la información contenida en este formulario y/o una copia de este formulario a cualquier autoridad fiscal pertinente o cualquier parte autorizada para auditar o realizar un control similar de FIDEVAL S.A. para fines fiscales, así como a divulgar a tales autoridades fiscales o tal parte cualquier información adicional que pudiese poseer FIDEVAL S.A. y que es pertinente para mi calificación para cualquier beneficio reclamado con base en esta certificación.  Acepto que la información contenida en este formulario y la información relacionada con mis cuentas en FIDEVAL S.A. (incluso la información sobre los saldos de cuentas y pagos recibidos) se notifique a las autoridades fiscales pertinentes, y que estas autoridades proporcionen esta información a cualquier otro país enumerado en la lista anterior como a un país en el cual soy residente para fines fiscales.  Me comprometo a avisar inmediatamente a FIDEVAL S.A. sobre cualquier cambio en las circunstancias que motive que la información contenida en este documento sea incorrecta y a proporcionar a FIDEVAL S.A. un formulario actualizado y apropiado de auto-certificación de residencia fiscal en un plazo de 30 días a partir de la fecha del cambio en las circunstancias.
C54: Firma | J54: Ciudad y Fecha (aa/mm/dd)
C57: Identificación | J57: Nombre del firmante
C59: Calidad en la que funge el firmante (si el formulario no es firmado por la persona que ejerce el control)
A61: 5. PARA USO EXCLUSIVO FIDEVAL S.A.
A62: Nombre y cargo de quien recibe la información:_____________________________________________________ Fecha: _________________________
A63: Firma del Responsable: ________________________________________________________________________
A64: Declaro que la información y documentación receptada se encuentra de forma correcta y completa, a la fecha de entrega del presente formulario.
A65: 6. VERIFICACIÓN DE DATOS
A66: DETALLE | D66: SI | F66: NO | G66: DETALLE | J66: SI | M66: NO
A67: Identificación: | G67: Direcciones:
A68: Validación Listas de Observados: | G68: Firma:
A69: Fecha de ingreso de datos en el sistema:
A70: OBSERVACIONES:
B94: 2

Sheet CONOZCA A SU CLIENTE PN(2) (hidden)
AB5: FDV - 001
A6: FORMULARIO CONOZCA SU CLIENTE – PERSONAS NATURALES
A7: En cumplimiento a lo establecido en la Ley Orgánica de Prevención, Detección y Erradicación del Delito de Lavado de Activos y del Financiamiento de Delitos, su Reglamento General, Codificación de Resoluciones Monetarias Financieras, de Valores y Seguros, Resolución NAC-DGERCGC19-00000045 del Servicio de Rentas Internas, Políticas Internas de Prevención de Lavado de Activos y la Ley Foreign Account Tax Compliance Act (FATCA), se requiere la entrega de la siguiente información (favor completar todos los campos obligatoriamente).
A8: 1. INFORMACIÓN DEL CLIENTE
A9: Primer apellido | F9: Segundo apellido | R9: Nombres completos
A11: Identificación: Cédula: | F11: RUC : | R11: Pasaporte:
A12: Lugar y Fecha de nacimiento (aa/mm/dd) | K12: Nacionalidad | R12: Sexo
R13: Masculino ( ) | Y13: Femenino ( )
A14: Estado civil:
A15: Soltero(a) ( ) Casado(a) ( ) Divorciado(a) ( _) Viudo(a) ( ) Unión de Hecho ( )
A16: 2. AUTO – CERTIFICACIÓN DE RESIDENCIA FISCAL DEL CLIENTE
A17: Conforme a las regulaciones del Estándar Común de Reporte (CRS por sus siglas en ingles) en el marco de la OCDE (Organización para la Cooperación y Desarrollo Económico). Lo establecido en la Disposición General Primera de la Ley Orgánica para la Reactivación de la Economía, Fortalecimiento de la Dolarización y Modernización de la Gestión, publicada en el Suplemento del Registro Oficial No. 150 de 29 de diciembre de 2017 y según lo señalado en la Resolución NAC-DGERCGC19-000000045 del Servicio de Rentas Internas publicada en el Suplemento del Registro Oficial Nro. 51 de 01 de octubre de 2019, se ha dispuesto la obligación de reportar información específica sobre la residencia fiscal de una cuenta. Con el objeto de dar cumplimiento con la normativa expuesta, se incluye en este documento la auto- certificación de su Residencia Fiscal a fin de que los datos aquí registrados, sean transmitidos al Servicio de Rentas Internas que a su vez podrá enviar esta información a las autoridades fiscales de otras jurisdicciones, en virtud de acuerdos intergubernamentales para intercambiar información de cuentas financieras.
A18: Dirección permanente de residencia (calle, numero, piso, departamento, referencia de ubicación):
A19: Ciudad: | H19: Provincia: | T19: Cantón:
A20: Parroquia: | H20: País: | T20: Código postal:
A21: E -mail personal: | E21: E - mail laboral: | O21: Tfno. domicilio: | V21: Tfno. celular:
A22: ¿Es una persona estadounidense para fines fiscales (paga impuestos en EEUU)? SI ( ) NO ( ) | O22: Si marcó SI, indique su número de identificación de contribuyente en Estados Unidos:
A23: ¿Es residente de cualquier otro país distinto de Estados Unidos y Ecuador para fines fiscales (país donde paga impuestos) ?: SI ( ) NO ( ). Si la respuesta es positiva por favor enumere el/los países en donde es residente (donde paga impuestos):
A24: 1) | H24: 2) | T24: 3)
A25: Proporcione a continuación el número de identificación de contribuyente para cada país que indicó anteriormente:
A26: 1) | H26: 2) | T26: 3)
A27: Certifico que la información proporcionada en este formulario es correcta y completa.  Autorizo a FIDEVAL S.A. a proporcionar, directa o indirectamente, la Información contenida en este documento y/o una copia de este formulario a cualquier autoridad fiscal pertinente o cualquier parte autorizada para auditar o realizar un control similar de FIDEVAL S.A. para fines fiscales, así como a divulgar a tales autoridades fiscales o tal parte cualquier información adicional que pudiese poseer FIDEVAL S.A. y que es pertinente para mi calificación para cualquier beneficio reclamado con base en esta certificación.  Acepto que la información contenida en este formulario y la información relacionada con mis cuentas en FIDEVAL S.A. (incluso la información sobre los saldos de cuentas y pagos recibidos) se notifique a las autoridades fiscales pertinentes, y que estas autoridades proporcionen esta información a cualquier otro país enumerado en la lista anterior como a un país en el cual soy residente para fines fiscales.  Me comprometo a avisar inmediatamente a FIDEVAL S.A. sobre cualquier cambio en las circunstancias que motive que la información contenida en este documento sea incorrecta y a proporcionar a FIDEVAL S.A. un formulario actualizado y apropiado de Auto-Certificación de Residencia Fiscal en un plazo de 30 días a partir de la fecha del cambio en las circunstancias.
A28: 3. ACTIVIDAD ECONÓMICA (Si el cliente es menor de edad entregar datos del Representante Legal y/o Apoderado)
A29: Detalle de la Profesión/Ocupación / Actividad Económica Principal:
A30: Nombre de la empresa donde trabaja: | E30: Cargo que ocupa: | T30: Años en el cargo: | X30: Teléfono trabajo:
E31: Dirección del trabajo:
A32: Actividad Económica Secundaria: SI ( ) NO ( ) | O32: Tiempo que la ejerce:
A33: Detallar actividad si su respuesta fue positiva: | T33: Ciudad y Dirección:
A35: 1
AB44: FDV - 001
A46: 4. INFORMACIÓN DEL CÓNYUGE Y/O REPRESENTANTE LEGAL /APODERADO
A47: CÓNYUGE: Nombres Completos | D47: Número de identificación / Pasaporte | M47: Nacionalidad | R47: Actividad Económica
A49: REP. LEGAL/APODERADO: Nombres Completos | D49: Número de identificación / Pasaporte | M49: Nacionalidad | R49: Dirección domicilio | Y49: Teléfono domicilio/ celular
A51: Número y fecha de la escritura pública del poder respectivo (en caso de Apoderado):
A52: 5. ESTADO DE SITUACIÓN FINANCIERA (Si el cliente es menor de edad entregar datos del Representante Legal y/o Apoderado)
A53: ACTIVOS | O53: PASIVOS
A54: Detalle | I54: Valor | O54: Detalle | Y54: Valor
A55: Efectivo en bancos a la fecha del formulario | O55: Créditos hipotecarios/ quirografarios/prendarios
A56: Inversiones / Acciones / Participaciones/ Inventarios/Cuentas por Cobrar | O56: Deuda total en tarjetas de crédito
A57: Bienes Inmuebles | O57: Otras cuentas por pagar
A58: Bienes Muebles / Vehículos / Maquinaria | O58: TOTAL PASIVOS
A59: TOTAL ACTIVOS | O59: TOTAL PATRIMONIO (activos menos pasivos)
A60: INGRESOS MENSUALES | O60: GASTOS MENSUALES
A61: Ingreso de la actividad económica principal | O61: Gasto vivienda
A62: Ingreso de la actividad económica secundaria | O62: Gasto alimentación / servicios básicos / educación / pago tarjetas de crédito
A63: Otros ingresos (describa): | O63: Otros Gastos (describa):
A64: TOTAL INGRESOS | O64: TOTAL GASTOS
A65: 6. DETALLE DE CUENTAS E INVERSIONES DEL CLIENTE EN EL SISTEMA FINANCIERO
C66: Nombre de la Institución | L66: Tipo de Cuenta | X66: No. Cuenta
A67: Cliente:
A68: Representante Legal/Apoderado:
A69: 7. DETALLE DE TRANSACCIONES Y/O PRODUCTOS FINANCIEROS QUE POSEE EN DIVISAS INTERNACIONALES (Si el cliente es menor de edad entregar datos del Representante Legal y/o Apoderado)
A70: Tipo de producto o servicio | B70: Identificación del producto o servicio | J70: Entidad | O70: Monto | S70: Ciudad | W70: País | AA70: Moneda
A73: 8. REFERENCIAS PERSONALES / COMERCIALES (Si el cliente es menor de edad entregar datos del Representante Legal y/o Apoderado)
A74: PERSONALES | N74: COMERCIALES
A75: Nombres Completos | D75: Relación | J75: Teléfono | N75: Nombre/Razón Social | V75: Relación | Z75: Teléfono
A83: 2
AB95: FDV - 001
A97: 9. DECLARACIÓN SOBRE LA CONDICIÓN DE PERSONA EXPUESTA POLÍTICAMENTE (Si el cliente es menor de edad entregar datos del Representante Legal y/o Apoderado)
A98: Declaro bajo juramento que: SI /NO soy una Persona Expuesta Políticamente (PEP). Si la respuesta es positiva favor indicar lo siguiente: Nombre de la Institución: _____________________________ Cargo o Función ejercido en la Entidad Pública: __________________ Tiempo de trabajo: __________________________ Fecha del nombramiento de designación: __________________________ Fecha de culminación de funciones (cese de actividades en los últimos 2 años): Actualmente declaro que: SI /NO mantengo vinculación comercial ( ), contractual ( ), familiar dentro del segundo grado de consanguinidad (padres, hijos, abuelos, hermanos, nietos) o primero de afinidad (suegros, hijastros), con una Persona Expuesta Políticamente (PEP). Si su respuesta fue positiva favor especificar lo siguiente: Nombre de la persona: __________________________________________________ Relación de parentesco: _____________________________ Cargo o Función: _____________________________________________ Nombre de la Institución: ______________________________________
A99: Adicionalmente declaro que: SI /NO mantengo vinculación laboral, como asesor ( ), asistente ( ) o cualquier otra labor de confianza ( ), con una Persona Expuesta Políticamente (PEP). Si su respuesta fue positiva favor especificar lo siguiente: Nombre de la persona: _______________________________________ Cargo o Función: ________________________________________ Nombre de la Institución: _____________________________________________________________________________________________
A100: 10. DECLARACIÓN DE LICITUD DE FONDOS
A101: Los fondos que ingresarán al producto contratado provienen de (por favor adjuntar obligatoriamente documentos físicos, en valores iguales o superiores a USD 30.000): _____________________________________________________________________________________________ Los fondos existentes en el producto contratado serán utilizados para: __________
A102: CONOCEDOR (A) DE LAS PENAS DE PERJURIO DECLARO BAJO JURAMENTO QUE LA INFORMACIÓN ARRIBA INDICADA ES CORRECTA Y VERDADERA, ENTIENDO QUE LA MISMA SERÁ LEÍDA/ REVISADA POR LAS AUTORIDADES COMPETENTES, QUIENES LA PODRÁN CONSIDERAR PARA TODOS LOS EFECTOS LEGALES QUE CONSIDEREN NECESARIOS. AUTORIZO EXPRESA E INDEFINIDAMENTE A LA COMPAÑÍA ADMINISTRADORA DE FONDOS Y FIDEICOMISOS FIDEVAL S.A., MIENTRAS SEA CLIENTE DE LA MISMA PARA QUE A TRAVÉS DE SU REPRESENTANTE LEGAL O FUNCIONARIOS AUTORIZADOS OBTENGA DE CUALQUIER FUENTE INFORMACIÓN LEGALMENTE AUTORIZADA, REALICEN EL ANÁLISIS Y VERIFICACIONES QUE CONSIDEREN PERTINENTES A TRAVÉS DE LOS MEDIOS NECESARIOS, E INFORMEN DE MANERA INMEDIATA Y DOCUMENTADA A LA AUTORIDAD COMPETENTE EN CASOS DE INVESTIGACIÓN O CUANDO SE DETECTARE INUSUALIDADES O TRANSACCIONES SOSPECHOSAS. GARANTIZO LA VERACIDAD DE LA INFORMACION PROPORCIONADA Y RENUNCIO A EJECUTAR CUALQUIER PRETENSIÓN TANTO EN EL ÁMBITO CIVIL COMO PENAL POR ESTOS HECHOS, ACOGIENDOME A LAS SANCIONES QUE POR INFORMACIÓN FALSA ESTABLEZCAN LAS LEYES ECUATORIANAS. FACULTO EXPRESAMENTE A LA COMPAÑÍA FIDEVAL S.A. ADMINISTRADORA DE FONDOS Y FIDEICOMISOS PARA TRANSFERIR O ENTREGAR DICHA INFORMACIÓN A AUTORIDADES COMPETENTES Y ORGANISMOS DE CONTROL, ASÍ COMO A OTRAS INSTITUCIONES O PERSONAS JURÍDICAS LEGALMENTE FACULTADAS PARA SOLICITAR DICHA INFORMACIÓN. IGUALMENTE CERTIFICO Y DECLARO QUE LOS VALORES ENTREGADOS SON LÍCITOS Y CONSECUENTEMENTE NO PROVIENEN DE NINGUNA ACTIVIDAD ILEGAL O ILÍCITA, NI LOS FONDOS SERÁN DESTINADOS A ACCIONES RELACIONADAS Y TIPIFICADAS EN LAS LEYES DE PREVENCIÓN DE LAVADO DE ACTIVOS VIGENTES. EN CONSTANCIA DE CONOCER Y ACEPTAR LO DECLARADO ANTERIORMENTE, FIRMO EL PRESENTE DOCUMENTO.
B105: Firma | P105: Ciudad y Fecha (aa/mm/dd)
B108: Identificación | P108: Nombre del firmante
B111: Calidad en la que funge el firmante (si el formulario no es firmado por la persona que ejerce el control)
A113: 11. PARA USO EXCLUSIVO FIDEVAL S.A.
A114: Nombre y cargo de quien recibe la información: Fecha: Firma del Responsable: Declaro que la información y documentación receptada se encuentra de forma correcta y completa, a la fecha de entrega del presente formulario.
A115: 12. VERIFICACIÓN DE DATOS
A116: DETALLE | B116: SI | I116: NO | N116: DETALLE | S116: SI | X116: NO
A117: Identificación: | N117: Direcciones:
A118: Teléfonos: | N118: Actividad Económica:
A119: Referencias: | N119: Firma:
A120: Fecha de ingreso de datos en el sistema: | N120: Validación Listas de Observados:
A121: OBSERVACIONES:
A122: _____________________________________________________________________________________
A123: _____________________________________________________________________________________
A124: _____________________________________________________________________________________
A127: 3

Sheet CONOZCA A SU CLIENTE PJ (hidden)
A6: Formulario Conozca a Su Cliente - Personas Jurídicas
A8: Hacer click en el siguiente ícono:

Sheet CONOZCA A SU CLIENTE PJ(2) (hidden)
AB4: FDV - 002
A5: FORMULARIO CONOZCA SU CLIENTE – PERSONAS JURÍDICAS
A6: En cumplimiento a lo establecido en la Ley Orgánica de Prevención, Detección y Erradicación del Delito de Lavado de Activos y del Financiamiento de Delitos, su Reglamento General, Codificación de Resoluciones Monetarias Financieras, de Valores y Seguros, Resolución NAC-DGERCGC19-00000045 del Servicio de Rentas Internas, Políticas Internas de Prevención de Lavado de Activos y la Ley Foreign Account Tax Compliance Act (FATCA) se requiere a la persona jurídica la entrega de la siguiente información (favor completar todos los campos obligatoriamente).
A7: 1. INFORMACIÓN GENERAL DE LA COMPAÑÍA
A8: Razón Social | I8: Objeto Social | Y8: País de Constitución
A10: Actividad Económica: | R10: RUC:
A11: Teléfonos: | G11: Correo electrónico: | R11: Página web:
A12: Sucursales y Agencias (favor adjuntar una hoja adicional en caso de ser necesario):
A13: Nombre | D13: Cuidad y Dirección | N13: Teléfonos | V13: Gerente de la Sucursal/Agencia
A16: 2. AUTO – CERTIFICACIÓN DE RESIDENCIA FISCAL DEL CLIENTE
A17: Conforme a las regulaciones del Estándar Común de Reporte (CRS por sus siglas en ingles) en el marco de la OCDE (Organización para la Cooperación y Desarrollo Económico). Lo establecido en la Disposición General Primera de la Ley Orgánica para la Reactivación de la Economía, Fortalecimiento de la Dolarización y Modernización de la Gestión, publicada en el Suplemento del Registro Oficial No. 150 de 29 de diciembre de 2017 y según lo señalado en la Resolución NAC-DGERCGC19-000000045 del Servicio de Rentas Internas, publicada en el Suplemento del Registro Oficial Nro. 51 de 01 de octubre de 2019, se ha dispuesto la obligación de reportar información específica sobre la residencia fiscal de una cuenta. Con el objeto de dar cumplimiento con la normativa expuesta, se incluye en este documento la auto- certificación de su residencia fiscal a fin de que los datos registrados, sean transmitidos al Servicio de Rentas Internas que a su vez podrá enviar esta información a las autoridades fiscales de otras jurisdicciones, en virtud de acuerdos intergubernamentales para intercambiar información de cuentas financieras. ¿Quién debe llenar esta Auto - certificación?: El representante que posea una o más cuentas a nombre de una sociedad. En caso de poseer cuentas conjuntas o a nombre de varias sociedades debe firmar la presente Auto – certificación por cada sociedad. Tener en cuenta que esta Auto – certificación es solo a efectos del CRS. El hecho de completarlo no sustituye realizar cualquier Formulario W-9, W-8 o de Auto – certificación del IRS que pueda requerirse de otra manera para la Ley FATCA u otros propósitos fiscales estadounidenses.
A18: Domicilio Legal: (calle transversal, numero edificio, piso):
A19: Ciudad: | H19: Provincia: | R19: Cantón:
A20: Parroquia: | H20: País: | R20: Código postal:
A21: Dirección Postal: (calle, transversal, numero edificio, piso):
A22: Ciudad: | F22: Provincia: | O22: País: | V22: Código postal:
A23: 1. Institución Financiera: Sociedad de Inversión 1.1 ¿Es una sociedad de inversión localizada en una jurisdicción no participante y manejada por otra institución financiera? SI( ) NO( ) Si marca la opción SI, debe completar el formulario de “Auto – Certificación de Persona que Ejerce el Control FDV - 010”. 1.2 ¿Otro tipo de sociedad de inversión? SI ( ) NO ( )
A24: 2. Es una Institución financiera: ¿Institución de depósito, custodia, o Compañía de Seguros específica? SI ( ) NO ( )
A25: 3. ¿Es una entidad cuyas acciones se cotizan en bolsa?: SI ( ) NO ( ). Si marca la opción SÍ, indique cuál es el nombre del mercado en donde se cotiza:
A26: 4. ¿Es una entidad gubernamental u organismo internacional u organización sin fines de lucro?: SI ( ) NO ( ) | N26: ¿Es una entidad obligada a pagar Impuesto a la Renta?: SI ( ) NO ( )
A27: 5. ¿Es una Entidad NO Financiera Pasiva? SI ( ) NO ( ) Si marca la opción SI, debe completar el formulario de “Auto – Certificación de Persona que Ejerce el Control FDV - 010”.
A28: 6. A continuación indique el nombre(s) de la(s) persona(s) que ejerce(n) el control sobre la sociedad titular de la cuenta: por cada una de estas personas, adicionalmente llene una Auto – certificación de persona que ejerce el control (si es que marcó SI en la opción 1.1 y 5):
A29: 1) | H29: 2) | R29: 3)
A30: 7. ¿Es una sociedad estadounidense para fines fiscales (la empresa paga impuestos en EEUU)? SI ( ) NO ( ) | O30: Si marcó SI, indique el número de identificación como contribuyente en Estados Unidos:
A31: 8. ¿La Sociedad es residente de cualquier otro país distinto de Estados Unidos y Ecuador para fines fiscales (país donde paga impuestos) ?: SI ( ) NO ( ). Si la respuesta es positiva por favor enumere a continuación el/los países en donde es residente (donde paga impuestos):
A32: 1) | H32: 2) | R32: 3)
A33: Proporcione a continuación el número de identificación como contribuyente para cada país que indicó anteriormente:
A34: 1) | H34: 2) | R34: 3)
A37: 1
AB42: FDV - 002
A44: Certifico que la información proporcionada en este formulario es correcta y completa.
A45:  Autorizo a FIDEVAL S.A. a proporcionar, directa o indirectamente, la Información contenida en este formulario y/o una copia de este formulario a cualquier autoridad fiscal pertinente o cualquier parte autorizada para auditar o realizar un control similar de FIDEVAL S.A. para fines fiscales, así como a divulgar a tales autoridades fiscales o tal parte cualquier información adicional que pudiese poseer FIDEVAL S.A. y que es pertinente para mi calificación para cualquier beneficio reclamado con base en esta certificación.
A46:  Acepto que la información contenida en este formulario y la información relacionada con mis cuentas en FIDEVAL S.A. (incluso la información sobre los saldos de cuentas y pagos recibidos) se notifique a las autoridades fiscales pertinentes, y que estas autoridades proporcionen esta información a cualquier otro país enumerado en la lista anterior como a un país en el cual soy residente para fines fiscales.
A47:  Me comprometo a avisar inmediatamente a FIDEVAL S.A. sobre cualquier cambio en las circunstancias que motive que la información contenida en este documento sea incorrecta y a proporcionar a FIDEVAL S.A. un formulario actualizado y apropiado de Auto-certificación de Residencia Fiscal en un plazo de 30 días a partir de la fecha del cambio en las circunstancias.
A48: 3. ACCIONISTAS DESDE EL 10% DE PARTICIPACIÓN (de ser necesario adjuntar lista de los mismos por separado)
A49: Nombres Completos/Razón Social | H49: ID/Pasaporte/RUC | L49: Nacionalidad | P49: % Participación | V49: Es residente de cualquier otro país distinto de Ecuador para fines fiscales (país donde paga impuestos).
V51: Si | AA51: No
A55: Si su respuesta es positiva por favor enumere a continuación el/los países y el número de identificación tributaria en dichos países:
A56: Nombres Completos/Razón Social | H56: País | L56: # Identificación Tributaria | R56: País | X56: # Identificación Tributaria
A60: 4. INFORMACIÓN DEL REPRESENTANTE LEGAL Y/O APODERADO
A61: REPRESENTANTE LEGAL/APODERADO: Nombres Completos | H61: Número de identificación/Pasaporte | R61: Nacionalidad | X61: Teléfono domicilio
A63: Dirección domicilio/residencia: | N63: Lugar y fecha de nacimiento (aa/mm/dd):
A64: Número y fecha de la escritura pública del poder respectivo (en caso de Apoderado):
A65: CÓNYUGE: Nombres Completos | H65: ID/Pasaporte | M65: Nacionalidad | R65: Actividad Económica
A66: 5. ESTADO DE SITUACIÓN FINANCIERA DE LA COMPAÑÍA
A67: 5. ESTADO DE SITUACIÓN FINANCIERA DE LA COMPAÑÍA
A68: Total Activos | F68: Total Pasivos | L68: Patrimonio Neto | R68: Total Ingresos | Z68: Total Gastos
A70: Fecha de corte a la que pertenece la información financiera:
A71: 6. DETALLE DE CUENTAS E INVERSIONES QUE POSEE LA EMPRESA EN EL SISTEMA FINANCIERO
A72: Nombre de la Institución | L72: Tipo de Cuenta | Z72: No. Cuenta
A75: 7. DETALLE DE TRANSACCIONES Y/O PRODUCTOS FINANCIEROS QUE POSEE EN DIVISAS INTERNACIONALES (en caso de aplicar)
A76: Tipo del producto o servicio | F76: Identificación del producto o servicio | L76: Entidad | Q76: Monto | V76: País | AA76: Moneda
A79: 9. DECLARACIÓN SOBRE LA CONDICIÓN DE PERSONA EXPUESTA POLÍTICAMENTE
A80: Declaro bajo juramento que el/los Socio(s), Accionista(s) que usted Representa SI____ /NO _____ y/o el Representante Legal SI ___ /NO ___, son Personas Expuestas Políticamente. Si su respuesta es positiva en cualquier campo favor llenar la siguiente información:
A83: 2
AB89: FDV - 002
A91: Representante Legal/Socio/ Accionista | E91: Nombres Completos y Cédula de Identidad / RUC | I91: Cargo o Función ejercido en la Entidad Pública | M91: Nombre de la Institución Pública | Q91: Tiempo de trabajo | U91: Fecha del nombramiento de designación | Y91: Fecha de culminación en el cargo público (cese de actividades en los últimos 2 años)
A96: Adicionalmente declaro que el/los Socio(s), Accionista(s) y/o Representante Legal, SI / NO mantienen vinculación: comercial ( ), contractual ( ), laboral ( ), familiar dentro del segundo grado de consanguinidad (padres, hijos, abuelos, hermanos, nietos) o primero de afinidad (suegros, hijastros) ( ), con una Persona Expuesta Políticamente. Si la respuesta es positiva favor llenar la siguiente información:
A97: Representante Legal/Socio/Accionista | F97: Nombres Completos y Cédula de Identidad / RUC del PEP | M97: Relación de Parentesco | R97: Cargo o Función | X97: Nombre de la Institución Pública
A101: 10. DECLARACIÓN DE LICITUD DE FONDOS
A102: Los fondos que ingresarán al producto contratado provienen de: _____________________________________________________________________ __________________________________________________________________________________________________________________________________
A103: Los fondos existentes en el producto contratado serán utilizados para: _______________________________________________________________ __________________________________________________________________________________________________________________________________
A104: CONOCEDOR (A) DE LAS PENAS DE PERJURIO DECLARO BAJO JURAMENTO QUE LA INFORMACIÓN ARRIBA INDICADA ES CORRECTA Y VERDADERA, ENTIENDO QUE LA MISMA SERÁ LEÍDA/ REVISADA POR LAS AUTORIDADES COMPETENTES, QUIENES LA PODRÁN CONSIDERAR PARA TODOS LOS EFECTOS LEGALES QUE CONSIDEREN NECESARIOS. AUTORIZO EXPRESA E INDEFINIDAMENTE A LA COMPAÑÍA ADMINISTRADORA DE FONDOS Y FIDEICOMISOS FIDEVAL S.A., MIENTRAS SEA CLIENTE DE LA MISMA PARA QUE A TRAVÉS DE SU REPRESENTANTE LEGAL O FUNCIONARIOS AUTORIZADOS OBTENGA DE CUALQUIER FUENTE INFORMACIÓN LEGALMENTE AUTORIZADA, REALICEN EL ANÁLISIS Y VERIFICACIONES QUE CONSIDEREN PERTINENTES A TRAVÉS DE LOS MEDIOS NECESARIOS, E INFORMEN DE MANERA INMEDIATA Y DOCUMENTADA A LA AUTORIDAD COMPETENTE EN CASOS DE INVESTIGACIÓN O CUANDO SE DETECTARE INUSUALIDADES O TRANSACCIONES SOSPECHOSAS. GARANTIZO LA VERACIDAD DE LA INFORMACION PROPORCIONADA Y RENUNCIO A EJECUTAR CUALQUIER PRETENSIÓN TANTO EN EL ÁMBITO CIVIL COMO PENAL POR ESTOS HECHOS, ACOGIENDOME A LAS SANCIONES QUE POR INFORMACIÓN FALSA ESTABLEZCAN LAS LEYES ECUATORIANAS. FACULTO EXPRESAMENTE A LA COMPAÑÍA FIDEVAL S.A. ADMINISTRADORA DE FONDOS Y FIDEICOMISOS PARA TRANSFERIR O ENTREGAR DICHA INFORMACIÓN A AUTORIDADES COMPETENTES Y ORGANISMOS DE CONTROL, ASÍ COMO A OTRAS INSTITUCIONES O PERSONAS JURÍDICAS LEGALMENTE FACULTADAS PARA SOLICITAR DICHA INFORMACIÓN. IGUALMENTE CERTIFICO Y DECLARO QUE LOS VALORES ENTREGADOS SON LÍCITOS Y CONSECUENTEMENTE NO PROVIENEN DE NINGUNA ACTIVIDAD ILEGAL O ILÍCITA, NI LOS FONDOS SERÁN DESTINADOS A ACCIONES RELACIONADAS Y TIPIFICADAS EN LAS LEYES DE PREVENCIÓN DE LAVADO DE ACTIVOS VIGENTES. EN CONSTANCIA DE CONOCER Y ACEPTAR LO DECLARADO ANTERIORMENTE, FIRMO EL PRESENTE DOCUMENTO.
D107: Firma | Q107: Ciudad y Fecha (aa/mm/dd)
D110: Identificación | Q110: Nombre del firmante
C113: Calidad en la que funge el firmante (si el formulario no es firmado por la persona que ejerce el control)
A115: 11. PARA USO EXCLUSIVO FIDEVAL S.A.
A116: Nombre y cargo de quien recibe la información: _____________________________________________ Fecha: ______________________________ Firma del Responsable: ___________________________________________________________________
A117: Declaro que la información y documentación receptada se encuentra de forma correcta y completa, a la fecha de entrega del presente formulario.
A118: 2
AB127: FDV - 002
A129: 12. VERIFICACIÓN DE DATOS
A130: DETALLE | J130: SI | M130: NO | O130: DETALLE | Y130: SI | AB130: NO
A131: Identificación: | O131: Direcciones:
A132: Teléfonos: | O132: Actividad Económica:
A133: Referencias: | O133: Firma:
A134: Certificado de Residencia Fiscal emitido por el SRI: | O134: Validación Listas de Observados:
A135: Fecha de ingreso de datos en el sistema:
A136: OBSERVACIONES:
A142: Glosario:
A144: a) Compañía de Seguros Específica: Significa toda entidad que sea una compañía aseguradora (o la sociedad holding de una compañía aseguradora) que ofrece un Contrato de Seguro con valor en efectivo o un contrato de anualidades o está obligada a efectuar pagos en relación con los mismos. (es decir un contrato de seguro con un componente de inversión). No incluye compañías de seguro que solo brindan seguros generales o de vida, o compañías de reaseguros que solo ofrecen contratos de indemnización.
A145: b) Entidad de Inversión: significa toda Entidad cuya actividad económica principal consiste en una o varias de las siguientes actividades u operaciones por cuenta o en nombre de un cliente. a) transacciones con instrumentos del mercado monetario (cheques, letras, certificados de depósito o instrumentos derivaos, entre otros); cambio de divisas; instrumentos de los mercados cambiario y monetario, tipos de interés e índices; valores negociables, o negociación de futuros de productos básicos. b) gestión individual o colectiva de cartera, c) otras operaciones de inversión, administración o gestión de Activos Financieros o dinero en nombre de terceros o cuya renta bruta procede principalmente de una actividad de inversión, reinversión o de negociación de Activos Financieros, si la Entidad está gestionada por otra Entidad que es una Institución de Depósito, una Institución de Custodia, una Compañía de Seguros Especifica o una Entidad de Inversión.
A146: c) Entidad que cotiza en Bolsa y/o Afiliada: Las acciones públicamente transadas deben representar más del 50% del poder de voto de la Entidad.
A147: d) Entidad NO Financiera Activa: Entidad cuya actividad principal e ingresos provienen de la actividad productiva y no de la financiera. Sus activos financieros/total de activos e ingresos financieros/total de ingresos deben ser inferior a 50%.
A148: e) Entidad NO Financiera Pasiva: Sus ingresos financieros o activos financieros son superiores al 50% respectivamente de sus ingresos y activos totales.
A149: f) Entidad sin fines de lucro: Entidad con fines exclusivos religiosos, caritativos, científicos, artísticos, culturales o educativos que: a) no está sujeta al impuesto a la renta. b) no tiene accionistas o miembros con derechos propietarios sobre sus activos o ingresos.
A150: g) Institución de depósito: significa toda Entidad que acepta depósitos en el marco habitual de su actividad bancaria o similar.
A167: 4

Sheet CálculosSeguro (hidden)
B1: Meses | D1: MARCA | E1: MODELO | F1: AÑO | G1: VALOR ASEGURADO | H1: TASA | I1: PRIMA NETA
B2: =+IF('AIG- Cotizador Seguro'!B8>=12,12,'AIG- Cotizador Seguro'!B8) -> 12 | D2: =+'AIG- Cotizador Seguro'!B5 -> HYUNDAI | E2: =+'AIG- Cotizador Seguro'!B6 -> ACCENT | F2: 1 | G2: =+'AIG- Cotizador Seguro'!B7 -> 35000 | H2: =+_xlfn.IFS(G2<=20000,4.5%,G2<=25000,4.3%,G2<=30000,3.9%,G2<=35000,3.6%,G2<=40000,3.4%,G2<=45000,3.2%,G2<=50000,2.8%,G2>50000,2.6%) -> 0.036 | I2: =+(H2*G2)*(B2/12) -> 1260
F3: SUBTOTAL PRIMA | I3: =+SUM(I2:I2) -> 1260
F4: SUPER DE BANCOS | H4: 0.035 | I4: =+I3*H4 -> 44.1
F5: SEGURO CAMPESINO | H5: 0.005 | I5: =+I3*H5 -> 6.3
F6: DERECHOS DE EMISION | I6: =+IF(I2>0,0.04,0) -> 0.04
F7: BASE IMPONIBLE IVA | I7: =SUM(I3:I6) -> 1310.44
F8: IVA | H8: 0.15 | I8: =I7*H8 -> 196.566
F9: TOTAL | I9: =+I7+I8 -> 1507.006
B12: Meses | D12: MARCA | E12: MODELO | F12: AÑO | G12: VALOR ASEGURADO | H12: TASA | I12: PRIMA NETA
B13: =+IF(B2<12,0,IF(AND('AIG- Cotizador Seguro'!B8>12,'AIG- Cotizador Seguro'!B8>=24),12,'AIG- Cotizador Seguro'!B8-12)) -> 12 | D13: =+D2 -> HYUNDAI | E13: =+E2 -> ACCENT | F13: =+F2+1 -> 2 | G13: =+G2*0.88 -> 30800 | H13: =+H2 -> 0.036 | I13: =+(H13*G13)*(B13/12) -> 1108.8
F14: SUBTOTAL PRIMA | I14: =+SUM(I13:I13) -> 1108.8
F15: SUPER DE BANCOS | H15: 0.035 | I15: =+I14*H15 -> 38.808
F16: SEGURO CAMPESINO | H16: 0.005 | I16: =+I14*H16 -> 5.544
F17: DERECHOS DE EMISION | I17: =+IF(I13>0,0.04,0) -> 0.04
F18: BASE IMPONIBLE IVA | I18: =SUM(I14:I17) -> 1153.192
F19: IVA | H19: 0.15 | I19: =I18*H19 -> 172.9788
F20: TOTAL | I20: =+I18+I19 -> 1326.1708
B23: Meses | D23: MARCA | E23: MODELO | F23: AÑO | G23: VALOR ASEGURADO | H23: TASA | I23: PRIMA NETA
B24: =+IF(B13<12,0,IF(AND('AIG- Cotizador Seguro'!B8>24,'AIG- Cotizador Seguro'!B8>=36),12,'AIG- Cotizador Seguro'!B8-24)) -> 0 | D24: =+D13 -> HYUNDAI | E24: =+E13 -> ACCENT | F24: =+F13+1 -> 3 | G24: =+G13*0.92 -> 28336 | H24: =+H13 -> 0.036 | I24: =+(H24*G24)*(B24/12) -> 0
F25: SUBTOTAL PRIMA | I25: =+SUM(I24:I24) -> 0
F26: SUPER DE BANCOS | H26: 0.035 | I26: =+I25*H26 -> 0
F27: SEGURO CAMPESINO | H27: 0.005 | I27: =+I25*H27 -> 0
F28: DERECHOS DE EMISION | I28: =+IF(I24>0,0.04,0) -> 0
F29: BASE IMPONIBLE IVA | I29: =SUM(I25:I28) -> 0
F30: IVA | H30: 0.15 | I30: =I29*H30 -> 0
F31: TOTAL | I31: =+I29+I30 -> 0
B34: Meses | D34: MARCA | E34: MODELO | F34: AÑO | G34: VALOR ASEGURADO | H34: TASA | I34: PRIMA NETA
B35: =+IF(B24<12,0,IF(AND('AIG- Cotizador Seguro'!B8>36,'AIG- Cotizador Seguro'!B8>=48),12,'AIG- Cotizador Seguro'!B8-36)) -> 0 | D35: =+D24 -> HYUNDAI | E35: =+E24 -> ACCENT | F35: =+F24+1 -> 4 | G35: =+G24*0.95 -> 26919.2 | H35: =+H24 -> 0.036 | I35: =+(H35*G35)*(B35/12) -> 0
F36: SUBTOTAL PRIMA | I36: =+SUM(I35:I35) -> 0
F37: SUPER DE BANCOS | H37: 0.035 | I37: =+I36*H37 -> 0
F38: SEGURO CAMPESINO | H38: 0.005 | I38: =+I36*H38 -> 0
F39: DERECHOS DE EMISION | I39: =+IF(I35>0,0.04,0) -> 0
F40: BASE IMPONIBLE IVA | I40: =SUM(I36:I39) -> 0
F41: IVA | H41: 0.15 | I41: =I40*H41 -> 0
F42: TOTAL | I42: =+I40+I41 -> 0
B45: Meses | D45: MARCA | E45: MODELO | F45: AÑO | G45: VALOR ASEGURADO | H45: TASA | I45: PRIMA NETA
B46: =+IF(B35<12,0,IF(AND('AIG- Cotizador Seguro'!B8>48,'AIG- Cotizador Seguro'!B8>=60),12,'AIG- Cotizador Seguro'!B8-48)) -> 0 | D46: =+D35 -> HYUNDAI | E46: =+E35 -> ACCENT | F46: =+F35+1 -> 5 | G46: =+G35*0.95 -> 25573.24 | H46: =+H35 -> 0.036 | I46: =+(H46*G46)*(B46/12) -> 0
F47: SUBTOTAL PRIMA | I47: =+SUM(I46:I46) -> 0
F48: SUPER DE BANCOS | H48: 0.035 | I48: =+I47*H48 -> 0
F49: SEGURO CAMPESINO | H49: 0.005 | I49: =+I47*H49 -> 0
F50: DERECHOS DE EMISION | I50: =+IF(I46>0,0.04,0) -> 0
F51: BASE IMPONIBLE IVA | I51: =SUM(I47:I50) -> 0
F52: IVA | H52: 0.15 | I52: =I51*H52 -> 0
F53: TOTAL | I53: =+I51+I52 -> 0

Sheet TarifasSeguro (hidden)
A2: Suma Asegurada | B2: Tasa | D2: =+'AIG- Cotizador Seguro'!B7 -> 35000
A3: 0-20.000 | B3: 0.045 | C3: 20000
A4: 20.001-25.000 | B4: 0.043 | C4: 25000
A5: 25.001-30.000 | B5: 0.039 | C5: 30000
A6: 30.001-35.000 | B6: 0.036 | C6: 35000
A7: 35.001-40.000 | B7: 0.034 | C7: 40000
A8: 40.001-45.000 | B8: 0.032 | C8: 45000
A9: 45.001-50.000 | B9: 0.028 | C9: 50000 | D9: =+IF(D2<=C3,B3,IF(D2<=C4,B4,IF(D2<=C5,B5,IF(D2<=C6,B6,IF(D2<=C7,B7,IF(D2<=C8,B8,IF(D2<=C9,B9,B10))))))) -> 0.036
A10: 50.000 en adelante | B10: 0.026

Sheet DAT (hidden)
A1: PÓLIZA | B1: CERTIFICADO | C1: CONTRATANTE | D1: FECHA INGRESO | E1: APELLIDO 1 | F1: APELLIDO 2 | G1: NOMBRES | H1: CEDULA/RUC | I1: DIRECCIÓN DOMICILIO | J1: TELÉFONO 1 | K1: CODIGO TELEF | L1: TELÉFONO 2 | M1: CODIGO TELEF | N1: PAIS | O1: CODIGO PAIS | P1: PROVINCIA | Q1: CODIGO PROVINCIA | R1: CIUDAD | S1: CODIGO CIUDAD | T1: LUGAR DE TRABAJO | U1: CARGO | V1: MARCA | W1: marca sise | X1: MODELO | Y1: modelo sise | Z1: TIPO | AA1: AÑO | AB1: COLOR | AC1: color sise | AD1: MOTOR | AE1: CHASIS | AF1: PLACA | AG1: CONDUCTOR | AH1: VIGENCIA INICIAL | AI1: ANIVERSARIO | AJ1: VALOR AUTO | AK1: TASA | AL1: PRIMA NETA | AM1: SÚPER BANCOS | AN1: DERECHOS EMISIÓN | AO1: IVA | AP1: PRIMA TOTAL | AQ1: FECHA DE EMISIÓN | AR1: NUMERO DE TARJETA | AS1: CONCESIONARIO | AT1: STATUS | AU1: FECHA DE CANCELACIÓN | AV1: MOTIVOS | AW1: MARCA EXTRAS 1 | AX1: MODELO EXTRAS 1 | AY1: VALOR EXTRAS 1 | AZ1: MARCA EXTRAS 2 | BA1: MODELO EXTRAS 2 | BB1: VALOR EXTRAS 2 | BC1: MARCA EXTRAS 3 | BD1: MODELO EXTRAS 3 | BE1: VALOR EXTRAS 3 | BF1: MARCA EXTRAS 4 | BG1: MODELO EXTRAS 4 | BH1: VALOR EXTRAS 4 | BI1: MARCA EXTRAS 5 | BJ1: MODELO EXTRAS 5 | BK1: VALOR EXTRAS 5 | BL1: MARCA EXTRAS 6 | BM1: MODELO EXTRAS 6 | BN1: VALOR EXTRAS 6 | BO1: TOTAL EXTRAS | BP1: PRIMA EXTRAS | BQ1: FECHA FIN FINANCTO
A2: 51237 | B2: 1 | C2: DINERS CLUB DEL ECUADOR | D2: =CONCATENATE(FORM!F10," ",FORM!J10," ",FORM!M10) ->  | E2: =+FORM!$F$34 -> PRIMER APELLIDO | F2: =+FORM!L34 -> SEGUNDO APELLIDO | G2: =+FORM!Q36 -> PRIMER NOMBRE SEGUNDO NOMBRE | H2: =+FORM!F40 -> XXXXXXXXXX | I2: =+FORM!F46 -> CARCELEN | J2: =+FORM!F38 -> CELULAR | K2: 2 | L2: =+FORM!L38 -> CONVENCIONAL | M2: 1 | N2: ECUADOR | O2: 1 | R2: =+FORM!F48 -> GUAYAQUIL | T2: =+FORM!#REF! ->  | U2: =+FORM!#REF! ->  | V2: =+FORM!F78 -> HYUNDAI | W2: =VLOOKUP(V2,FORM!#REF!,2) ->  | X2: =+FORM!F80 -> ACCENT | Z2: =+FORM!F85 -> SEDAN | AA2: =+FORM!F87 -> 2022 | AB2: =+FORM!F89 -> ROJO | AD2: =+FORM!F91 -> BU456792826RE7 | AE2: =+FORM!F93 -> CG5342892U | AF2: S / N | AG2: =CONCATENATE(FORM!Q34," ",FORM!F36," ",FORM!L36) -> PRIMER APELLIDO SEGUNDO APELLIDO PRIMER NOMBRE SEGUNDO NOMBRE | AH2: =CONCATENATE(FORM!J10," ",FORM!F10," ",FORM!M10) ->  | AI2: =+AH2+365 ->  | AJ2: =+ROUND(FORM!F101,0) -> 10000 | AK2: =+FORM!#REF! ->  | AL2: =+FORM!#REF! ->  | AM2: =+FORM!#REF! ->  | AN2: =+FORM!#REF! ->  | AO2: =+FORM!#REF! ->  | AP2: =+FORM!#REF! ->  | AQ2: =+D2 ->  | AR2: =CONCATENATE(FORM!F151,,FORM!L151) -> 3608601234567890 | AS2: =+FORM!F14 -> CONCESIONARIO | BQ2: =IF(FORM!F105=1,'TABLA AMORT.'!B32,IF(FORM!F105=1.5,'TABLA AMORT.'!B38,IF(FORM!F105=2,'TABLA AMORT.'!B44,IF(FORM!F105=3,'TABLA AMORT.'!B56)))) -> FALSE

Sheet DESGRAV (hidden)
I2: SEGURO DE VIDA MULTIRIESGO PERSONAL PAGO DE DEUDAS A LOS ACREEDORES DEL ASEGURADO POR MUERTE, INCAPACIDAD TOTAL Y PERMANENTE Y ENFERMEDADES CATASTRÓFICAS SOLICITUD - CERTIFICADO
A3: Poliza: Nª 5754
A4: DATOS DEL ASEGURADO TITULAR PRINCIPAL-DEUDOR | N4: CI | Q4: Pasaporte | X4: Nº | Y4: =+FORM!F40 -> XXXXXXXXXX
A5: Apellidos: | C5: =CONCATENATE(COTIZADOR!F18," ",COTIZADOR!L18) -> PRIMER APELLIDO SEGUNDO APELLIDO | M5: Nombres: | Q5: =CONCATENATE(COTIZADOR!F20," ",COTIZADOR!L20) -> PRIMER NOMBRE SEGUNDO NOMBRE
A6: Día nacimiento: | D6: Mes: | I6: Año: | M6: Estado civil: | U6: Género: | W6: F | X6: M | Y6: Ocupación: | Z6: =+FORM!F58 -> INGENIERO
A7: Celular 1: | C7: =+FORM!F38 -> CELULAR | F7: Celular 2: | M7: Teléfono Particular: | W7: Mail: | X7: =+FORM!F50 -> Correo
A8: Dirección del domicilio: | J8: Calle Principal Nº: | V8: Transversal:
A9: Nº casa/ Departamento: | J9: Barrio/ Sector: | R9: Ciudad: | W9: Provincia:
A10: DATOS DEL TARJETA HABIENTE ADICIONAL | L10: CI | O10: Pasaporte | V10: Nº
A11: Apellidos: | M11: Nombres:
A12: Día nacimiento: | D12: Mes: | I12: Año:
A13: Yo, | B13: =CONCATENATE(Q5,C5) -> PRIMER NOMBRE SEGUNDO NOMBREPRIMER APELLIDO SEGUNDO APELLIDO | K13: identificado(a) con la cédula de identidad o pasaporte número: | Z13: =+FORM!F40 -> XXXXXXXXXX
A14: Autorizo a Seguros del Pichincha debitar mensualmente de mi tarjeta de Crédito la prima correspondiente al producto Desgravamen Saldos:
B15: Diners | C15: No. | E15: =LEFT(FORM!F151,2) -> 36 | G15: x | H15: x | I15: x | J15: x | K15: x | L15: x | M15: x | N15: x | O15: =RIGHT(FORM!L151,4) -> 7890
B17: Discover | C17: No. | G17: x | H17: x | I17: x | J17: x | K17: x | L17: x | M17: x | N17: x | O17: x | P17: x
B19: Visa Titanium | C19: No. | G19: x | H19: x | I19: x | J19: x | K19: x | L19: x | M19: x | N19: x | O19: x | P19: x
A20: Cualquier instrucción para que se deje sin efecto esta autorización la presentaré a Seguros del Pichincha, con treinta (30) días de antelación al siguiente cobro y con copia al Asegurado establecido más adelante, adjuntando a dicha petición el recibido de la misma por parte del Asegurado. En caso que sea titular en más de una tarjeta, autorizo a que el valor total de la prima se cobre proporcionalmente al saldo de cada tarjeta.
B21: TABLA DE COBERTURAS
B22: COBERTURAS | M22: ASEGURADO | R22: VALOR ASEGURADO
B23: Muerte por cualquier causa No excluida | M23: Tarjeta habiente | R23: Saldo insoluto de la deuda, máximo $60.000
B24: Incapacidad total y permanente – (Enfermedades Catastróficas) | M24: Tarjeta habiente | R24: Saldo insoluto de la deuda, máximo $60.000
A25: CONDICIONES DEL SEGURO
A26: OBJETO DEL SEGURO: Proteger el saldo insoluto de la tarjeta habiente ante la entidad financiera cubriendo el riesgo que no pueda ser reembolsado a consecuencia de muerte por cualquier causa o incapacidad total y permanente o enfermedades catastróficas de la tarjeta habiente y/o sus adicionales en caso que los tuviera.
A27: COBERTURAS: MUERTE POR CUALQUIER CAUSA: Por la muerte del Asegurado, originada por cualquier causa, a excepción del suicidio voluntario o involuntario del Asegurado el cual se cubrirá transcurrido el primer año de vigencia del contrato, la Compañía pagará a la persona jurídica que tenga la calidad de beneficiario acreedor el saldo adeudado que el Asegurado mantenga con la tarjeta de crédito emitida por Banco Diners Club S.A. (Diners, Discover, Visa Titanium).
A28: INCAPACIDAD TOTAL Y PERMANENTE – ENFERMEDADES CATASTRÓFICAS Por la Incapacidad Total y Permanente por cualquier causa no excluida, sufrida por el Asegurado durante la vigencia de este seguro, la Compañía pagará a la persona jurídica que tenga la calidad de beneficiario acreedor el saldo adeudado que el Asegurado mantenga con la tarjeta de crédito emitida por Banco Diners Club S.A. (Diners, Visa Titanium, Discover). Para efectos de este seguro se entiende que se presenta incapacidad total y permanente, cuando el Asegurado de acuerdo a lo estipulado en el literal de límites de edad, sufra alteraciones funcionales, comprobables desde el punto de vista médico, que de por vida le impidan desempeñar cualquier actividad, ocupación o trabajo remunerativo o lucrativo para los cuales se encuentra razonablemente calificado en razón de su educación, entrenamiento o experiencia, siempre que dicha incapacidad haya existido por un período continuo no menor a ciento ochenta (180) días y no haya sido provocada por el Asegurado y sea superior al 50% calificada por la entidad de control.
A29: Enfermedades catastróficas: Con el diagnóstico médico que evidencie que el Asegurado sufre por primera ocasión durante la vigencia de la póliza, cualquiera de las siguientes enfermedades descritas a continuación y una vez certificado por la Institución médica autorizada y reconocida legalmente para ese fin, la Compañía pagará al beneficiario acreedor el saldo adeudado que el Asegurado mantenga con la tarjeta de crédito emitida por Banco Diners Club S.A. (Diners, Discover, Visa Titanium). Para efectos de esta cobertura se definen las enfermedades catastróficas o de alta complejidad así: • Todo tipo de malformaciones congénitas de corazón y todo tipo de valvulopatías cardiacas, Todo tipo de cáncer, Tumor cerebral en cualquier estado y de cualquier tipo, Insuficiencia renal crónica, Tumores en la piel; cáncer in situ no invasivo en cualquier órgano, Tumores cerebrales superficiales benignos, Acontecimientos catastróficos originados por reacciones nucleares, Quemaduras de primer y segundo grado, Trasplante de órganos (riñón, hígado, médula ósea.), Secuelas de quemaduras graves, Malformaciones arterio venosas cerebrales, Síndrome de Klippel Trenaunay, Aneurisma tóraco-abdominaI. EXCLUSIONES DE INCAPACIDAD TOTAL Y PERMANENTE: Para la cobertura de Incapacidad Total y Permanente aplican las siguientes exclusiones: • Cualquier enfermedad o accidente preexistente a la contratación del seguro. • Suicidio, tentativa de suicidio, o lesión intencionalmente causada a sí mismo, ya sea en estado de cordura o demencia • Guerra civil o internacional, motín, huelga, movimientos subversivos o en general conmociones civiles de cualquier clase. • Acontecimientos catastróficos originados por reacciones nucleares Para la cobertura de enfermedades catastróficas aplican las siguientes exclusiones: • Cualquier enfermedad preexistente a la contratación del seguro. DEFINICIONES: ASEGURADO PRINCIPAL. - El titular de la tarjeta de crédito otorgado por la entidad financiera y sus tarjetahabientes adicionales. BENEFICIARIO ACREEDOR.- La entidad financiera, con la cual el asegurado ha generado una obligación económica, en este caso hasta el saldo insoluto de la deuda. SALDO INSOLUTO.- La sumatoria de capital más intereses corrientes.
A30: PAGO DE PRIMAS: El presente seguro se mantendrá vigente siempre y cuando exista el pago respectivo y mientras tenga una deuda con la entidad financiera. En caso de presentarse un siniestro que afecte a la cobertura de muerte por cualquier causa de este certificado, el pago de primas se dará por terminado. VIGENCIA: Esta póliza adquiere fuerza legal desde el día y hora indicados en este certificado como comienzo de su vigencia y permanecerá en vigor por el período que se mantenga la deuda.
A32: AVISO Y COMPROBACION DEL SINIESTRO: Corresponde al Asegurado o al (o los) beneficiario (s) instituido (s):
A33: a) Denunciar la muerte, accidente, incapacidad, lesión corporal o enfermedad cubiertos por esta póliza dentro de los quince (15) días de la fecha en que haya ocurrido, salvo caso fortuito, fuerza mayor o imposibilidad de hecho, sin culpa o negligencia, so pena de perder todo derecho a la indemnización, de acuerdo con el artículo 24 de la sección 4ª del capítulo I, del Título XVII del Código de Comercio Ecuatoriano. b) Suministrar pruebas sobre la fecha y las causas del reclamo, como acerca de la manera y el lugar en que se produjo el hecho. c) Presentar a la Compañía el diagnóstico de la enfermedad, confirmado mediante evidencias médicas, exámenes de laboratorio clínico, químico o patológico efectuados por un profesional médico o médico legista (para muerte accidental), autorizado legalmente para el ejercicio de su profesión. d) Facilitar cualquier comprobación o aclaración, incluso hasta dos exámenes médicos por facultativos designados por la Compañía con gastos a cargo de ésta. e) Adoptar todas las medidas posibles conducentes a disminuir las consecuencias del accidente, enfermedad o lesión. La Compañía, en caso de muerte del Asegurado, se reserva el derecho de gestionar la exhumación del cadáver y practicar la autopsia en presencia de uno de sus facultativos, con gastos a cargo de la misma. El beneficiario prestará su conformidad y su concurso para la obtención de las correspondientes autorizaciones para realizarla.
A34: DOCUMENTACION MÍNIMA EN CASO DE SINIESTRO: Dentro del término legal, la Compañía pagará por conducto del Contratante al Asegurado o a los beneficiarios, o directamente a estos, la indemnización a que está obligada por esta póliza y sus amparos adicionales si los hubiere, al acreditar la ocurrencia del siniestro y la cuantía del mismo; para el efecto podrá utilizar todos los medios probatorios admitidos en la Ley ecuatoriana, y en especial la documentación mínima relacionada en el cuadro de documentos mínimos requeridos en caso de siniestro. Para que la Compañía pague la indemnización correspondiente a los diferentes amparos, el Asegurado y/o los Beneficiarios deberán presentar pruebas fehacientes que determinen la existencia del hecho amparado, de acuerdo con los términos de esta póliza. La Compañía se reserva el derecho de comprobar la veracidad y la exactitud de tales pruebas. La Compañía podrá hacer examinar al Asegurado tantas veces como lo estime conveniente, mientras se encuentre pendiente un reclamo bajo el presente amparo.
A35: PLAZO DE PRUEBA: La Compañía dentro de los treinta (30) días calendario de recibido el aviso y/o la respectiva prueba de la ocurrencia del siniestro y su cuantía, contados desde la fecha que sea posterior, deberá hacer saber al Asegurado la aceptación, postergación o rechazo del otorgamiento del beneficio. Si las comprobaciones a que se refiere el artículo vigésimo segundo no resultaran concluyentes, la Compañía podrá ampliar el plazo de prueba por un término no mayor de tres (3) meses, a fin de confirmar el diagnóstico.
A36: DUPLICADO DE POLIZA Y DE CERTIFICADOS – COPIAS: En caso de robo, pérdida o destrucción de esta póliza o de cualquier certificado individual, el Asegurado, podrá obtener su sustitución por un duplicado. Las modificaciones o suplementos que se incluyan en el duplicado, del Asegurado, serán los únicos válidos. El Asegurado tiene derecho a que se le entregue copia de su declaración efectuada con motivo de este contrato y copia no negociable de esta póliza o del correspondiente certificado individual. Serán por cuenta de los solicitantes los gastos que origine la extensión de duplicados y copias
A37: TERMINACION DEL SEGURO INDIVIDUAL: El seguro de cada Asegurado terminará en los siguientes casos:
A38: a) Por cancelación por parte del Asegurado; b) Por vencimiento de la vigencia de esta póliza o por caducidad del efecto vinculante; c) Por cumplir el Asegurado la edad señalada en la tabla de edades máximas; d) Por falta de pago de la prima o su contribución.
A39: La cancelación a que se refiere el punto a) deberá ser comunicada por escrito a la Compañía por intermedio del Contratante o por el propio Asegurado con cinco (5) días hábiles de antelación a la fecha en que se deba hacer el pago de prima correspondiente y tendrá efecto a partir de esa fecha de pago. En caso de que el aviso de cancelación no se reciba en el período establecido, la cancelación se hará efectiva a partir de la siguiente fecha de pago. En los casos previstos en los puntos b) y c) el seguro quedará rescindido a las veinticuatro (24) horas en que se haya producido la renuncia, o rescisión o caducidad, o el Asegurado haya cumplido la edad señalada en la tabla de edades máximas. Se presumirá que un Asegurado ha cancelado el seguro, sin admitirse prueba en contrario, cuando no pague la prima de este seguro o su contribución en la forma y plazo previsto en estas condiciones generales. En cualquier caso de vencimiento o caducidad de esta póliza, terminarán simultáneamente todos los seguros individuales cubiertos por ella salvo las obligaciones pendientes a cargo de la Compañía.
A40: DECLARACIONES Y AUTORIZACIONES DEL ASEGURADO PRINCIPAL: A. En el evento en que SEGUROS DEL PICHINCHA S.A. COMPAÑÍA DE SEGUROSY REASEGUROS otorgue el seguro de desgravamen, de acuerdo con la información suministrada en este tipo de seguro, la cobertura amparará a la persona que firma esta declaración. B. Acepto el valor de la prima del presente seguro sea cargado en el estado de cuenta de mi tarjeta. El valor de la prima se realizará en base al cálculo del 0.099% sobre mi deuda con Banco Diners Club del Ecuador.
A41: C. DECLARACIÓN DE INFORMACIÓN Declaro que la información contenida en el presente formulario es verdadera, completa y actualizada. Declaro conocer y aceptar que es mi obligación actualizar anualmente mis datos personales, comunicar y documentar de manera inmediata a SEGUROS DEL PICHINCHA S.A. COMPAÑÍA DE SEGUROSY REASEGUROS cualquier cambio en la información o documentación que he proporcionado. Durante la vigencia de la relación contractual con SEGUROS DEL PICHINCHA S.A. COMPAÑÍA DE SEGUROS Y REASEGUROS, me comprometo
A42: a proveer la información y la documentación que me sea solicitada. Así mismo entiendo que esta información podrá ser requerida por las autoridades de control respectivas para los efectos legales correspondientes. D. DECLARACIÓN DE LICITUD DE FONDOS Declaro que el dinero utilizado para realizar las transacciones con SEGUROS DEL PICHINCHA S.A. COMPAÑÍA DE SEGUROS Y REASEGUROS no proviene de ninguna actividad relacionada con el lavado de activos, el financiamiento del terrorismo, el financiamiento de otros delitos, ni es producto de algún delito. Así mismo declaro que realizo y realizaré operaciones lícitas con SEGUROS DEL PICHINCHA S.A. COMPAÑÍA DE SEGUROS Y REASEGUROS desde el inicio de la relación comercial hasta la finalización del contrato. E. AUTORIZACION Además, autorizo a SEGUROS DEL PICHINCHA S.A. COMPAÑÍA DE SEGUROS Y REASEGUROS a utilizar mi información personal proporcionada a la aseguradora o cualquier información que sea de conocimiento público conforme a la ley, con el objetivo de contactarme, por medio de llamada telefónica, mensaje de texto vía telefónica, correo electrónico, correo directo u otro medio. F. DECLARO HABER RECIBIDO LAS EXPLICACIONES CORRESPONDIENTES SOBRE ESTE SEGURO Y ACEPTO DE MANERA VOLUNTARIA EL MISMO.
A43: El Contratante y/o Asegurado podrá solicitar a la Superintendencia de Compañías, Valores y Seguros la verificación de este texto.
A48: Seguros del Pichincha S.A | Q48: Asegurado Principal
A50: IMPORTANTE: Lea cuidadosamente el extracto de las condiciones generales entregado; si tuviese alguna inquietud comuníquese al 1800-400-400 de SEGUROS DEL PICHINCHA.
